{"text_format":"1","workbook":"xlsx","n_sheets":6,"sheets":["AppSettings","Colors","Function Names","Error codes","Translations","Language codes"],"not_rendered":{"charts":0,"images":0,"macros":1,"external_links":0,"defined_names":48,"comments":0,"pivot_tables":0},"unopened":[],"bounds":{"document_bytes":16777216,"sheet_cells":100000,"rows_first":2000,"rows_last":500,"rows_between":2000,"halvings":0,"cell_chars":16384,"cell_head_chars":4096},"cells_cut":0,"cells_raw":0,"read":"whole","date_system":"1900"}

{"sheet":"AppSettings","index":0,"n_rows":11,"n_cols":19,"rows_kept":11,"cut":false,"hidden":false,"merged":[]}
["LegalNameCharacters","_\\?¤§†‡⁄…⁰¹²³⁴⁵⁶⁷⁸⁹ⁿ⁺⁻⁼₀₁₂₃₄₅₆₇₈₉ᵢᵣᵤᵥₐₑₒₓᵧᵨᵩᵪₔΑΒΓΔΕΖΗΘΙΚΛΜΝΞΟΠΡΣΤΥΦΧΨΩαβγδεζηθικλμνξοπρστυφχψωϑϕ∂∆∏∑√∞∩ℓ→↗↑↖←↙↓↘↔↕x′x″x̂x̃x̄ẋẍx̅abcdefghijklmnopqrstuvwxyz0123456789_.?\\áàâäãåæçðéèêëƒíìîïñóòôöõøœšßþúùûüýÿžϵ϶ƃΑαϐΒβΓγΔδΕεΖζΗηϴϑΘθΙιϰϗΚκΛλΜμΝνΞξΟοϖΠπϱΡρΣσΤτϒΥυϕΦφΧχΨψΩωабвгдеёжзийклмнопрстуфхцчшщъыьэюяАБВГДЕЁЖЗИЙКЛМНОПРСТУФХЦЧШЩЪЫЬЭЮЯأبجدﻫوزحطيكلمنسعفصقرشتثخذضظغאבגדהוזחטיךכלםמןנסעףפץצקרשתㄱ가강건검견경계고공구국권급기김꽥ㄴ나내녿뉴니ㄷ다담당대도동디ㄹ란력롤롱료룰름리ㄻㅁ매메모목문미밈ㅂ바박방배백번변별보본봉봐부분비뽕ㅅ사산상생서선설성세소수순쉬시식신실씨ㅇㅑㅓㅗㅜ악에여역연열영용욱원월유율으응이인일임입잉ㅈ자장재쟁적전절정조종주준지ㅊ차천철첨청체초추축출침캐투팀표품ㅎ하학한핟할함합핫항핳허호혿홀홈홉홋홍홎홏홓화회획희히.가경계관금급누단동드료리모무바반변별보비사산상선설세소수시ㅇㅣ아예오원월위이인일자재적조직집참코클투표품합험호환ᶓᵦp̂."]
["RibbonPointer"]
["FormulaCell",{"$f":"$A$1","v":"LegalNameCharacters"}]
[null,null,null,null,null,null,null,null,null,null,null,null,null,"Table used to get translations of table zone names",null,null,"Table zone name translations"]
["Heading_styles",null,"text to go on ufUpdateMsg",null,null,null,null,null,null,null,null,null,null,"a","b",null,"localNames.TableRef.Data",{"$f":"tblStructuredRefs[#Data]","v":1},2]
[1,null,"en-en","de-de","nl-nl","fr-fr",null,null,null,null,null,null,null,1,2,null,"localNames.TableRef.Headers",{"$f":"tblStructuredRefs[#Headers]","v":"a"},"b"]
[2,null,"Improved Object References dialog","Objektverweise Dialog verbessert","Objectverwijzingen dialoogvenster verbetert","Boîte de dialogue des références d’objets améliorée",null,null,null,null,null,null,null,null,null,null,"localNames.TableRef.Totals",{"$f":"tblStructuredRefs[#Totals]","v":0},0]
[3,null,"Improved performance of translating the interface","Verbesserte Leistung bei der Übersetzung der Benutzeroberfläche","De snelheid van het vertalen van de interface verbetert","Amélioration des performances de la traduction de l’interface",null,null,null,null,null,null,null,null,null,null,"localNames.TableRef.All",{"$f":"tblStructuredRefs[#All]","v":"a"},"b"]
[4,null,"Speeded up cell animation and made it system independent","Die Zellanimation beschleunigt und systemunabhängig gemacht","Celanimatie versneld en systeemonafhankelijk gemaakt","J’ai accéléré l’animation cellulaire et rendu le système indépendant",null,null,null,null,null,null,null,null,null,null,null,1,2]
["Title_Style",null,"Fixed issue regarding grouped shapes getting ungrouped","Fehler behoben, durch den gruppierte Formen automatisch entgruppiert wurden","Probleem opgelost waarbij gegroupeerde objecten niet gegroepeerd bleven","Correction d’un problème entraînant la dissociation de formes groupées",null,null,null,null,null,null,null,null,null,null,null,0,0]
["Title"]

{"sheet":"Colors","index":1,"n_rows":7,"n_cols":10,"rows_kept":7,"cut":false,"hidden":false,"merged":[]}
[1,{"$f":"A1+7","v":8},15,22,29,36,43,50,57,64]
[2,{"$f":"A2+7","v":9},16,23,30,37,44,51,58,65]
[3,{"$f":"A3+7","v":10},17,24,31,38,45,52,59,66]
[4,{"$f":"A4+7","v":11},18,25,32,39,46,53,60,67]
[5,{"$f":"A5+7","v":12},19,26,33,40,47,54,61,68]
[6,{"$f":"A6+7","v":13},20,27,34,41,48,55,62,69]
[7,{"$f":"A7+7","v":14},21,28,35,42,49,56,63,70]

{"sheet":"Function Names","index":2,"n_rows":541,"n_cols":2,"rows_kept":541,"cut":false,"hidden":false,"merged":[]}
["English","DEZE BLIJFT LEEG"]
["equalsABS(number)"]
["equalsACCRINT(issue,first_interest,settlement,RATE,par,FREQUENCY,basis,calc_method)"]
["equalsACCRINTM(issue,settlement,RATE,par,basis)"]
["equalsACOS(number)"]
["equalsACOSH(number)"]
["equalsACOT(number)"]
["equalsACOTH(number)"]
["equalsADDRESS(row_num,column_num,abs_num,A3,sheet_text)"]
["equalsAGGREGATE(1,4,array)"]
["equalsAMORDEGRC(cost,date_purchased,first_period,salvage,period,RATE,basis)"]
["equalsAMORLINC(cost,date_purchased,first_period,salvage,period,RATE,basis)"]
["equalsAND(logical1,logical2)"]
["equalsARABIC(TEXT)"]
["equalsAREAS(reference)"]
["equalsARRAYTOTEXT(array,format)"]
["equalsASC(TEXT)"]
["equalsASIN(number)"]
["equalsASINH(number)"]
["equalsATAN(number)"]
["equalsATAN2(x_num,y_num)"]
["equalsATANH(number)"]
["equalsAVEDEV(number1,number2)"]
["equalsAVERAGE(number1,number2)"]
["equalsAVERAGEA(number1,number2)"]
["equalsAVERAGEIF(range,Criteria)"]
["equalsAVERAGEIFS(average_range,criteria_range1,criteria1)"]
["equalsBAHTTEXT(number)"]
["equalsBASE(number,radix)"]
["equalsBESSELI(x,N)"]
["equalsBESSELJ(x,N)"]
["equalsBESSELK(x,N)"]
["equalsBESSELY(x,N)"]
["equalsBETA.DIST(x,alpha,beta,cumulative,A,B)"]
["equalsBETA.INV(probability,alpha,beta,A,B)"]
["equalsBETADIST(x,alpha,beta,A,B)"]
["equalsBETAINV(probability,alpha,beta,A,B)"]
["equalsBIN2DEC(number)"]
["equalsBIN2HEX(number,places)"]
["equalsBIN2OCT(number,places)"]
["equalsBINOM.DIST(number_s,trials,probability_s,cumulative)"]
["equalsBINOM.DIST.RANGE(trials,probability_s,number_s,number_s2)"]
["equalsBINOM.INV(trials,probability_s,alpha)"]
["equalsBINOMDIST(number_s,trials,probability_s,cumulative)"]
["equalsBITAND(number1,number2)"]
["equalsBITLSHIFT(number,shift_amount)"]
["equalsBITOR(number1,number2)"]
["equalsBITRSHIFT(number,shift_amount)"]
["equalsBITXOR(number1,number2)"]
["equalsBYCOL(array,function)"]
["equalsBYCOL(array,function)"]
["equalsBYROW(array,function)"]
["equalsBYROW(array,function)"]
["equalsIMDIV(inumber1,inumber2)"]
["equalsCEILING(number,significance)"]
["equalsCEILING.MATH(number,significance,MODE)"]
["equalsCEILING.PRECISE(number,significance)"]
["equalsCELL(info_type,reference)"]
["equalsCHAR(number)"]
["equalsCHIDIST(x,degrees_freedom)"]
["equalsCHIINV(probability,degrees_freedom)"]
["equalsCHISQ.DIST(x,deg_freedom,cumulative)"]
["equalsCHISQ.DIST.RT(x,deg_freedom)"]
["equalsCHISQ.INV(probability,deg_freedom)"]
["equalsCHISQ.INV.RT(probability,deg_freedom)"]
["equalsCHISQ.TEST(actual_range,expected_range)"]
["equalsCHITEST(actual_range,expected_range)"]
["equalsCHOOSE(index_num,value1,value2)"]
["equalsCHOOSECOLS(array,col_num1,col_num2,)"]
["equalsCHOOSEROWS(array,row_num1,row_num2,)"]
["equalsCLEAN(TEXT)"]
["equalsCODE(TEXT)"]
["equalsCOLUMN(reference)"]
["equalsCOLUMNS(array)"]
["equalsCOMBIN(number,number_chosen)"]
["equalsCOMBINA(number,number_chosen)"]
["equalsCOMPLEX(real_num,i_num,suffix)"]
["equalsCONCAT(text1)"]
["equalsCONCATENATE(text1,text2)"]
["equalsCONFIDENCE(alpha,standard_dev,size)"]
["equalsCONFIDENCE.NORM(alpha,standard_dev,size)"]
["equalsCONFIDENCE.T(alpha,standard_dev,size)"]
["equalsCONVERT(number,from_unit,to_unit)"]
["equals_xlfn._xlws.COPILOT(prompt_part,context)"]
["equalsCORREL(array1,array2)"]
["equalsCOS(number)"]
["equalsCOSH(number)"]
["equalsCOT(number)"]
["equalsCOTH(number)"]
["equalsCOUNT(value1,value2)"]
["equalsCOUNTA(value1,value2)"]
["equalsCOUNTBLANK(range)"]
["equalsCOUNTIF(range,Criteria)"]
["equalsCOUNTIFS(criteria_range,Criteria)"]
["equalsCOUPDAYBS(settlement,maturity,FREQUENCY,basis)"]
["equalsCOUPDAYS(settlement,maturity,FREQUENCY,basis)"]
["equalsCOUPDAYSNC(settlement,maturity,FREQUENCY,basis)"]
["equalsCOUPNCD(settlement,maturity,FREQUENCY,basis)"]
["equalsCOUPNUM(settlement,maturity,FREQUENCY,basis)"]
["equalsCOUPPCD(settlement,maturity,FREQUENCY,basis)"]
["equalsCOVAR(array1,array2)"]
["equalsCOVARIANCE.P(array1,array2)"]
["equalsCOVARIANCE.S(array1,array2)"]
["equalsCRITBINOM(trials,probability_s,alpha)"]
["equalsCSC(number)"]
["equalsCSCH(number)"]
["equalsCUBEKPIMEMBER(connection,kpi_name,kpi_property,caption)"]
["equalsCUBEMEMBER(connection,member_expression,caption)"]
["equalsCUBEMEMBERPROPERTY(connection,member_expression,property)"]
["equalsCUBERANKEDMEMBER(connection,set_expression,RANK,caption)"]
["equalsCUBESET(connection,set_expression,caption,sort_order,sort_by)"]
["equalsCUBESETCOUNT(set)"]
["equalsCUBEVALUE(connection,member_expression1)"]
["equalsCUMIPMT(RATE,NPER,PV,start_period,end_period,TYPE)"]
["equalsCUMPRINC(RATE,NPER,PV,start_period,end_period,TYPE)"]
["equalsDATE(YEAR,MONTH,DAY)"]
["equalsDATEDIF(firstdate,seconddate,\"string\")"]
["equalsDATESTRING(arg)"]
["equalsDATEVALUE(date_text)"]
["equalsDAVERAGE(Database,field,Criteria)"]
["equalsDAY(serial_number)"]
["equalsDAYS(end_date,start_date)"]
["equalsDAYS360(start_date,end_date,method)"]
["equalsDB(cost,salvage,life,period,MONTH)"]
["equalsDBCS(TEXT)"]
["equalsDCOUNT(Database,field,Criteria)"]
["equalsDCOUNTA(Database,field,Criteria)"]
["equalsDDB(cost,salvage,life,period,factor)"]
["equalsDEC2BIN(number,places)"]
["equalsDEC2HEX(number,places)"]
["equalsDEC2OCT(number,places)"]
["equalsDECIMAL(number,radix)"]
["equalsDEGREES(angle)"]
["equalsDELTA(number1,number2)"]
["equalsDETECTLANGUAGE(TEXT)"]
["equalsDEVSQ(number1,number2)"]
["equalsDGET(Database,field,Criteria)"]
["equalsDISC(settlement,maturity,pr,redemption,basis)"]
["equalsDMAX(Database,field,Criteria)"]
["equalsDMIN(Database,field,Criteria)"]
["equalsDOLLAR(number,decimals)"]
["equalsDOLLARDE(fractional_dollar,fraction)"]
["equalsDOLLARFR(decimal_dollar,fraction)"]
["equalsDPRODUCT(Database,field,Criteria)"]
["equalsDROP(array,ROWS,COLUMNS)"]
["equalsDSTDEV(Database,field,Criteria)"]
["equalsDSTDEVP(Database,field,Criteria)"]
["equalsDSUM(Database,field,Criteria)"]
["equalsDURATION(settlement,maturity,coupon,yld,FREQUENCY,basis)"]
["equalsDVAR(Database,field,Criteria)"]
["equalsDVARP(Database,field,Criteria)"]
["equalsECMA.CEILING(number,significance)"]
["equalsEDATE(start_date,months)"]
["equalsEFFECT(nominal_rate,npery)"]
["equalsENCODEURL(TEXT)"]
["equalsEOMONTH(start_date,months)"]
["equalsERF(lower_limit, upper_limit)"]
["equalsERF.PRECISE(x)"]
["equalsERFC(x)"]
["equalsERFC.PRECISE(x)"]
["equalsERROR.TYPE(error_val)"]
["equalsEVEN(number)"]
["equalsEXACT(text1,text2)"]
["equalsEXP(number)"]
["equalsEXPAND(array,ROWS,COLUMNS,pad_with)"]
["equalsEXPON.DIST(x,lambda,cumulative)"]
["equalsEXPONDIST(x,lambda,cumulative)"]
["equalsF.DIST(x,deg_freedom1,deg_freedom2,cumulative)"]
["equalsF.DIST.RT(x,deg_freedom1,deg_freedom2)"]
["equalsF.INV(probability,deg_freedom1,deg_freedom2)"]
["equalsF.INV.RT(probability,deg_freedom1,deg_freedom2)"]
["equalsF.TEST(array1,array2)"]
["equalsFACT(number)"]
["equalsFACTDOUBLE(number)"]
["equalsFALSE()"]
["equalsFALSE()"]
["equalsFDIST(x,degrees_freedom1,degrees_freedom2)"]
["equalsFIELDVALUE(VALUE,field_name)"]
["equalsFILTER(array,include,if_empty)"]
["equalsFILTERXML(xml,xpath)"]
["equalsFIND(find_text,within_text,start_num)"]
["equalsFINDB(find_text,within_text,start_num)"]
["equalsFINV(probability,degrees_freedom1,degrees_freedom2)"]
["equalsFISHER(x)"]
["equalsFISHERINV(y)"]
["equalsFIXED(number,decimals,no_commas)"]
["equalsFLOOR(number,significance)"]
["equalsFLOOR.MATH(number,significance,MODE)"]
["equalsFLOOR.PRECISE(number,significance)"]
["equalsFORECAST(x,known_y,known_x)"]
["equalsFORECAST.ETS(target_date,values,timeline,seasonality,data_completion,aggregation)"]
["equalsFORECAST.ETS.CONFINT(target_date,values,timeline,confidence_level,seasonality,data_completion,aggregation)"]
["equalsFORECAST.ETS.SEASONALITY(values,timeline,data_completion,aggregation)"]
["equalsFORECAST.ETS.STAT(values,timeline,statistic_type,seasonality,data_completion,aggregation)"]
["equalsFORECAST.LINEAR(x,known_ys,known_xs)"]
["equalsFORMULATEXT(reference)"]
["equalsFREQUENCY(data_array,bins_array)"]
["equalsFTEST(array1,array2)"]
["equalsFV(RATE,NPER,PMT,PV,TYPE)"]
["equalsFVSCHEDULE(principal,schedule)"]
["equalsGAMMA(x)"]
["equalsGAMMA.DIST(x,alpha,beta,cumulative)"]
["equalsGAMMA.INV(probability,alpha,beta)"]
["equalsGAMMADIST(x,alpha,beta,cumulative)"]
["equalsGAMMAINV(probability,alpha,beta)"]
["equalsGAMMALN(x)"]
["equalsGAMMALN.PRECISE(x)"]
["equalsGAUSS(x)"]
["equalsGCD(number1,number2)"]
["equalsGEOMEAN(number1,number2)"]
["equalsGESTEP(number,step)"]
["equalsGETPIVOTDATA(pivot_table,name)"]
["equalsGROUPBY(row_fields,values,function,field_headers,total_depth,sort_order,filter_array,field_relationship)"]
["equalsGROWTH(known_y,known_x,new_x,const)"]
["equalsHARMEAN(number1,number2)"]
["equalsHEX2BIN(number,places)"]
["equalsHEX2DEC(number)"]
["equalsHEX2OCT(number,places)"]
["equalsHLOOKUP(lookup_value,table_array,row_index_num,range_lookup)"]
["equalsHOUR(serial_number)"]
["equalsHSTACK(array1,array2,)"]
["equalsHYPERLINK(link_location,friendly_name)"]
["equalsHYPGEOM.DIST(sample_s,number_sample,population_s,number_pop,cumulative)"]
["equalsHYPGEOMDIST(sample_s,number_sample,population_s,number_population)"]
["equalsIF(logical_test,value_if_true,value_if_false)"]
["equalsIFERROR(VALUE,value_if_error)"]
["equalsIFNA(VALUE,value_if_na)"]
["equalsIFS(logical_test,value_if_true)"]
["equalsIMABS(inumber)"]
["equalsIMAGE(source,alt_text,sizing,height,width)"]
["equalsIMAGINARY(inumber)"]
["equalsIMARGUMENT(inumber)"]
["equalsIMCONJUGATE(inumber)"]
["equalsIMCOS(inumber)"]
["equalsIMCOSH(inumber)"]
["equalsIMCOT(inumber)"]
["equalsIMCSC(inumber)"]
["equalsIMCSCH(inumber)"]
["equalsIMDIV(inumber1,inumber2)"]
["equalsIMEXP(inumber)"]
["equalsIMEXP(inumber)"]
["equalsIMLN(inumber)"]
["equalsIMLOG10(inumber)"]
["equalsIMLOG2(inumber)"]
["equalsIMPOWER(inumber,number)"]
["equalsIMPRODUCT(inumber1,inumber2)"]
["equalsIMREAL(inumber)"]
["equalsIMSEC(inumber)"]
["equalsIMSECH(inumber)"]
["equalsIMSIN(inumber)"]
["equalsIMSINH(inumber)"]
["equalsIMSQRT(inumber)"]
["equalsIMSUB(inumber1,inumber2)"]
["equalsIMSUM(inumber1,inumber2)"]
["equalsIMTAN(inumber)"]
["equalsINDEX(array,row_num,column_num)"]
["equalsINDIRECT(ref_text,A109)"]
["equalsINFO(type_text)"]
["equalsINT(number)"]
["equalsINTERCEPT(known_y,known_x)"]
["equalsINTRATE(settlement,maturity,investment,redemption,basis)"]
["equalsIPMT(RATE,per,NPER,PV,FV,TYPE)"]
["equalsIRR(values,guess)"]
["equalsISBLANK(VALUE)"]
["equalsISERR(VALUE)"]
["equalsISERROR(VALUE)"]
["equalsISEVEN(number)"]
["equalsISFORMULA(reference)"]
["equalsISLOGICAL(VALUE)"]
["equalsISNA(VALUE)"]
["equalsISNONTEXT(VALUE)"]
["equalsISNUMBER(VALUE)"]
["equalsISO.CEILING(number,significance)"]
["equalsISODD(number)"]
["equalsISOMITTED(argument)"]
["equalsISOWEEKNUM(DATE)"]
["equalsISPMT(RATE,per,NPER,PV)"]
["equalsISREF(VALUE)"]
["equalsISTEXT(VALUE)"]
["equalsISTHAIDIGIT(TEXT)"]
["equalsKURT(number1,number2)"]
["equalsLAMBDA(parameter_or_calculation)"]
["equalsLARGE(array,_k)"]
["equalsLCM(number1,number2)"]
["equalsLEFT(TEXT,num_chars)"]
["equalsLEFTB(TEXT,num_bytes)"]
["equalsLEN(TEXT)"]
["equalsLENB(TEXT)"]
["equalsLET(name1,name_value1,calculation_or_name2)"]
["equalsLINEST(known_y,known_x,const,stats)"]
["equalsLN(number)"]
["equalsLOG(number,BASE)"]
["equalsLOG10(number)"]
["equalsLOGEST(known_y,known_x,const,stats)"]
["equalsLOGINV(probability,mean,standard_dev)"]
["equalsLOGNORM.DIST(x,mean,standard_dev,cumulative)"]
["equalsLOGNORM.INV(probability,mean,standard_dev)"]
["equalsLOGNORMDIST(x,mean,standard_dev)"]
["equalsLOOKUP(lookup_value,lookup_vector,result_vector)"]
["equalsLOWER(TEXT)"]
["equalsMAKEARRAY(ROWS,COLUMNS,function)"]
["equalsMAP(array,lambda_or_array2)"]
["equalsMATCH(lookup_value,lookup_array,match_type)"]
["equalsMAX(number1,number2)"]
["equalsMAXA(number1,number2)"]
["equalsMAXIFS(max_range,criteria_range,Criteria)"]
["equalsMDETERM(array)"]
["equalsMDURATION(settlement,maturity,coupon,yld,FREQUENCY,basis)"]
["equalsMEDIAN(number1,number2)"]
["equalsMID(TEXT,start_num,num_chars)"]
["equalsMIDB(TEXT,start_num,num_bytes)"]
["equalsMIN(number1,number2)"]
["equalsMINA(number1,number2)"]
["equalsMINIFS(min_range,criteria_range,Criteria)"]
["equalsMINUTE(serial_number)"]
["equalsMINVERSE(array)"]
["equalsMIRR(values,finance_rate,reinvest_rate)"]
["equalsMMULT(array1,array2)"]
["equalsMOD(number,divisor)"]
["equalsMODE(number1,number2)"]
["equalsMODE.MULT(number1,number2)"]
["equalsMODE.SNGL(number1,number2)"]
["equalsMONTH(serial_number)"]
["equalsMROUND(number,multiple)"]
["equalsMULTINOMIAL(number1,number2)"]
["equalsMUNIT(dimension)"]
["equalsN(VALUE)"]
["equalsNA()"]
["equalsNEGBINOM.DIST(number_f,number_s,probability_s,cumulative)"]
["equalsNEGBINOMDIST(number_f,number_s,probability_s)"]
["equalsNETWORKDAYS(start_date,end_date,holidays)"]
["equalsNETWORKDAYS.INTL(start_date,end_date,weekend,holidays)"]
["equalsNOMINAL(effect_rate,npery)"]
["equalsNORM.DIST(x,mean,standard_dev,cumulative)"]
["equalsNORM.INV(probability,mean,standard_dev)"]
["equalsNORM.S.DIST(z,cumulative)"]
["equalsNORM.S.INV(probability)"]
["equalsNORMDIST(x,mean,standard_dev,cumulative)"]
["equalsNORMINV(probability,mean,standard_dev)"]
["equalsNORMSDIST(z)"]
["equalsNORMSINV(probability)"]
["equalsNOT(logical)"]
["equalsNOW()"]
["equalsNPER(RATE,PMT,PV,FV,TYPE)"]
["equalsNPV(RATE,value1,value2)"]
["equalsNUMBERVALUE(TEXT,decimal_separator,group_separator)"]
["equalsOCT2BIN(number,places)"]
["equalsOCT2DEC(number)"]
["equalsOCT2HEX(number,places)"]
["equalsODD(number)"]
["equalsODDFPRICE(settlement,maturity,issue,first_coupon,RATE,yld,redemption,FREQUENCY,basis)"]
["equalsODDFYIELD(settlement,maturity,issue,first_coupon,RATE,pr,redemption,FREQUENCY,basis)"]
["equalsODDLPRICE(settlement,maturity,last_interest,RATE,yld,redemption,FREQUENCY,basis)"]
["equalsODDLYIELD(settlement,maturity,last_interest,RATE,pr,redemption,FREQUENCY,basis)"]
["equalsOFFSET(reference,ROWS,cols,height,width)"]
["equalsOR(logical1,logical2)"]
["equalsPDURATION(RATE,PV,FV)"]
["equalsPEARSON(array1,array2)"]
["equalsPERCENTILE(array,_k)"]
["equalsPERCENTILE.EXC(array,k)"]
["equalsPERCENTILE.INC(array,k)"]
["equalsPERCENTOF(data_subset,data_all)"]
["equalsPERCENTRANK(array,x,significance)"]
["equalsPERCENTRANK.EXC(array,x,significance)"]
["equalsPERCENTRANK.INC(array,x,significance)"]
["equalsPERMUT(number,number_chosen)"]
["equalsPERMUTATIONA(number,number_chosen)"]
["equalsPHI(x)"]
["equalsPHONETIC(reference)"]
["equalsPI()"]
["equalsPIVOTBY(row_fields,col_fields,values,function,field_headers,row_total_depth,row_sort_order,col_total_depth,col_sort_order,filter_array,relative_to)"]
["equalsPMT(RATE,NPER,PV,FV,TYPE)"]
["equalsPOISSON(x,mean,cumulative)"]
["equalsPOISSON.DIST(x,mean,cumulative)"]
["equalsPOWER(number,POWER)"]
["equalsPPMT(RATE,per,NPER,PV,FV,TYPE)"]
["equalsPRICE(settlement,maturity,RATE,yld,redemption,FREQUENCY,basis)"]
["equalsPRICEDISC(settlement,maturity,discount,redemption,basis)"]
["equalsPRICEMAT(settlement,maturity,issue,RATE,yld,basis)"]
["equalsPROB(x_range,prob_range,lower_limit,upper_limit)"]
["equalsPRODUCT(number1,number2)"]
["equalsPROPER(TEXT)"]
["equalsPV(RATE,NPER,PMT,FV,TYPE)"]
["equalsPY"]
["equalsQUARTILE(array,quart)"]
["equalsQUARTILE.EXC(array,quart)"]
["equalsQUARTILE.INC(array,quart)"]
["equalsQUOTIENT(numerator,denominator)"]
["equalsRADIANS(angle)"]
["equalsRAND()"]
["equalsRANDARRAY(ROWS,COLUMNS,MIN,MAX,integer)"]
["equalsRANDBETWEEN(bottom,top)"]
["equalsRANK(number,ref,order)"]
["equalsRANK.AVG(number,ref,order)"]
["equalsRANK.EQ(number,ref,order)"]
["equalsRATE(NPER,PMT,PV,FV,TYPE,guess)"]
["equalsRECEIVED(settlement,maturity,investment,discount,basis)"]
["equalsREDUCE(initial_value,array,function)"]
["equalsREGEXEXTRACT(TEXT,pattern,return_mode,case_sensitivity)"]
["equalsREGEXREPLACE(TEXT,pattern,replacement,occurrence,case_sensitivity)"]
["equalsREGEXTEST(TEXT,pattern,case_sensitivity)"]
["equalsREPLACE(old_text,start_num,num_chars,new_text)"]
["equalsREPLACEB(old_text,start_num,num_bytes,new_text)"]
["equalsREPT(TEXT,number_times)"]
["equalsRIGHT(TEXT,num_chars)"]
["equalsRIGHTB(TEXT,num_bytes)"]
["equalsROMAN(number,form)"]
["equalsROUND(number,num_digits)"]
["equalsROUNDBAHTDOWN(number)"]
["equalsROUNDBAHTUP(number)"]
["equalsROUNDDOWN(number,num_digits)"]
["equalsROUNDUP(number,num_digits)"]
["equalsROW(reference)"]
["equalsROWS(array)"]
["equalsRRI(NPER,PV,FV)"]
["equalsRSQ(known_y,known_x)"]
["equalsRTD(progID,server,topic1,topic2)"]
["equalsSCAN(initial_value,array,function)"]
["equalsSEARCH(find_text,within_text,start_num)"]
["equalsSEARCHB(find_text,within_text,start_num)"]
["equalsSEC(number)"]
["equalsSECH(number)"]
["equalsSECOND(serial_number)"]
["equalsSEQUENCE(ROWS,COLUMNS,start,step)"]
["equalsSERIESSUM(x,N,m,coefficients)"]
["equalsSHEET(VALUE)"]
["equalsSHEETS(reference)"]
["equalsSIGN(number)"]
["equalsSIN(number)"]
["equals@VALUE"]
["equalsSINH(number)"]
["equalsSKEW(number1,number2)"]
["equalsSKEW.P(number1,number2)"]
["equalsSLN(cost,salvage,life)"]
["equalsSLOPE(known_y,known_x)"]
["equalsSMALL(array,_k)"]
["equalsSORT(array,sort_index,sort_order,by_col)"]
["equalsSORTBY(array,by_array,sort_order)"]
["equalsSQRT(number)"]
["equalsSQRTPI(number)"]
["equalsSTANDARDIZE(x,mean,standard_dev)"]
["equalsSTDEV(number1,number2)"]
["equalsSTDEV.P(number1,number2)"]
["equalsSTDEV.S(number1,number2)"]
["equalsSTDEVA(number1,number2)"]
["equalsSTDEVP(number1,number2)"]
["equalsSTDEVPA(number1,number2)"]
["equalsSTEYX(known_y,known_x)"]
["equalsSTOCKHISTORY(stock,start_date,end_date,INTERVAL,headers,properties1)"]
["equalsSUBSTITUTE(TEXT,old_text,new_text,instance_num)"]
["equalsSUBTOTAL(function_num,_ref1)"]
["equalsSUM(number1,number2)"]
["equalsSUMIF(range,Criteria,sum_range)"]
["equalsSUMIFS(sum_range,criteria_range,Criteria)"]
["equalsSUMPRODUCT(array1,array2,array3)"]
["equalsSUMSQ(number1,number2)"]
["equalsSUMX2MY2(array_x,array_y)"]
["equalsSUMX2PY2(array_x,array_y)"]
["equalsSUMXMY2(array_x,array_y)"]
["equalsSWITCH(expression,value1,result1,default_or_value2,result2)"]
["equalsSYD(cost,salvage,life,per)"]
["equalsT(VALUE)"]
["equalsT.DIST(x,deg_freedom,cumulative)"]
["equalsT.DIST.2T(x,deg_freedom)"]
["equalsT.DIST.RT(x,deg_freedom)"]
["equalsT.INV(probability,deg_freedom)"]
["equalsT.INV.2T(probability,deg_freedom)"]
["equalsT.TEST(array1,array2,tails,TYPE)"]
["equalsTAKE(array,ROWS,COLUMNS)"]
["equalsTAN(number)"]
["equalsTANH(number)"]
["equalsTBILLEQ(settlement,maturity,discount)"]
["equalsTBILLPRICE(settlement,maturity,discount)"]
["equalsTBILLYIELD(settlement,maturity,pr)"]
["equalsTDIST(x,degrees_freedom,tails)"]
["equalsTEXT(VALUE,format_text)"]
["equalsTEXTAFTER(TEXT,delimiter,instance_num,ignore_case)"]
["equalsTEXTBEFORE(TEXT,delimiter,instance_num,ignore_case)"]
["equalsTEXTJOIN(delimiter,ignore_empty,text1)"]
["equalsTEXTSPLIT(TEXT,col_delimiter,row_delimiter,ignore_empty,pad_with)"]
["equalsTHAIDAYOFWEEK(number)"]
["equalsTHAIDIGIT(number)"]
["equalsTHAIMONTHOFYEAR(number)"]
["equalsTHAINUMSOUND(number)"]
["equalsTHAINUMSTRING(number)"]
["equalsTHAISTRINGLENGTH(TEXT)"]
["equalsTHAIYEAR(number)"]
["equalsTIME(HOUR,MINUTE,SECOND)"]
["equalsTIMEVALUE(time_text)"]
["equalsTINV(probability,degrees_freedom)"]
["equalsTOCOL(array,ignore,scan_by_column)"]
["equalsTODAY()"]
["equalsTOROW(array,ignore,scan_by_column)"]
["equalsTRANSLATE(TEXT,source_language,target_language)"]
["equalsTRANSPOSE(array)"]
["equalsTREND(known_y,known_x,new_x,const)"]
["equalsTRIM(TEXT)"]
["equalsTRIMMEAN(array,percent)"]
["equalsTRIMRANGE(range,row_trim_mode,col_trim_mode)"]
["equalsTRUE()"]
["equalsTRUE()"]
["equalsTRUNC(number,num_digits)"]
["equalsTTEST(array1,array2,tails,TYPE)"]
["equalsTYPE(VALUE)"]
["equalsUNICHAR(number)"]
["equalsUNICODE(TEXT)"]
["equalsUNIQUE(array,by_col,exactly_once)"]
["equalsUPPER(TEXT)"]
["equalsUSDOLLAR(number,decimals)"]
["equalsVALUE(TEXT)"]
["equalsVALUETOTEXT(VALUE,format)"]
["equalsVAR(number1,number2)"]
["equalsVAR.P(number1,number2)"]
["equalsVAR.S(number1,number2)"]
["equalsVARA(number1,number2)"]
["equalsVARP(number1,number2)"]
["equalsVARPA(number1,number2)"]
["equalsVDB(cost,salvage,life,start_period,end_period,factor,no_switch)"]
["equalsVLOOKUP(lookup_value,table_array,col_index_num,range_lookup)"]
["equalsVSTACK(array1,array2,)"]
["equalsWEBSERVICE(url)"]
["equalsWEEKDAY(serial_number,return_type)"]
["equalsWEEKNUM(serial_number,return_type)"]
["equalsWEIBULL(x,alpha,beta,cumulative)"]
["equalsWEIBULL.DIST(x,alpha,beta,cumulative)"]
["equalsWORKDAY(start_date,DAYS,holidays)"]
["equalsWORKDAY.INTL(start_date,DAYS,weekend,holidays)"]
["equalsWRAPCOLS(vector,wrap_count,pad_with)"]
["equalsWRAPROWS(vector,wrap_count,pad_with)"]
["equalsXIRR(values,dates,guess)"]
["equalsXLOOKUP(lookup_value,lookup_array,return_array,if_not_found,match_mode,search_mode)"]
["equalsXMATCH(lookup_value,lookup_array,match_mode,search_mode)"]
["equalsXNPV(RATE,values,dates)"]
["equalsXOR(logical1,logical2)"]
["equalsYEAR(serial_number)"]
["equalsYEARFRAC(start_date,end_date,basis)"]
["equalsYIELD(settlement,maturity,RATE,pr,redemption,FREQUENCY,basis)"]
["equalsYIELDDISC(settlement,maturity,pr,redemption,basis)"]
["equalsYIELDMAT(settlement,maturity,issue,RATE,pr,basis)"]
["equalsZ.TEST(array,x,sigma)"]
["equalsZTEST(array,x,sigma)"]

{"sheet":"Error codes","index":3,"n_rows":15,"n_cols":1,"rows_kept":15,"cut":false,"hidden":false,"merged":[]}
["Errors"]
[{"$error":"#DIV/0!"}]
[{"$error":"#VALUE!"}]
[{"$error":"#N/A"}]
[{"$error":"#REF!"}]
[{"$error":"#NAME?"}]
[{"$error":"#NULL!"}]
[{"$error":"#VALUE!"}]
[{"$error":"#NUM!"}]
[{"$error":"#VALUE!"}]
[{"$error":"#VALUE!"}]
[{"$error":"#VALUE!"}]
[{"$error":"#VALUE!"}]
[{"$error":"#N/A"}]
[{"$error":"#VALUE!"}]

{"sheet":"Translations","index":4,"n_rows":1052,"n_cols":5,"rows_kept":1052,"cut":false,"hidden":false,"merged":[]}
["ID","en-en","de-de","nl-nl","fr-fr"]
["lang.displaynames","English","Deutsch","Nederlands","Français"]
["cls.clsCircle.CannotBreakCircle.MsgBox","Cannot break circle, original formula not known.","Zirkel kann nicht aufgelöst werden, ursprüngliche Formel unbekannt.","Kring kan niet worden doorbroken; oorspronkelijke formule is onbekend.","Impossible de rompre la boucle ; formule d’origine inconnue."]
["cls.clsCircle.CannotRecreateCircle.MsgBox","Cannot recreate circle, original formula not known.","Zirkel kann nicht wiederhergestellt werden, ursprüngliche Formel unbekannt.","Kring kan niet worden hersteld; oorspronkelijke formule is onbekend.","Impossible de recréer la boucle ; formule d’origine inconnue."]
["cls.clsRefTree.CancelFindingDependents.MsgBox","You pressed Escape, do you wish to cancel the finding of Dependents?","Sie haben Esc gedrückt. Möchten Sie die Suche nach Nachfolgern abbrechen?","U drukte op Esc. Wilt u het zoeken naar doelcellen annuleren?","Vous avez appuyé sur Échap. Voulez‑vous annuler la recherche de dépendants ?"]
["cls.clsRefTree.WorkbookProtected.MsgBox","It appears your workbook contains protected worksheets._cr_Please unprotect all worksheets for best results.","Ihre Arbeitsmappe enthält offenbar geschützte Arbeitsblätter._cr_Bitte heben Sie den Schutz aller Arbeitsblätter für optimale Ergebnisse auf.","Uw werkmap bevat beveiligde werkbladen._cr_Hef de beveiliging van alle werkbladen op voor het beste resultaat.","Votre classeur contient des feuilles protégées._cr_Déprotégez toutes les feuilles pour de meilleurs résultats."]
["cls.clsSheetFormulas.Report.MultiCellsReferTo","_arg1_ cells refer to: _arg2_","_arg1_ Zellen verweisen auf: _arg2_","_arg1_ cellen verwijzen naar: _arg2_","_arg1_ cellules font référence à : _arg2_"]
["cls.clsSheetFormulas.Report.NoRefersFrom","Sheet '_arg1_' refers to no other sheets","Blatt '_arg1_' verweist auf keine anderen Blätter","Blad '_arg1_' verwijst niet naar andere bladen","La feuille '_arg1_' ne fait référence à aucune autre feuille"]
["cls.clsSheetFormulas.Report.NoRefersTo","No other sheet refers to '_arg1_'.","Kein anderes Blatt verweist auf '_arg1_'.","Geen ander blad verwijst naar '_arg1_'.","Aucune autre feuille ne fait référence à '_arg1_'."]
["cls.clsSheetFormulas.Report.OneCellReferTo","_arg1_ cell refers to: _arg2_","_arg1_ Zelle verweist auf: _arg2_","_arg1_ cel verwijst naar: _arg2_","_arg1_ cellule fait référence à : _arg2_"]
["cls.clsSheetFormulas.Report.ReferedFrom","_arg1_ cells on _arg2_ other worksheets refer to '_arg3_'.","_arg1_ Zellen auf _arg2_ anderen Arbeitsblättern verweisen auf '_arg3_'.","_arg1_ cellen op _arg2_ andere werkbladen verwijzen naar '_arg3_'.","_arg1_ cellules sur _arg2_ autres feuilles font référence à '_arg3_'."]
["cls.clsSheetFormulas.Report.ReferTo","_arg1_ cells on Sheet '_arg2_'","_arg1_ Zellen auf Blatt '_arg2_'","_arg1_ cellen op blad '_arg2_'","_arg1_ cellules sur la feuille '_arg2_'"]
["cls.clsSheetFormulas.Report.ReferToOther","_arg1_ cells on Sheet '_arg2_' refer to _arg3_ other worksheets.","_arg1_ Zellen auf Blatt '_arg2_' verweisen auf _arg3_ andere Arbeitsblätter.","_arg1_ cellen op blad '_arg2_' verwijzen naar _arg3_ andere werkbladen.","_arg1_ cellules sur la feuille '_arg2_' font référence à _arg3_ autres feuilles."]
["cls.clsUpdate.CheckFailed.MsgBox","Checking for updates has failed: Unable to fetch latest build number from jkp-ads.com","Die Updateprüfung ist fehlgeschlagen: Aktuelle Build‑Nummer von jkp-ads.com konnte nicht abgerufen werden","Bij het controleren op updates is een fout opgetreden: Kan nieuwste buildnummer niet ophalen van jkp-ads.com","La vérification des mises à jour a échoué : Impossible d’obtenir le numéro de build le plus récent depuis jkp-ads.com"]
["cls.clsUpdate.Failed.Msg","Updating _arg1_ has failed.","Aktualisierung von _arg1_ ist fehlgeschlagen.","Bijwerken van _arg1_ is mislukt.","La mise à jour de _arg1_ a échoué."]
["cls.clsUpdate.Success.Msg","Successfully updated the _arg1_ addin.","Das Add‑In _arg1_ wurde erfolgreich aktualisiert.","De _arg1_‑invoegtoepassing is succesvol bijgewerkt.","Le module complémentaire _arg1_ a été mis à jour avec succès."]
["cls.clsUpdate.SuccessRestart.Msg","Successfully updated the _arg1_ addin, please restart Excel to start using the new version!","Das Add‑In _arg1_ wurde erfolgreich aktualisiert. Bitte starten Sie Excel neu, um die neue Version zu verwenden!","De _arg1_‑invoegtoepassing is succesvol bijgewerkt. Herstart Excel om de nieuwe versie te gebruiken!","Le module complémentaire _arg1_ a été mis à jour avec succès. Veuillez redémarrer Excel pour utiliser la nouvelle version !"]
["cls.clsUpdate.UpdateAvailable.MsgBox","There is an update for _arg1_. _arg2_Do you wish to download and install this update?","Es gibt ein Update für _arg1_. _arg2_Möchten Sie dieses Update herunterladen und installieren?","Er is een update voor _arg1_. _arg2_Wilt u deze update downloaden en installeren?","Une mise à jour est disponible pour _arg1_. _arg2_Souhaitez‑vous la télécharger et l’installer ?"]
["cls.clsUpdate.UpToDate.MsgBox","_arg1_ is up to date.","_arg1_ ist auf dem neuesten Stand.","_arg1_ is up‑to‑date.","_arg1_ est à jour."]
["frm.DPB.Form.Caption","DPB=94378BC4F1789B0FF3AF022","DPB=94378BC4F1789B0FF3AF022","DPB=94378BC4F1789B0FF3AF022","DPB=94378BC4F1789B0FF3AF022"]
["frm.ufAbout.cmbClose.Accelerator.INIT","C","S","S","F"]
["frm.ufAbout.cmbClose.Caption.INIT","Close","Schließen","Sluiten","Fermer"]
["frm.ufAbout.Form.Caption.INIT","About _arg1_","Über _arg1_","Over _arg1_","À propos de _arg1_"]
["frm.ufAbout.Image1.ControlTipText.INIT","Click to go to our website","Hier klicken, um zu unserer Website zu gehen","Klik om naar onze website te gaan","Cliquez pour accéder à notre site web"]
["frm.ufAbout.lblApplication.Caption.INIT","RefTreeAnalyser For Excel (c)","RefTreeAnalyser für Excel (c)","RefTreeAnalyser voor Excel (c)","RefTreeAnalyser pour Excel (c)"]
["frm.ufAbout.lblAppNametxt.Caption.INIT","Application name:","Anwendungsname:","Naam toepassing:","Nom de l’application :"]
["frm.ufAbout.lblDate.Caption.INIT","Release date:","Veröffentlichungsdatum:","Publicatiedatum:","Date de publication :"]
["frm.ufAbout.lblLink.Caption.INIT","https://jkp-ads.com","https://jkp-ads.com","https://jkp-ads.com","https://jkp-ads.com"]
["frm.ufAbout.lblLink.ControlTipText.INIT","Click to go to our website","Hier klicken, um zu unserer Website zu gehen","Klik om naar onze website te gaan","Cliquez pour accéder à notre site web"]
["frm.ufAbout.lblProducedBy.Caption.INIT","This tool was brought to you by:_cr__cr_JKP Application Development Services","Dieses Tool wurde bereitgestellt von:_cr__cr_JKP Application Development Services","Dit hulpprogramma is mogelijk gemaakt door:_cr__cr_JKP Application Development Services","Cet outil vous est proposé par :_cr__cr_JKP Application Development Services"]
["frm.ufAbout.lblReleaseDatetxt.Caption.INIT","Release date:","Veröffentlichungsdatum:","Publicatiedatum:","Date de publication :"]
["frm.ufAbout.lblVersion.BuildLine.Caption","_arg1_ Build _arg2_","_arg1_ Build _arg2_","_arg1_ Build _arg2_","_arg1_ Build _arg2_"]
["frm.ufAbout.lblVersion.Caption.INIT","Version:","Version:","Versie:","Version :"]
["frm.ufAbout.lblVersion.RegisteredSuffix.Caption",", Registered Copy.",", Registrierte Kopie.",", Geregistreerde kopie.",", Copie enregistrée."]
["frm.ufAbout.lblVersion.UnregisteredSuffix.Caption",", Unregistered Copy.",", Nicht registrierte Kopie.",", Niet geregistreerde kopie.",", Copie non enregistrée."]
["frm.ufAbout.lblVersiontxt.Caption.INIT","Version:","Version:","Versie:","Version :"]
["frm.ufCircular.cbxHideSelfRefs.Accelerator.INIT","H","a","v","M"]
["frm.ufCircular.cbxHideSelfRefs.Caption.INIT","Hide self referencing cells","Zellen mit Selbstbezug ausblenden","Cellen die naar zichzelf verwijzen verbergen","Masquer les cellules auto-référencées"]
["frm.ufCircular.cmbClose.Accelerator.INIT","l","S","S","F"]
["frm.ufCircular.cmbClose.Caption.INIT","Close","Schließen","Sluiten","Fermer"]
["frm.ufCircular.cmbClose.ControlTipText.INIT","Closes this form","Schließt dieses Formular","Sluit dit formulier","Ferme ce formulaire"]
["frm.ufCircular.cmbReport.Accelerator.INIT","e","B","R","R"]
["frm.ufCircular.cmbReport.Caption.INIT","Report","Bericht","Rapport","Rapport"]
["frm.ufCircular.cmbReport.ControlTipText.INIT","Writes results to a worksheet","Schreibt Ergebnisse in ein Arbeitsblatt","Schrijft resultaten naar een werkblad","Écrit les résultats sur une feuille"]
["frm.ufCircular.Form.Caption.INIT","RefTreeAnalyser; Circular References","RefTreeAnalyser; Zirkelbezüge","RefTreeAnalyser; Kringverwijzingen","RefTreeAnalyser; Références circulaires"]
["frm.ufCircular.lblTitle.Caption.INIT","Circular References","Zirkelbezüge","Kringverwijzingen","Références circulaires"]
["frm.ufCircular.NoReferencesToReport.MsgBox","No references to report","Keine Verweise zu berichten","Geen verwijzingen om te rapporteren","Aucune référence à signaler"]
["frm.ufColors.cmbCancel.Accelerator.INIT","C","A","A","A"]
["frm.ufColors.cmbCancel.Caption.INIT","Cancel","Abbrechen","Annuleren","Annuler"]
["frm.ufColors.Form.Caption.INIT","Pick a color by clicking on it","Wählen Sie eine Farbe durch Anklicken","Kies een kleur door erop te klikken","Choisissez une couleur en cliquant dessus"]
["frm.ufFindASheet.cmbCancel.Accelerator.INIT","a","A","A","A"]
["frm.ufFindASheet.cmbCancel.Caption.INIT","Cancel","Abbrechen","Annuleren","Annuler"]
["frm.ufFindASheet.cmbCancel.ControlTipText.INIT","Closes form, doesn't change tabs (Escape)","Formular schließen, keine Registerwechsel (Esc)","Formulier sluiten, geen ander blad kiezen (Esc)","Ferme le formulaire, ne change pas d’onglet (Échap)"]
["frm.ufFindASheet.cmbOK.Accelerator.INIT","O","O","O","O"]
["frm.ufFindASheet.cmbOK.Caption.INIT","OK","OK","OK","OK"]
["frm.ufFindASheet.cmbOK.ControlTipText.INIT","Go to selected sheet (Enter)","Zum ausgewählten Blatt wechseln (Eingabe)","Ga naar geselecteerd blad (Enter)","Aller à la feuille sélectionnée (Entrée)"]
["frm.ufFindASheet.Form.Caption.INIT","RefTreeAnalyser; Find a Sheet","RefTreeAnalyser; Blatt suchen","RefTreeAnalyser; Zoek een blad","RefTreeAnalyser; Trouver une feuille"]
["frm.ufFindASheet.lblSearch.Accelerator.INIT","N","N","N","n"]
["frm.ufFindASheet.lblSearch.Caption.INIT","Name Contains","Name enthält","Naam bevat","Le nom contient"]
["frm.ufFindASheet.lblSheets.Accelerator.INIT","M","Ü","b","F"]
["frm.ufFindASheet.lblSheets.Caption.INIT","Matching Sheets","Übereinstimmende Blätter","Overeenkomende bladen","Feuilles correspondantes"]
["frm.ufFindASheet.lbxSheets.ControlTipText.INIT","Choose the sheet to activate (Click and press OK, or double-click)","Zu aktivierendes Blatt wählen (Klicken + OK oder Doppelklick)","Kies het te activeren blad (klik + OK of dubbelklik)","Choisir la feuille à activer (clic + OK ou double‑clic)"]
["frm.ufFindASheet.tbxSearch.ControlTipText.INIT","Filter list of sheets (case insensitive). Note: 'ab' will match both *ab* and *a*b*","Liste der Blätter filtern (Groß‑/Kleinschreibung ignoriert). Hinweis: 'ab' passt sowohl auf *ab* als auch auf *a*b*","Lijst met bladen filteren (niet hoofdlettergevoelig), Opmerking: 'ab' komt zowel met *ab* als met *a*b* overeen","Filtrer la liste des feuilles (insensible à la casse). Remarque : 'ab' correspond à la fois à *ab* et à *a*b*"]
["frm.ufFoundFormulas.cbbFilter.Items.All","All","Alle","Alle","Tous"]
["frm.ufFoundFormulas.cbbFilter.Items.HasHardcodedNumber","Has hardcoded number","Enthält fest codierte Zahl","Bevat hardgecodeerd getal","Contient un nombre codé en dur"]
["frm.ufFoundFormulas.cbxZoom.Accelerator.INIT","Z","Z","z","z"]
["frm.ufFoundFormulas.cbxZoom.Caption.INIT","Zoom worksheet to show all selected cells","Arbeitsblatt zoomen, um alle ausgewählten Zellen anzuzeigen","Werkblad zoomen om alle geselecteerde cellen te tonen","Ajuster le zoom pour afficher toutes les cellules sélectionnées"]
["frm.ufFoundFormulas.cmbClose.Accelerator.INIT","C","S","S","F"]
["frm.ufFoundFormulas.cmbClose.Caption.INIT","Close","Schließen","Sluiten","Fermer"]
["frm.ufFoundFormulas.cmbNext.Accelerator.INIT","N","W","V","S"]
["frm.ufFoundFormulas.cmbNext.Caption.INIT","Next","Weiter","Volgende","Suivant"]
["frm.ufFoundFormulas.cmbPrevious.Accelerator.INIT","P","u","o","P"]
["frm.ufFoundFormulas.cmbPrevious.Caption.INIT","Previous","Zurück","Vorige","Précédent"]
["frm.ufFoundFormulas.cmbReferences.Accelerator.INIT","R","V","w","R"]
["frm.ufFoundFormulas.cmbReferences.Caption.INIT","References","Verweise","Verwijzingen","Références"]
["frm.ufFoundFormulas.cmbReferences.ControlTipText.INIT","Analyse the dependents for the selected item","Nachfolger für das ausgewählte Element analysieren","Analyseer de doelcellen voor het geselecteerde item","Analyser les dépendants pour l’élément sélectionné"]
["frm.ufFoundFormulas.cmbReport.Accelerator.INIT","e","B","R","a"]
["frm.ufFoundFormulas.cmbReport.Caption.INIT","Report","Bericht","Rapport","Rapport"]
["frm.ufFoundFormulas.cmbReport.ControlTipText.INIT","Writes results to a worksheet","Schreibt Ergebnisse in ein Arbeitsblatt","Schrijft resultaten naar een werkblad","Écrit les résultats sur une feuille"]
["frm.ufFoundFormulas.cmbShowAllOnSheet.Accelerator.INIT","H","H","M","u"]
["frm.ufFoundFormulas.cmbShowAllOnSheet.Caption.INIT","Highlight","Hervorheben","Markeren","Surligner"]
["frm.ufFoundFormulas.cmbShowAllOnSheet.ControlTipText.INIT","Highlight all found formula blocks on the worksheet","Alle gefundenen Formularblöcke auf dem Arbeitsblatt hervorheben","Alle gevonden formuleblokken op het werkblad markeren","Surligner tous les blocs de formules trouvés sur la feuille"]
["frm.ufFoundFormulas.Form.Caption.INIT","RefTreeAnalyser; Found formulas in range","RefTreeAnalyser; Gefundene Formeln in Bereich","RefTreeAnalyser; Gevonden formules in bereik","RefTreeAnalyser ; Formules trouvées dans la plage"]
["frm.ufFoundFormulas.lblFilter.Accelerator.INIT","S","A","T","i"]
["frm.ufFoundFormulas.lblFilter.Caption.INIT","Show","Anzeigen","Tonen","Afficher"]
["frm.ufFoundFormulas.lblFormula.Caption.INIT","Select an item to display the formula here","Wählen Sie ein Element aus, um die Formel hier anzuzeigen","Selecteer een item om de formule hier weer te geven","Sélectionnez un élément pour afficher la formule ici"]
["frm.ufFoundFormulas.lblTitle.Caption.INIT","Label1","Label1","Label1","Label1"]
["frm.ufFoundFormulas.Node.Prefix","Formulas found in worksheet","Formeln gefunden im Arbeitsblatt","Formules gevonden in werkblad","Formules trouvées dans la feuille"]
["frm.ufFoundFormulas.NoFormulasFound.Node","Could not find any formula","Keine Formel gefunden","Geen formule gevonden","Aucune formule trouvée"]
["frm.ufFoundFormulas.NoFormulasFoundInWorkbook","No formulas found in workbook","Keine Formeln in Arbeitsmappe gefunden","Geen formules in werkmap gevonden","Aucune formule trouvée dans le classeur"]
["frm.ufFoundFormulas.Root.HardcodedNumbers.Prefix","Formulas with hard coded numbers found in worksheet","Formeln mit fest codierten Zahlen im Arbeitsblatt gefunden","Formules met hardcoded getallen gevonden in werkblad","Formules avec des nombres codés en dur trouvées dans la feuille"]
["frm.ufObjectRefs.cbxTile.Accelerator.INIT","T","N","N","C"]
["frm.ufObjectRefs.cbxTile.Caption.INIT","Tile","Nebeneinander","Naast elkaar","Côte à côte"]
["frm.ufObjectRefs.cbxTile.ControlTipText.INIT","Tile windows","Fenster nebeneinander anzeigen","Vensters naast elkaar schikken","Fenetre Côte à côte"]
["frm.ufObjectRefs.ChartOnSheetNode.Caption","Chart on _arg1_","Diagramm auf _arg1_","Grafiek op _arg1_","Graphique sur _arg1_"]
["frm.ufObjectRefs.cmbClose.Accelerator.INIT","l","S","S","F"]
["frm.ufObjectRefs.cmbClose.Caption.INIT","Close","Schließen","Sluiten","Fermer"]
["frm.ufObjectRefs.cmbClose.ControlTipText.INIT","Closes this form","Schließt dieses Formular","Sluit dit formulier","Ferme ce formulaire"]
["frm.ufObjectRefs.cmbReport.Accelerator.INIT","e","B","R","R"]
["frm.ufObjectRefs.cmbReport.Caption.INIT","Report","Bericht","Rapport","Rapport"]
["frm.ufObjectRefs.cmbReport.ControlTipText.INIT","Writes results to a worksheet","Schreibt Ergebnisse in ein Arbeitsblatt","Schrijft resultaten naar een werkblad","Écrit les résultats sur une feuille"]
["frm.ufObjectRefs.Form.Caption.INIT","RefTreeAnalyser; Cells in use by objects","RefTreeAnalyser; Von Objekten verwendete Zellen","RefTreeAnalyser; Cellen gebruikt door objecten","RefTreeAnalyser ; Cellules utilisées par des objets"]
["frm.ufObjectRefs.HyperlinksNode.Caption","Hyperlinks","Hyperlinks","Hyperlinks","Liens hypertexte"]
["frm.ufObjectRefs.lblError.Caption","_arg1_ Errors encountered, click here to see them.","_arg1_ Fehler aufgetreten, hier klicken, um sie anzuzeigen.","Er zijn _arg1_ fouten opgetreden, klik hier om ze te bekijken.","_arg1_ erreurs ont été rencontrées, cliquez ici pour les voir."]
["frm.ufObjectRefs.lblFilter.Accelerator.INIT","F","F","F","i"]
["frm.ufObjectRefs.lblFilter.Caption.INIT","Filter","Filtern","Filteren","Filtrer"]
["frm.ufObjectRefs.lblTitle.Caption","Ranges used by '_arg1_ ' on worksheet '_arg2_'","Verwendete Bereiche von '_arg1_' auf Blatt '_arg2_'","Bereiken gebruikt door '_arg1_' op blad '_arg2_'","Plages utilisées par '_arg1_' dans feuille '_arg2_'"]
["frm.ufObjectRefs.lblTitle.Caption.INIT","Ranges used by Objects in your file","Von Objekten in Ihrer Datei verwendete Bereiche","Bereiken gebruikt door objecten in uw bestand","Plages utilisées par des objets dans votre fichier"]
["frm.ufObjectRefs.NodeSuffix.NObjects","(_arg1_ objects)","(_arg1_ Objekte)","(_arg1_ objecten)","(_arg1_ objets)"]
["frm.ufObjectRefs.NodeSuffix.OneObject","(1 object)","(1 Objekt)","(1 object)","(1 objet)"]
["frm.ufObjectRefs.PowerQueryMCode","PowerQuery M-code","PowerQuery M-Code","PowerQuery M-code","Code M PowerQuery"]
["frm.ufObjectRefs.Progress.FillingTree","Filling tree with found objects","Baum mit gefundenen Objekten füllen","Boom vullen met gevonden objecten","Remplissage de l’arborescence avec les objets trouvés"]
["frm.ufObjectRefs.Progress.SortingTree","sorting nodes","Sortieren","Sorteren","Tri des nœuds"]
["frm.ufObjectRefs.QueryPrefix","Query: _arg1_","Abfrage: _arg1_","Query: _arg1_","Requête: _arg1_"]
["frm.ufObjectRefs.RootCaption","Object References in ","Objektverweise in","Objectverwijzingen in","Références d’objet dans"]
["frm.ufObjectRefs.RootCaption.NoObjects","No Object References found","Keine Objektreferenzen gefunden","Geen objectverwijzingen gevonden","Aucune référence d’objet trouvée"]
["frm.ufObjectRefs.tbxFilter.ControlTipText.INIT","Only show items which contain (Enter to invoke)","Nur Elemente anzeigen, die Folgendes enthalten (Eingabetaste zum Anwenden)","Alleen items tonen die dit bevatten (Enter om toe te passen)","Afficher uniquement les éléments contenant (Entrée pour valider)"]
["frm.ufProgress.CellProgress","Cell _arg1_ (_arg2_ of _arg3_)","Zelle _arg1_ (_arg2_ von _arg3_)","Cel _arg1_ (_arg2_ van _arg3_)","Cellule _arg1_ (_arg2_ sur _arg3_)"]
["frm.ufProgress.cmbStop.Accelerator.INIT","S","S","S","A"]
["frm.ufProgress.cmbStop.Caption.INIT","Stop","Stopp","Stop","Arrêter"]
["frm.ufProgress.Detail.BackupSaved","backup saved","Sicherung gespeichert","back‑up opgeslagen","sauvegarde enregistrée"]
["frm.ufProgress.Detail.CheckingCircle","checking circle","Zirkel prüfen","kring controleren","vérification du cercle"]
["frm.ufProgress.Detail.DistinctFormulasFound","Found _arg1_ distinct formulas in range","_arg1_ unterschiedliche Formeln im Bereich gefunden","_arg1_ unieke formules gevonden in bereik","_arg1_ formules distinctes trouvées dans la plage"]
["frm.ufProgress.Detail.EnablingSheetsToCalculate","Enabling all sheets to calculate","Berechnen aktivieren für alle Blätter","Berekening inschakelen voor alle bladen ","Activation du calcul pour toutes les feuilles"]
["frm.ufProgress.Detail.GroupingCellsForXofYFormulas","Grouping cells for _arg1_ of _arg2_ formulas found","Zellen gruppieren für _arg1_ von _arg2_ gefundenen Formeln","Cellen groeperen voor _arg1_ van _arg2_ gevonden formules","Regroupement des cellules pour _arg1_ sur _arg2_ formules trouvées"]
["frm.ufProgress.Detail.TimingFormulasXofY","Timing formulas, _arg1_/_arg2_","Formeln messen, _arg1_/_arg2_","Formules timen, _arg1_/_arg2_","Chronométrage des formules, _arg1_/_arg2_"]
["frm.ufProgress.Detail.TimingFullDirtyRecalc","Timing full dirty recalc","Zeitmessung: vollständige Neuberechnung (dirty)","Tijdmeting: volledige herberekening (dirty)","Chronométrage : recalcul complet (dirty)"]
["frm.ufProgress.Detail.TimingFullRecalc","Timing full recalc","Zeitmessung: vollständige Neuberechnung","Tijdmeting: volledige herberekening","Chronométrage : recalcul complet"]
["frm.ufProgress.Detail.TimingRecalcOfEachSheet","Timing recalc of each sheet","Neuberechnung jeder Tabelle zeitlich messen","Tijd meten van herberekening per blad","Chronométrer le recalcul de chaque feuille"]
["frm.ufProgress.Form.Caption.INIT","ReftreeAnalyser; Progress","RefTreeAnalyser; Fortschritt","RefTreeAnalyser; Voortgang","RefTreeAnalyser ; Progression"]
["frm.ufProgress.lblProgress11.Caption.INIT"," "," "," "," "]
["frm.ufProgress.lblProgress12.Caption.INIT"," "," "," "," "]
["frm.ufProgress.lblProgress21.Caption.INIT"," "," "," "," "]
["frm.ufProgress.lblProgress22.Caption.INIT"," "," "," "," "]
["frm.ufProgress.lblProgress31.Caption.INIT"," "," "," "," "]
["frm.ufProgress.lblProgress32.Caption.INIT"," "," "," "," "]
["frm.ufProgress.lblStopMsg.Caption.INIT","Click stop to abort the current process (current action will be completed first!)","Klicken Sie auf Stopp, um den aktuellen Vorgang abzubrechen (die aktuelle Aktion wird zuerst abgeschlossen!)","Klik op Stop om het huidige proces te stoppen (de huidige actie wordt eerst voltooid!)","Cliquez sur Arrêter pour interrompre le processus en cours (l’action en cours sera d’abord terminée !)"]
["frm.ufProgress.lblTitle.Caption.INIT","Finding Dependents/Precedents","Suche Nachfolger/Vorgänger","Zoeken naar doelcellen/broncellen","Recherche des dépendants/antécédents"]
["frm.ufProgress.ProgressBarsIssue.MsgBox","RefTreeAnalyser detected a problem with its progress bars._cr_Progress will be displayed on the status bar to ensure acceptable performance.","RefTreeAnalyser hat ein Problem mit seinen Fortschrittsbalken erkannt._cr_Der Fortschritt wird in der Statusleiste angezeigt, um eine akzeptable Leistung sicherzustellen.","RefTreeAnalyser heeft een probleem met tonen van de voortgangsbalken gedetecteerd._cr_De voortgang wordt vanaf nu in de statusbalk weergegeven voor betere prestaties.","RefTreeAnalyser a détecté un problème avec ses barres de progression._cr_Le progrès sera affiché dans la barre d’état pour garantir des performances acceptables."]
["frm.ufProgress.StopCurrentProcessPrompt.MsgBox","Are you sure you want to stop the current process?","Möchten Sie den aktuellen Prozess wirklich beenden?","Weet u zeker dat u het huidige proces wilt stoppen?","Voulez‑vous vraiment arrêter le processus en cours ?"]
["frm.ufProgress.Stopping","Stopping.....","Wird angehalten.....","Bezig met stoppen.....","Arrêt en cours....."]
["frm.ufProgress.Subtitle.AnalysingFormulasOfAddress","Analysing formulas of _arg1_","Formeln von _arg1_ analysieren","Formules analyseren van _arg1_","Analyse des formules de _arg1_"]
["frm.ufProgress.Subtitle.AnalysingFormulasOfWorksheet","Analysing formulas of _arg1_","Formeln von _arg1_ analysieren","Formules analyseren van _arg1_","Analyse des formules de _arg1_"]
["frm.ufProgress.Subtitle.AnalysingWorksheetStatistics","Analysing worksheet statistics","Arbeitsblattstatistiken werden analysiert","Werkbladstatistieken analyseren","Analyse des statistiques de feuille"]
["frm.ufProgress.Subtitle.CheckingObjectsOnSheet","Checking objects on _arg1_","Objekte auf _arg1_ werden geprüft","Objecten op _arg1_ controleren","Vérification des objets sur _arg1_"]
["frm.ufProgress.Subtitle.CheckingQueries","Checking Queries","Abfragen prüfen","Query's controleren","Vérification des requêtes"]
["frm.ufProgress.Subtitle.ScanningFormulaCells","Scanning formula cells","Formelzellen werden gescannt","Formulecellen scannen","Analyse des cellules de formule"]
["frm.ufProgress.Subtitle.ScanningFormulaCellsFoundCount","Scanning formula cells; found _arg1_ circles","Formelzellen werden gescannt ; _arg1_ Zirkel gefunden","Formulecellen scannen; _arg1_ cirkels gevonden","Analyse des cellules de formule ; _arg1_ boucles trouvées"]
["frm.ufProgress.Title.AnalysingFormulas","RefTreeAnalyser: Analysing formulas","RefTreeAnalyser: Analysiere Formeln","RefTreeAnalyser : Formules analyseren","RefTreeAnalyser : Analyse des formules"]
["frm.ufProgress.Title.AnalysingWorksheetStatistics","RefTreeAnalyser: Analysing worksheet statistics","RefTreeAnalyser: Arbeitsblattstatistiken werden analysiert","RefTreeAnalyser: Werkbladstatistieken analyseren","RefTreeAnalyser : analyse des statistiques de feuille"]
["frm.ufProgress.Title.CheckingObjectsForReferences","Checking objects for references","Objekte auf Verweise prüfen","Objecten controleren op verwijzingen","Vérification des objets pour les références"]
["frm.ufProgress.Title.CheckingObjectsInWorkbook","Checking objects in _arg1_","Objekte in _arg1_ prüfen","Objecten in _arg1_ controleren","Vérification des objets dans _arg1_"]
["frm.ufProgress.Title.ShowingFormulasOfAddress","Showing formulas of _arg1_","Formeln von _arg1_ anzeigen","Formules van _arg1_ tonen","Affichage des formules de _arg1_"]
["frm.ufProgress.WorksheetPrefix","Worksheet: ","Arbeitsblatt: ","Werkblad: ","Feuille : "]
["frm.ufPW.cbxShowText.Accelerator.INIT","S","Z","T","c"]
["frm.ufPW.cbxShowText.Caption.INIT","Show characters","Zeichen anzeigen","Tekens weergeven","Afficher les caractères"]
["frm.ufPW.cbxStopUnprot.Accelerator.INIT","u","E","b","r"]
["frm.ufPW.cbxStopUnprot.Caption.INIT","Stop unprotecting sheets","Entsperren von Blättern stoppen","Ontgrendelen van bladen stoppen","Arrêter le déverrouillage des feuilles"]
["frm.ufPW.cbxStopUnprot.DisableConfirm.MsgBox","Are you sure you want to disable unprotecting sheets?_cr_Please note you can turn this back on in the settings screen.","Sind Sie sicher, dass Sie das Entsperren von Blättern deaktivieren möchten?_cr_Bitte beachten Sie, dass Sie dies im Einstellungsfenster wieder aktivieren können.","Weet u zeker dat u het ontgrendelen van bladen wilt uitschakelen?_cr_Let op: u kunt dit later weer inschakelen in het instellingenvenster.","Voulez‑vous vraiment désactiver le déverrouillage des feuilles ?_cr_Vous pourrez réactiver cette option dans l’écran des paramètres."]
["frm.ufPW.cmbCancel.Accelerator.INIT","C","A","A","A"]
["frm.ufPW.cmbCancel.Caption.INIT","Cancel","Abbrechen","Annuleren","Annuler"]
["frm.ufPW.cmbOK.Accelerator.INIT","O","O","O","O"]
["frm.ufPW.cmbOK.Caption.INIT","OK","OK","OK","OK"]
["frm.ufPW.EnterPasswordToUnprotect","Please enter password to unprotect _arg1_","Bitte geben Sie das Kennwort zum Aufheben des Schutzes von _arg1_ ein","Voer een wachtwoord in om _arg1_ te ontgrendelen","Veuillez saisir le mot de passe pour retirer la protection de _arg1_"]
["frm.ufPW.Form.Caption.INIT","RefTreeAnalyser; Unprotecting worksheets","RefTreeAnalyser; Arbeitsblätter entsperren","RefTreeAnalyser; Bladbeveiliging opheffen","RefTreeAnalyser ; Annulation de la protection des feuilles"]
["frm.ufPW.lblTitle.Caption.INIT","Please enter the worksheet password","Bitte geben Sie das Arbeitsblattkennwort ein","Voer het werkbladwachtwoord in","Veuillez saisir le mot de passe de la feuille"]
["frm.ufReferences.cbbLevel.ControlTipText.INIT","Select number of levels to trace","Anzahl der Ebenen zum Nachverfolgen wählen","Aantal niveaus selecteren om te traceren","Sélectionner le nombre de niveaux à tracer"]
["frm.ufReferences.cbxArrows.Accelerator.INIT","w","P","P","h"]
["frm.ufReferences.cbxArrows.Caption.INIT","Arrows","Pfeile","Pijlen","Flèches"]
["frm.ufReferences.cbxArrows.ControlTipText.INIT","Show precedent/Dependents arrows","Vorgänger-/Nachfolgerpfeile anzeigen","Pijlen voor bron-/doelcellen tonen","Afficher les flèches antécédents/dépendants"]
["frm.ufReferences.cbxAutoUpdate.Accelerator.INIT","u","u","u","u"]
["frm.ufReferences.cbxAutoUpdate.Caption.INIT","Auto","Auto","Auto","Auto"]
["frm.ufReferences.cbxAutoUpdate.ControlTipText.INIT","Check to automatically do the active cell","Automatisch die aktive Zelle verarbeiten","De actieve cel automatisch analyseren","Traiter automatiquement la cellule active"]
["frm.ufReferences.cbxObjects.Accelerator.INIT","O","O","O","O"]
["frm.ufReferences.cbxObjects.Caption.INIT","Objects","Objekte","Objecten","Objets"]
["frm.ufReferences.cbxObjects.ControlTipText.INIT","Include objects in Precedents/Dependents analysis","Objekte in Vorgänger-/Nachfolgeranalyse einbeziehen","Objecten opnemen in bron-/doelcellen analyse","Inclure les objets dans antécédents/dépendants"]
["frm.ufReferences.cbxTile.Accelerator.INIT","T","i","l","e"]
["frm.ufReferences.cbxTile.Caption.INIT","Tile","Nebeneinander","Naast elkaar","Côte à côte"]
["frm.ufReferences.cbxTile.ControlTipText.INIT","Tile windows","Fenster nebeneinander anzeigen","Vensters naast elkaar schikken","Fenetre Côte à côte"]
["frm.ufReferences.cmbClose.Accelerator.INIT","l","S","S","F"]
["frm.ufReferences.cmbClose.Caption.INIT","Close","Schließen","Sluiten","Fermer"]
["frm.ufReferences.cmbClose.ControlTipText.INIT","Closes this form (Current selection remains selected. Press Escape to return to where you started analyzing)","Schließt dieses Formular (aktuelle Auswahl bleibt bestehen. Drücken Sie Esc, um zurückzukehren)","Sluit dit formulier (huidige selectie blijft geselecteerd. Druk op Esc om terug te keren naar waar de analyse begon)","Ferme ce formulaire (la sélection actuelle reste sélectionnée. Appuyez sur Échap pour revenir)"]
["frm.ufReferences.cmbClose2.Caption.INIT","Close","Schließen","Sluiten","Fermer"]
["frm.ufReferences.cmbClose2.ControlTipText.INIT","Closes this form","Schließt dieses Formular","Sluit dit formulier","Ferme ce formulaire"]
["frm.ufReferences.cmbEditFormula.Accelerator.INIT","E","r","w","M"]
["frm.ufReferences.cmbEditFormula.Caption.INIT","Edit Audit Cell","Zelle bearbeiten","Bewerk cel","Modifier cellule"]
["frm.ufReferences.cmbEditFormula.ControlTipText.INIT","Edit the formula of the cell","Formel der Zelle bearbeiten","De formule van de cel bewerken","Modifier la formule de la cellule"]
["frm.ufReferences.cmbGotoSheet.Accelerator.INIT","s","Z","G","i"]
["frm.ufReferences.cmbGotoSheet.Caption.INIT","Goto sheet","Zum Blatt wechseln","Ga naar blad","Aller à la feuille"]
["frm.ufReferences.cmbGotoSheet.ControlTipText.INIT","Go to the worksheet","Zum Arbeitsblatt wechseln","Naar het werkblad gaan","Aller à la feuille"]
["frm.ufReferences.cmbRedoFromActive.Accelerator.INIT","A","A","A","t"]
["frm.ufReferences.cmbRedoFromActive.Caption.INIT","Do ActiveCell","Aktive Zelle","Actieve cel","Cellule active"]
["frm.ufReferences.cmbRedoFromActive.ControlTipText.INIT","Lists precedents and dependents of current cell","Listet Vorgänger und Nachfolger der aktuellen Zelle auf","Analyseert broncellen en doelcellen van de huidige cel","Liste les antécédents et dépendants de la cellule actuelle"]
["frm.ufReferences.cmbReport.Accelerator.INIT","R","c","R","R"]
["frm.ufReferences.cmbReport.Caption.INIT","Report","Bericht","Rapport","Rapport"]
["frm.ufReferences.cmbReport.ControlTipText.INIT","Writes results to a worksheet","Schreibt Ergebnisse in ein Arbeitsblatt","Schrijft resultaten naar een werkblad","Écrit les résultats sur une feuille"]
["frm.ufReferences.cmbSmallPrecsForm.Caption.INIT","^","^","^","^"]
["frm.ufReferences.cmbSmallPrecsForm.ControlTipText.INIT","Show small precedents screen","Kleines Vorgängerfenster anzeigen","Klein broncellen‑scherm tonen","Afficher l’écran des antécédents compact"]
["frm.ufReferences.Export.Header.ReferredFrom","Referred to from","Verwiesen von","Verwezen vanuit","Référencé depuis"]
["frm.ufReferences.Export.Header.RefersTo","Refers to","Verweist auf","Verwijst naar","Fait référence à"]
["frm.ufReferences.Export.Header.Values","Value(s)","Wert(e)","Waarde(n)","Valeur(s)"]
["frm.ufReferences.Form.Caption.INIT","RefTreeAnalyser: Tracing Cell dependents and precedents","RefTreeAnalyser:  Vorgänger und Nachfolger anzeigen","RefTreeAnalyser: Bron- en doelcellen weergeven","RefTreeAnalyser: les antécédents et dépendants de la cellule"]
["frm.ufReferences.frmSettings.Caption.INIT","Settings","Einstellungen","Instellingen","Paramètres"]
["frm.ufReferences.Label1.Caption.INIT","hier links staan twee buttons van 1 hoog bij 1 breed; cmbClose2 en cmbGotoSheet","Hier links befinden sich zwei Schaltflächen mit einer Höhe von 1 und einer Breite von 1; cmbClose2 und cmbGotoSheet.","hier links staan twee buttons van 1 hoog bij 1 breed; cmbClose2 en cmbGotoSheet","hier links staan twee buttons van 1 hoog bij 1 breed; cmbClose2 en cmbGotoSheet"]
["frm.ufReferences.lblActiveCell.Caption.INIT","Formula of Active Cell:","Formel der aktiven Zelle:","Formule van de actieve cel:","Formule de la cellule active :"]
["frm.ufReferences.lblActiveCell.RangeName.Caption","Formula of range name :_arg1_","Formel des Bereichsnamens: _arg1_","Formule van bereiknaam : _arg1_","Formule du nom de plage : _arg1_"]
["frm.ufReferences.lblDependents.Accelerator.INIT","D","N","D","D"]
["frm.ufReferences.lblDependents.Caption.INIT","Dependents","Nachfolger","Doelcellen","Dépendants"]
["frm.ufReferences.lblFormulaTitle.Caption","Formula of cell: _arg1_ | _arg2_","Formel der Zelle: _arg1_ | _arg2_","Formule van cel: _arg1_ | _arg2_","Formule de la cellule : _arg1_ | _arg2_"]
["frm.ufReferences.lblFormulaTitle.Caption.INIT","Formula of Audited Cell:","Formel der geprüften Zelle:","Formule van de gecontroleerde cel:","Formule de la cellule auditée :"]
["frm.ufReferences.lblFormulaTitle.Caption.Prefix","Formula of cell: ","Formel der Zelle:","Formule van de cel:","Formule de la cellule :"]
["frm.ufReferences.lblLevel.Accelerator.INIT","v","E","N","N"]
["frm.ufReferences.lblLevel.Caption.INIT","Levels","Ebenen","Niveaus","Niveaux"]
["frm.ufReferences.lblPrecedents.Accelerator.INIT","P","V","c","A"]
["frm.ufReferences.lblPrecedents.Caption.INIT","Precedents","Vorgänger","Broncellen","Antécédents"]
["frm.ufReferences.lblTitle.Accelerator.INIT","F","V","V","C"]
["frm.ufReferences.lblTitle.Caption.INIT","From Cell:","Von Zelle:","Van cel:","Depuis la cellule :"]
["frm.ufReferences.lblWarning.ObjectRefsOnlyRegistered.Caption","Object references found, only the registered version shows them","Objektreferenzen gefunden, nur die registrierte Version zeigt sie an","Objectverwijzingen gevonden; alleen de geregistreerde versie toont ze","Références d’objet trouvées ; seule la version enregistrée les affiche"]
["frm.ufReferences.lblWarning.UserCancelled.Caption","Warning: user cancelled; Possibly not all items shown.","Warnung: Vom Benutzer abgebrochen; möglicherweise werden nicht alle Elemente angezeigt.","Waarschuwing: door gebruiker geannuleerd; Mogelijk niet alle items getoond.","Avertissement : annulation par l’utilisateur ; Il est possible que tous les éléments ne soient pas affichés."]
["frm.ufReferences.lbxPreviousCells.ControlTipText.INIT","Click to redo previously analysed cells","Klicken, um zuvor analysierte Zellen erneut zu untersuchen","Klik om eerder geanalyseerde cellen opnieuw uit te voeren","Cliquer pour relancer l’analyse des cellules précédentes"]
["frm.ufReferences.NoReferencesToReport.MsgBox","No references to report","Keine Verweise zu berichten","Geen verwijzingen om te rapporteren","Aucune référence à signaler"]
["frm.ufReferences.obtBoth.Accelerator.INIT","B","B","i","L"]
["frm.ufReferences.obtBoth.Caption.INIT","Both","Beide","Beide","Les deux"]
["frm.ufReferences.obtBoth.ControlTipText.INIT","Show both precedents and dependents","Sowohl Vorgänger als auch Nachfolger anzeigen","Zowel broncellen als doelcellen tonen","Afficher à la fois antécédents et dépendants"]
["frm.ufReferences.obtDeps.Accelerator.INIT","n","N","D","D"]
["frm.ufReferences.obtDeps.Caption.INIT","Depen.","Nachf.","Doel.","Dép."]
["frm.ufReferences.obtDeps.ControlTipText.INIT","Only show dependents","Nur Nachfolger anzeigen","Alleen doelcellen tonen","Afficher uniquement les dépendants"]
["frm.ufReferences.obtPrecs.Accelerator.INIT","c","V","B","A"]
["frm.ufReferences.obtPrecs.Caption.INIT","Prec.","Vorg.","Bron.","Antéc."]
["frm.ufReferences.obtPrecs.ControlTipText.INIT","Only show precedents","Nur Vorgänger anzeigen","Alleen broncellen tonen","Afficher uniquement les antécédents"]
["frm.ufReferences.tbxFormula.ControlTipText.INIT","Edit the formula and hit the TAB key to confirm changes","Formel bearbeiten und mit der TAB‑Taste bestätigen","Bewerk de formule en druk op TAB om te bevestigen","Modifier la formule puis appuyer sur Tab pour valider"]
["frm.ufReferences.tbxFormula.Prefix","Formula of: _arg1_","Formel von: _arg1_","Formule van: _arg1_","Formule de : _arg1_"]
["frm.ufReferences.UpdateWorksheetWithNewFormulaPrompt.MsgBox","You have changed the formula of the analysed cell. Update the worksheet with this new formula?","Sie haben die Formel der analysierten Zelle geändert. Arbeitsblatt mit dieser neuen Formel aktualisieren?","U hebt de formule van de geanalyseerde cel gewijzigd. Het werkblad bijwerken bij met deze nieuwe formule?","Vous avez modifié la formule de la cellule analysée. Mettre à jour la feuille avec cette nouvelle formule ?"]
["frm.ufReferences.WorksheetProtectedHiddenFormulas.MsgBox","It appears this worksheet is protected and that formulas are hidden._cr_Hence I will not be able to analyse the reference tree.","Es scheint, dass dieses Arbeitsblatt geschützt ist und die Formeln verborgen sind._cr_Daher kann der Referenzbaum nicht analysieret werden.","Het lijkt erop dat dit werkblad is beveiligd en dat formules verborgen zijn._cr_Daarom kan ik de verwijzingen niet analyseren.","Il semble que cette feuille soit protégée et que les formules soient masquées._cr_Je ne pourrai donc pas analyser l’arbre des références"]
["frm.ufSettings.cbbLanguage.ControlTipText.INIT","Select display language","Anzeigesprache auswählen","Weergavetaal kiezen","Choisir la langue d’affichage"]
["frm.ufSettings.cbbLevels.ControlTipText.INIT","The default number of levels for tracine precedents and dependents","Standardanzahl Ebenen für Nachverfolgung von Vorgängern und Nachfolgern","Standaardaantal niveaus voor traceren van broncellen en doelcellen","Nombre de niveaux par défaut pour le traçage des antécédents et dépendants"]
["frm.ufSettings.cbxAuto.Accelerator.INIT"]
["frm.ufSettings.cbxAuto.Caption.INIT","Check for updates automatically","Automatisch nach Updates suchen","Automatisch op updates controleren","Rechercher autom. les mises à jour"]
["frm.ufSettings.cbxAuto.ControlTipText.INIT","Automatically check for updates (once a week)","Automatisch nach Updates suchen (wöchentlich)","Automatisch op updates controleren (wekelijks)","Vérifier automatiquement les mises à jour (une fois par semaine)"]
["frm.ufSettings.cbxCheckFormulasAlt.Caption.INIT","Alt","Alt","Alt","Alt"]
["frm.ufSettings.cbxCheckFormulasAlt.ControlTipText.INIT","Check this box if you want to use the Alt key","Aktivieren, um die Alt-Taste zu verwenden","Schakel in om de Alt-toets te gebruiken","Cochez pour utiliser la touche Alt"]
["frm.ufSettings.cbxCheckFormulasCtrl.Caption.INIT","Ctrl","Strg","Ctrl","Ctrl"]
["frm.ufSettings.cbxCheckFormulasCtrl.ControlTipText.INIT","Check this box if you want to use the control key","Aktivieren, um die Strg-Taste zu verwenden","Schakel in om de Ctrl-toets te gebruiken","Cochez pour utiliser la touche Ctrl"]
["frm.ufSettings.cbxCircAlt.Caption.INIT","Alt","Alt","Alt","Alt"]
["frm.ufSettings.cbxCircAlt.ControlTipText.INIT","Check this box if you want to use the Alt key","Aktivieren, um die Alt-Taste zu verwenden","Schakel in om de Alt-toets te gebruiken","Cochez pour utiliser la touche Alt"]
["frm.ufSettings.cbxCircCtrl.Caption.INIT","Ctrl","Strg","Ctrl","Ctrl"]
["frm.ufSettings.cbxCircCtrl.ControlTipText.INIT","Check this box if you want to use the control key","Aktivieren, um die Strg-Taste zu verwenden","Schakel in om de Ctrl-toets te gebruiken","Cochez pour utiliser la touche Ctrl"]
["frm.ufSettings.cbxDepAlt.Caption.INIT","Alt","Alt","Alt","Alt"]
["frm.ufSettings.cbxDepAlt.ControlTipText.INIT","Check this box if you want to use the Alt key","Aktivieren, um die Alt-Taste zu verwenden","Schakel in om de Alt-toets te gebruiken","Cochez pour utiliser la touche Alt"]
["frm.ufSettings.cbxDepCtrl.Caption.INIT","Ctrl","Strg","Ctrl","Ctrl"]
["frm.ufSettings.cbxDepCtrl.ControlTipText.INIT","Check this box if you want to use the control key","Aktivieren, um die Strg-Taste zu verwenden","Schakel in om de Ctrl-toets te gebruiken","Cochez pour utiliser la touche Ctrl"]
["frm.ufSettings.cbxErrorAlt.Caption.INIT","Alt","Alt","Alt","Alt"]
["frm.ufSettings.cbxErrorAlt.ControlTipText.INIT","Check this box if you want to use the Alt key","Aktivieren, um die Alt-Taste zu verwenden","Schakel in om de Alt-toets te gebruiken","Cochez pour utiliser la touche Alt"]
["frm.ufSettings.cbxErrorCtrl.Caption.INIT","Ctrl","Strg","Ctrl","Ctrl"]
["frm.ufSettings.cbxErrorCtrl.ControlTipText.INIT","Check this box if you want to use the control key","Aktivieren, um die Strg-Taste zu verwenden","Schakel in om de Ctrl-toets te gebruiken","Cochez pour utiliser la touche Ctrl"]
["frm.ufSettings.cbxObjectsAlt.Caption.INIT","Alt","Alt","Alt","Alt"]
["frm.ufSettings.cbxObjectsAlt.ControlTipText.INIT","Check this box if you want to use the Alt key","Aktivieren, um die Alt-Taste zu verwenden","Schakel in om de Alt-toets te gebruiken","Cochez pour utiliser la touche Alt"]
["frm.ufSettings.cbxObjectsCtrl.Caption.INIT","Ctrl","Strg","Ctrl","Ctrl"]
["frm.ufSettings.cbxObjectsCtrl.ControlTipText.INIT","Check this box if you want to use the control key","Aktivieren, um die Strg-Taste zu verwenden","Schakel in om de Ctrl-toets te gebruiken","Cochez pour utiliser la touche Ctrl"]
["frm.ufSettings.cbxPrecAlt.Caption.INIT","Alt","Alt","Alt","Alt"]
["frm.ufSettings.cbxPrecAlt.ControlTipText.INIT","Check this box if you want to use the Alt key","Aktivieren, um die Alt-Taste zu verwenden","Schakel in om de Alt-toets te gebruiken","Cochez pour utiliser la touche Alt"]
["frm.ufSettings.cbxPrecCtrl.Caption.INIT","Ctrl","Strg","Ctrl","Ctrl"]
["frm.ufSettings.cbxPrecCtrl.ControlTipText.INIT","Check this box if you want to use the control key","Aktivieren, um die Strg-Taste zu verwenden","Schakel in om de Ctrl-toets te gebruiken","Cochez pour utiliser la touche Ctrl"]
["frm.ufSettings.cbxProgressOnStatusBar.Caption.INIT","Display progress on Status bar instead of on dialog","Fortschritt in der Statusleiste statt im Dialog anzeigen","Voortgang op de statusbalk tonen in plaats van in het dialoogvenster","Afficher la progression dans la barre d’état plutôt que dans la boîte de dialogue"]
["frm.ufSettings.cbxShowCellValue.Caption.INIT","Show cell values in tree","Zellwerte im Baum anzeigen","Celwaarden in boom weergeven","Afficher les valeurs dans l’arbre"]
["frm.ufSettings.cbxShowCellValue.ControlTipText.INIT","Check this box if you want the treeview to display the cell value next to the cell address","Aktivieren, damit die Baumansicht den Zellwert neben der Zelladresse anzeigt","Inschakelen om in de boom de celwaarde naast het adres te tonen","Cochez pour afficher la valeur de la cellule à côté de son adresse dans l’arborescence"]
["frm.ufSettings.cbxShowMeWhereIAm.Accelerator.INIT"]
["frm.ufSettings.cbxShowMeWhereIAm.Caption.INIT","Animate Selection","Auswahl animieren","Selectie animeren","Animer la sélection"]
["frm.ufSettings.cbxShowMeWhereIAm.ControlTipText.INIT","Use animation to make finding the selection easier","Animation verwenden, um die Auswahl leichter zu finden","Animatie gebruiken om de selectie makkelijker te vinden","Utiliser l’animation pour faciliter le repérage de la sélection"]
["frm.ufSettings.cbxShowUniqueRefs.Caption.INIT","Show references only once","Referenzen nur einmal anzeigen","Verwijzingen slechts één keer tonen","Afficher les références une seule fois"]
["frm.ufSettings.cbxShowUniqueRefs.ControlTipText.INIT","Check this box if you want duplicated references to show only once","Aktivieren, um doppelte Referenzen nur einmal anzuzeigen","Inschakelen om dubbele verwijzingen slechts één keer te tonen","Cochez pour n’afficher les références dupliquées qu’une seule fois"]
["frm.ufSettings.cbxUnhideSheets.Accelerator.INIT"]
["frm.ufSettings.cbxUnhideSheets.Caption.INIT","Unhide Sheets","Blätter einblenden","Verborgen bladen zichtbaar maken","Afficher les feuilles masquées"]
["frm.ufSettings.cbxUnhideSheets.ControlTipText.INIT","Automatically unhide hidden sheets","Ausgeblendete Blätter automatisch einblenden","Verborgen bladen automatisch zichtbaar maken","Afficher automatiquement les feuilles masquées"]
["frm.ufSettings.cbxUnprotectSheets.Accelerator.INIT"]
["frm.ufSettings.cbxUnprotectSheets.Caption.INIT","Unprotect Worksheets","Blattschutz aufheben","Bladbeveiliging opheffen","Ôter protection des feuilles"]
["frm.ufSettings.cbxUnprotectSheets.ControlTipText.INIT","Automatically ask to unprotect sheets","Automatisch fragen, den Blattschutz aufzuheben","Automatisch vragen om bladbeveiliging op te heffen","Demander automatiquement d’ôter la protection des feuilles"]
["frm.ufSettings.cbxVisualizeAlt.Caption.INIT","Alt","Alt","Alt","Alt"]
["frm.ufSettings.cbxVisualizeAlt.ControlTipText.INIT","Check this box if you want to use the Alt key","Aktivieren, um die Alt-Taste zu verwenden","Schakel in om de Alt-toets te gebruiken","Cochez pour utiliser la touche Alt"]
["frm.ufSettings.cbxVisualizeCtrl.Caption.INIT","Ctrl","Strg","Ctrl","Ctrl"]
["frm.ufSettings.cbxVisualizeCtrl.ControlTipText.INIT","Check this box if you want to use the control key","Aktivieren, um die Strg-Taste zu verwenden","Schakel in om de Ctrl-toets te gebruiken","Cochez pour utiliser la touche Ctrl"]
["frm.ufSettings.CloseWithoutValidate.MsgBox","You have updated the registration information but it seems you have not yet validated the license._cr__cr_Are you sure you want to close the registration form?","Sie haben die Registrierungsinformationen aktualisiert, aber offenbar die Lizenz noch nicht validiert._cr__cr_Sind Sie sicher, dass Sie das Registrierungsformular schließen möchten?","U hebt de registratiegegevens bijgewerkt, maar het lijkt erop dat u de licentie nog niet hebt gevalideerd._cr__cr_Weet u zeker dat u het registratieformulier wilt sluiten?","Vous avez mis à jour les informations d’enregistrement, mais il semble que vous n’ayez pas encore validé la licence._cr__cr_Voulez-vous vraiment fermer le formulaire d’enregistrement ?"]
["frm.ufSettings.cmbClose.Accelerator.INIT","o","S","S","F"]
["frm.ufSettings.cmbClose.Caption.INIT","Close","Schließen","Sluiten","Fermer"]
["frm.ufSettings.cmbClose.ControlTipText.INIT","Closes this dialog","Schließt diesen Dialog","Sluit dit dialoogvenster","Ferme cette boîte de dialogue"]
["frm.ufSettings.cmbDefaultKeys.Accelerator.INIT","K","S","S","T"]
["frm.ufSettings.cmbDefaultKeys.Caption.INIT","Default Keys","Standardtasten","Standaardtoetsen","Touches par défaut"]
["frm.ufSettings.cmbDefaultKeys.ControlTipText.INIT","Set default hotkeys","Standard-Hotkeys festlegen","Standaardsneltoetsen instellen","Définir les raccourcis par défaut"]
["frm.ufSettings.cmbResetFormPos.Accelerator.INIT","F","F","F","R"]
["frm.ufSettings.cmbResetFormPos.Caption.INIT","Reset Forms","Formulare zurücksetzen","Formulieren resetten","Réinitialiser les formulaires"]
["frm.ufSettings.cmbResetFormPos.ControlTipText.INIT","Reset the position of the RefTreeAnalyser forms","Position der RefTreeAnalyser‑Formulare zurücksetzen","De schempositie van de RefTreeAnalyser‑formulieren opnieuw instellen","Réinitialiser la position des formulaires RefTreeAnalyser"]
["frm.ufSettings.cmbResetRegistration.Accelerator.INIT","R","Z","R","R"]
["frm.ufSettings.cmbResetRegistration.Caption.INIT","Reset","Zurücksetzen","Resetten","Réinitialiser"]
["frm.ufSettings.cmbResetRegistration.ControlTipText.INIT","Remove current registration settings","Aktuelle Registrierungseinstellungen entfernen","Huidige registratiestatus verwijderen","Supprimer les paramètres d’enregistrement actuels"]
["frm.ufSettings.cmbUpdate.Accelerator.INIT","U","A","U","M"]
["frm.ufSettings.cmbUpdate.Caption.INIT","Update","Aktualisieren","Updaten","Mettre à jour"]
["frm.ufSettings.cmbUpdate.ControlTipText.INIT","Check for updates","Nach Updates suchen","Controleren op updates","Rechercher des mises à jour"]
["frm.ufSettings.cmbValidate.Accelerator.INIT","V","V","V","V"]
["frm.ufSettings.cmbValidate.Caption.INIT","Validate","Validieren","Valideren","Valider"]
["frm.ufSettings.cmbValidate.ControlTipText.INIT","Validate the username and license code on-line (requires internet connection)","Benutzername und Lizenzcode online prüfen (Internetverbindung erforderlich)","Valideer gebruikersnaam en licentiecode online (internet vereist)","Valider en ligne le nom d’utilisateur et le code de licence (connexion Internet requise)"]
["frm.ufSettings.Form.Caption.INIT","RefTreeAnalyser; Settings","RefTreeAnalyser; Einstellungen","RefTreeAnalyser; Instellingen","RefTreeAnalyser; Paramètres"]
["frm.ufSettings.FormPosReset.MsgBox","Form positions and sizes have been reset to their defaults","Die Positionen und Größen der Formulare wurden auf die Standardwerte zurückgesetzt","De posities en afmetingen van formulieren zijn teruggezet naar de standaardwaarden","Les positions et tailles des formulaires ont été réinitialisées aux valeurs par défaut"]
["frm.ufSettings.frmColors.Caption.INIT","Visualisation Colors","Visualisierungsfarben","Visualisatiekleuren","Couleurs de visualisation"]
["frm.ufSettings.frmForms.Caption.INIT","Dialogs","Dialoge","Dialoogvensters","Boîtes de dialogue"]
["frm.ufSettings.frmLanguage.Caption.INIT","Language","Sprache","Taal","Langue"]
["frm.ufSettings.frmLevelSettings.Caption.INIT","Reference level default","Standard für Referenzebenen","Standaard referentieniveau","Défaut du niveau de référence"]
["frm.ufSettings.frmParser.Caption.INIT","Reference display method","Referenzanzeigemethode","Referentieweergavemethode","Méthode d’affichage des références"]
["frm.ufSettings.frmRegistration.Caption.INIT","License Registration","Lizenzregistrierung","Licentieregistratie","Enregistrement de licence"]
["frm.ufSettings.frmRibbon.Caption.INIT","Ribbon Position","Position des Menübands","Positie op lint","Position du ruban"]
["frm.ufSettings.frmSheets.Caption.INIT","Sheets","Blätter","Bladen","Feuilles"]
["frm.ufSettings.frmShortcuts.Caption.INIT","Shortcut keys","Tastenkombinationen","Sneltoetsen","Raccourcis clavier"]
["frm.ufSettings.frmUpdate.Caption.INIT","Updates","Updates","Updates","Mises à jour"]
["frm.ufSettings.Label1.Caption.INIT","Objects","Objekte","Objecten","Objets"]
["frm.ufSettings.lblCheckFormulas.Accelerator.INIT"]
["frm.ufSettings.lblCheckFormulas.Caption.INIT","Check Formulas","Formeln prüfen","Formules controleren","Vérifier les formules"]
["frm.ufSettings.lblCircHotkey.Accelerator.INIT"]
["frm.ufSettings.lblCircHotkey.Caption.INIT","Circular references","Zirkelbezüge","Kringverwijzingen","Références circulaires"]
["frm.ufSettings.lblCode.Accelerator.INIT","R","R","R","C"]
["frm.ufSettings.lblCode.Caption.INIT","Registration code:","Registrierungscode:","Registratiecode:","Code d’enregistrement :"]
["frm.ufSettings.lblDefaultLevel.Caption.INIT","Default number of levels for deps/precs","Standardanzahl Ebenen für Nachf./Vorg.","Standaardaantal niveaus voor doel-/broncellen","Nombre de niveaux par défaut pour dép./antéc."]
["frm.ufSettings.lblDefaultLevel.ControlTipText.INIT","The default number of levels for tracine precedents and dependents","Standardanzahl Ebenen für Nachverfolgung von Vorgängern und Nachfolgern","Standaardaantal niveaus voor traceren van broncellen en doelcellen","Nombre de niveaux par défaut pour le traçage des antécédents et dépendants"]
["frm.ufSettings.lblDepsHotkey.Accelerator.INIT"]
["frm.ufSettings.lblDepsHotkey.Caption.INIT","Dependents","Nachfolger","Doelcellen","Dépendants"]
["frm.ufSettings.lblErrorsHotkey.Accelerator.INIT"]
["frm.ufSettings.lblErrorsHotkey.Caption.INIT","Trace errors","Fehler nachverfolgen","Fouten traceren","Repérer les erreurs"]
["frm.ufSettings.lblLanguage.Caption.INIT","Language","Sprache","Taal","Langue"]
["frm.ufSettings.lblMessage.Caption.INIT"," "," "," "," "]
["frm.ufSettings.lblMessage.CheckingRegistration.Caption","Checking registration, please wait ...","Registrierung wird geprüft, bitte warten ...","Registratie wordt gecontroleerd, even geduld ...","Vérification de l’enregistrement, veuillez patienter…"]
["frm.ufSettings.lblMessage.RegisteredCopyExpired.Caption","Registered copy_cr_Your license for free updates has expired","Registrierte Kopie_cr_Ihre Lizenz für kostenlose Updates ist abgelaufen","Geregistreerde kopie_cr_Uw licentie voor gratis updates is verlopen","Copie enregistrée_cr_Votre licence pour les mises à jour gratuites a expiré"]
["frm.ufSettings.lblMessage.RegisteredCopyOnly.Caption","Registered copy","Registrierte Kopie","Geregistreerde kopie","Copie enregistrée"]
["frm.ufSettings.lblMessage.RegisteredCopyPerpetual.Caption","Registered copy_cr_You have a perpetual license for free updates","Registrierte Kopie_cr_Sie haben eine unbefristete Lizenz für kostenlose Updates","Geregistreerde kopie_cr_U hebt een eeuwigdurende licentie voor gratis updates","Copie enregistrée_cr_Vous disposez d’une licence perpétuelle pour les mises à jour gratuites"]
["frm.ufSettings.lblMessage.RegisteredCopyUntil.Caption","Registered copy_cr_Updates are free up to: _arg1_","Registrierte Kopie_cr_Aktualisierungen sind kostenlos bis: _arg1_","Geregistreerde kopie_cr_Updates zijn gratis tot: _arg1_","Copie enregistrée_cr_Les mises à jour sont gratuites jusqu’au : _arg1_"]
["frm.ufSettings.lblMessage.UnregisteredPurchase.Caption","This is an unregistered copy._cr_You can purchase a license here:_cr_https://jkp-ads.com/reftreeanalyser.aspx#Ordering","Dies ist eine nicht registrierte Kopie._cr_Sie können hier eine Lizenz erwerben:_cr_https://jkp-ads.com/reftreeanalyser.aspx#Ordering","Dit is een Niet geregistreerde kopie._cr_U kunt hier een licentie kopen:_cr_https://jkp-ads.com/reftreeanalyser.aspx#Ordering","Ceci est une copie non enregistrée._cr_Vous pouvez acheter une licence ici :_cr_https://jkp-ads.com/reftreeanalyser.aspx#Ordering"]
["frm.ufSettings.lblObjectArrow.ControlTipText.INIT","Click to change the color of objects","Klicken, um die Farbe der Objekte zu ändern","Klik om de kleur van objecten te wijzigen","Cliquez pour changer la couleur des objets"]
["frm.ufSettings.lblObjects.Accelerator.INIT"]
["frm.ufSettings.lblObjects.Caption.INIT","Objects","Objekte","Objecten","Objets"]
["frm.ufSettings.lblOffSheetColor.Caption.INIT","Off sheet precedents","Vorgänger außerhalb des Blatts","Broncellen buiten het blad","Antécédents hors feuille"]
["frm.ufSettings.lblOffSheetPrecsArrow.ControlTipText.INIT","Click to change the color of objects indicating off-sheet precedents","Klicken, um die Farbe der Objekte für blattfremde Vorgänger zu ändern","Klik om de kleur te wijzigen van objecten voor broncellen buiten het blad","Cliquez pour changer la couleur des objets indiquant les antécédents hors feuille"]
["frm.ufSettings.lblOnSheetArrow.Caption.INIT","On sheet precedents","Vorgänger auf Blatt","Broncellen op blad","Antécédents sur feuille"]
["frm.ufSettings.lblOnsheetArrowColor.ControlTipText.INIT","Click to change the color of arrows","Klicken, um die Farbe der Pfeile zu ändern","Klik om de kleur van pijlen te wijzigen","Cliquez pour changer la couleur des flèches"]
["frm.ufSettings.lblOnsheetArrowLight.Caption.INIT","Arrow Color","Pfeilfarbe","Pijlkleur","Couleur des flèches"]
["frm.ufSettings.lblOnSheetPrecedents.ControlTipText.INIT","Click to change the color of objects indicating on-sheet precedents","Klicken, um die Farbe der Objekte für blattinterne Vorgänger zu ändern","Klik om de kleur te wijzigen van objecten voor broncellen op hetzelfde blad","Cliquez pour changer la couleur des objets indiquant les antécédents sur la feuille"]
["frm.ufSettings.lblPrecsHotkey.Accelerator.INIT"]
["frm.ufSettings.lblPrecsHotkey.Caption.INIT","Precedents","Vorgänger","Broncellen","Antécédents"]
["frm.ufSettings.lblTip.Caption.INIT","Tip: If you enter a letter or symbol that requires you to hold the shift key while typing, you must also hold the shift key when using it as a hotkey._cr_So the letter H will equal Shift+h","Tipp: Wenn Sie einen Buchstaben oder ein Zeichen eingeben, für den/das Sie beim Tippen die Umschalttaste gedrückt halten müssen, müssen Sie die Umschalttaste auch beim Verwenden als Tastenkombination gedrückt halten._cr_H entspricht also Umschalt+H","Tip: Als u een letter of symbool invoert waarvoor u de Shift-toets ingedrukt moet houden, moet u die ook ingedrukt houden wanneer u het als sneltoets gebruikt._cr_De letter H komt dus overeen met Shift+H","Astuce : Si vous saisissez une lettre ou un symbole nécessitant la touche Maj, vous devrez aussi maintenir Maj lors de son utilisation comme raccourci._cr_Par exemple, la lettre H équivaut à Maj+H"]
["frm.ufSettings.lblUserName.Accelerator.INIT","U","B","G","U"]
["frm.ufSettings.lblUserName.Caption.INIT","User name:","Benutzername:","Gebruikersnaam:","Nom d’utilisateur :"]
["frm.ufSettings.lblVisualize.Accelerator.INIT"]
["frm.ufSettings.lblVisualize.Caption.INIT","Visualize","Visualisieren","Visualiseren","Visualiser"]
["frm.ufSettings.optAuto.Accellerator.INIT","A","A","A","a"]
["frm.ufSettings.optAuto.Caption.INIT","Automatically download","Autom. herunterladen","Autom. downloaden","Télécharger autom."]
["frm.ufSettings.optAuto.ControlTipText.INIT","Use this to automatically download updates","Verwenden Sie dies, um Updates automatisch herunterzuladen","Gebruik deze instelling om updates automatisch te laten downloaden","Utilisez ceci pour télécharger automatiquement les mises à jour"]
["frm.ufSettings.optFormulaTab.Caption.INIT","Group on Formula tab","Gruppe auf Formeln-Register","Groep op tabblad Formules","Groupe sous l’onglet Formules"]
["frm.ufSettings.optFormulaTab.ControlTipText.INIT","Show the RefTreeAnalyser controls in a group on the Formulas tab","RefTreeAnalyser-Steuerelemente als Gruppe auf dem Formeln-Register anzeigen","RefTreeAnalyser‑besturingselementen als groep op het tabblad Formules tonen","Afficher les contrôles RefTreeAnalyser dans un groupe sous l’onglet Formules"]
["frm.ufSettings.optKeep.Caption.INIT","Keep old report sheets","Alte Berichtsblätter behalten","Oude rapportbladen behouden","Conserver les anciens rapports"]
["frm.ufSettings.optKeep.ControlTipText.INIT","Allways keep existing report sheets","Vorhandene Berichtsblätter immer behalten","Bestaande rapportbladen altijd behouden","Toujours conserver les feuilles de rapport existantes"]
["frm.ufSettings.optManual.Accellerator.INIT","M","M","Z","m"]
["frm.ufSettings.optManual.Caption.INIT","Manually download","Manuell herunterladen","Zelf downloaden","Télécharger man."]
["frm.ufSettings.optManual.ControlTipText.INIT","Checks for updates, but you must manually download them. Useful in case your virus software blocks downloading updates","Prüft auf Updates, aber Sie müssen sie manuell herunterladen. Nützlich, falls Ihre Virensoftware das Herunterladen von Updates blockiert","Controleert wel op updates, maar laat u deze handmatig downloaden. Handig als u problemen heeft met automatisch downloaden, bijvoorbeeld door uw beveiligingssoftware","Vérifie les mises à jour, mais vous devez les télécharger manuellement. Utile si votre antivirus bloque le téléchargement des mises à jour"]
["frm.ufSettings.optRefTree.Caption.INIT","Separate RefTreeAnalyser tab","Separater RefTreeAnalyser-Tab","Aparte RefTreeAnalyser-tab","Onglet RefTreeAnalyser séparé"]
["frm.ufSettings.optRefTree.ControlTipText.INIT","Show the RefTreeAnalyser controls on a separate ribbon tab","RefTreeAnalyser-Steuerelemente auf separatem Register anzeigen","Toon de RefTreeAnalyser‑besturingselementen op een apart linttabblad","Afficher les contrôles RefTreeAnalyser sur un onglet de ruban séparé"]
["frm.ufSettings.optReplace.Caption.INIT","Replace old report sheets","Alte Berichtsblätter ersetzen","Oude rapportbladen vervangen","Remplacer les anciens rapports"]
["frm.ufSettings.optReplace.ControlTipText.INIT","Replace existing report sheets without asking","Vorhandene Berichtsblätter ohne Rückfrage ersetzen","Bestaande rapportbladen vervangen zonder te vragen","Remplacer les feuilles de rapport existantes sans demander"]
["frm.ufSettings.RemoveRegistration.MsgBox","Are you sure you want to remove your current registration settings?_cr_(Click yes if you are having trouble getting your product registered)","Möchten Sie wirklich Ihre aktuellen Registrierungseinstellungen entfernen?_cr_(Klicken Sie auf Ja, wenn Sie Probleme bei der Registrierung Ihres Produkts haben)","Weet u zeker dat u uw huidige registratie-instellingen wilt verwijderen?_cr_(Klik op Ja als u problemen ondervindt bij het registreren van uw product)","Voulez-vous vraiment supprimer vos paramètres d’enregistrement actuels ?_cr_(Cliquez sur Oui si vous avez des difficultés à enregistrer votre produit)"]
["frm.ufSettings.tbxCheckFormulasHotKey.ControlTipText.INIT","Shortcut key to start checking formulas","Tastenkombination, um das Prüfen von Formeln zu starten","Sneltoets om formules te controleren","Raccourci pour lancer la vérification des formules"]
["frm.ufSettings.tbxCircHotkey.ControlTipText.INIT","Shortcut key to start analysis of circular references","Tastenkombination, um die Analyse von Zirkelbezügen zu starten","Sneltoets om kringverwijzingen te analyseren","Raccourci pour lancer l’analyse des références circulaires"]
["frm.ufSettings.tbxCode.ControlTipText.INIT","Please enter your registration code","Bitte geben Sie Ihren Registrierungscode ein","Voer uw registratiecode in","Veuillez saisir votre code d’enregistrement"]
["frm.ufSettings.tbxDepsHotkey.ControlTipText.INIT","Shortcut key to start Dependents analysis","Tastenkombination, um die Nachfolger-Analyse zu starten","Sneltoets om doelcellenanalyse te starten","Raccourci pour lancer l’analyse des dépendants"]
["frm.ufSettings.tbxErrorsHotkey.ControlTipText.INIT","Shortcut key to start Error tracing analysis","Tastenkombination, um die Fehlerverfolgung zu starten","Sneltoets om foutopsporing te starten","Raccourci pour lancer le traçage des erreurs"]
["frm.ufSettings.tbxObjectsHotKey.ControlTipText.INIT","Shortcut key to start Objects analysis","Tastenkombination, um die Objekte‑Analyse zu starten","Sneltoets om objectenanalyse te starten","Raccourci pour lancer l’analyse des objets"]
["frm.ufSettings.tbxPrecsHotkey.ControlTipText.INIT","Shortcut key to start Precedents analysis","Tastenkombination, um die Vorgänger-Analyse zu starten","Sneltoets om broncellenanalyse te starten","Raccourci pour lancer l’analyse des antécédents"]
["frm.ufSettings.tbxUserName.ControlTipText.INIT","Please enter your username","Bitte geben Sie Ihren Benutzernamen ein","Voer uw gebruikersnaam in","Veuillez saisir votre nom d’utilisateur"]
["frm.ufSettings.tbxVisualizeHotKey.ControlTipText.INIT","Shortcut key to visualise Precedents","Tastenkombination, um Vorgänger zu visualisieren","Sneltoets om broncellen te visualiseren","Raccourci pour visualiser les antécédents"]
["frm.ufSheetReport.cmbClose.Accelerator.INIT","l","S","S","F"]
["frm.ufSheetReport.cmbClose.Caption.INIT","Close","Schließen","Sluiten","Fermer"]
["frm.ufSheetReport.cmbClose.ControlTipText.INIT","Closes this form (Current selection remains selected. Press Escape to return to where you started analyzing)","Schließt dieses Formular (aktuelle Auswahl bleibt bestehen. Drücken Sie Esc, um zurückzukehren)","Sluit dit formulier (huidige selectie blijft geselecteerd. Druk op Esc om terug te keren)","Ferme ce formulaire (la sélection actuelle reste sélectionnée. Appuyez sur Échap pour revenir)"]
["frm.ufSheetReport.Form.Caption.INIT","RefTreeAnalyser; Sheet interaction report","RefTreeAnalyser; Blattinteraktionsbericht","RefTreeAnalyser; Bladinteractierapport","RefTreeAnalyser ; Rapport d’interaction des feuilles"]
["frm.ufSheetReport.lblTitle.Caption.INIT","Title","Titel","Titel","Titre"]
["frm.ufSmallPrecedents.cbxDefault.Accelerator.INIT","D","S","S","D"]
["frm.ufSmallPrecedents.cbxDefault.Caption.INIT","Set as default precedents screen","Als Standard‑Vorgängerfenster festlegen","Instellen als standaard broncellen‑scherm","Définir comme écran d’antécédents par défaut"]
["frm.ufSmallPrecedents.cbxDefault.ControlTipText.INIT","Check to make this the default dialog to display when clicking Precedents","Als Standarddialog anzeigen, wenn auf Vorgänger geklickt wird","Als standaarddialoog tonen bij Broncellen analyse","Afficher ce dialogue par défaut en cliquant sur Antécédents"]
["frm.ufSmallPrecedents.cmbClose.Accelerator.INIT","l","S","S","F"]
["frm.ufSmallPrecedents.cmbClose.Caption.INIT","Close","Schließen","Sluiten","Fermer"]
["frm.ufSmallPrecedents.cmbClose.ControlTipText.INIT","Closes this form (Current selection remains selected. Press Escape to return to where you started analyzing)","Schließt dieses Formular (aktuelle Auswahl bleibt bestehen. Drücken Sie Esc, um zurückzukehren)","Sluit dit formulier (huidige selectie blijft geselecteerd. Druk op Esc om terug te keren)","Ferme ce formulaire (la sélection actuelle reste sélectionnée. Appuyez sur Échap pour revenir)"]
["frm.ufSmallPrecedents.cmbClose2.Accelerator.INIT","l","S","S","F"]
["frm.ufSmallPrecedents.cmbClose2.Caption.INIT","Close","Schließen","Sluiten","Fermer"]
["frm.ufSmallPrecedents.cmbClose2.ControlTipText.INIT","Closes this form (Current selection remains selected. Press Escape to return to where you started analyzing)","Schließt dieses Formular (aktuelle Auswahl bleibt bestehen. Drücken Sie Esc, um zurückzukehren)","Sluit dit formulier (huidige selectie blijft geselecteerd. Druk op Esc om terug te keren)","Ferme ce formulaire (la sélection actuelle reste sélectionnée. Appuyez sur Échap pour revenir)"]
["frm.ufSmallPrecedents.Form.Caption.INIT","RefTreeAnalyser; Precedents","RefTreeAnalyser; Vorgänger","RefTreeAnalyser; Broncellen","RefTreeAnalyser ; Antécédents"]
["frm.ufSmallPrecedents.frmFormulaEditor.ControlTipText.INIT","Use left and right arrow keys to select references","Mit den Pfeiltasten links/rechts Verweise auswählen","Gebruik de linker en rechter pijltjes toetsen om verwijzingen te selecteren","Utilisez les flèches gauche/droite pour sélectionner des références"]
["frm.ufSmallPrecedents.lblTitle.Caption.INIT","Analyzing cell >>>","Zelle wird analysiert >>>","Cel analyseren >>>","Analyse de la cellule >>>"]
["frm.ufSmallPrecedents.PrecedentsOf.Caption","Precedents of: _arg1_","Vorgänger von: _arg1_","Broncellen van: _arg1_","Antécédents de : _arg1_"]
["frm.ufStart.cbxSave.Accelerator.INIT","b","S","B","S"]
["frm.ufStart.cbxSave.Caption.INIT","Create backup copy of the file prior to the analysis","Vor der Analyse eine Sicherungskopie der Datei erstellen","Voor de analyse een back‑up van het bestand maken","Créer une copie de sauvegarde du fichier avant l’analyse"]
["frm.ufStart.cmbCancel.Accelerator.INIT","C","A","A","A"]
["frm.ufStart.cmbCancel.Caption.INIT","Cancel","Abbrechen","Annuleren","Annuler"]
["frm.ufStart.cmbOK.Accelerator.INIT","O","O","O","O"]
["frm.ufStart.cmbOK.Caption.INIT","OK","OK","OK","OK"]
["frm.ufStart.Form.Caption.INIT","RefTreeAnalyser; Circular Reference Utility","RefTreeAnalyser; Dienstprogramm für Zirkelbezüge","RefTreeAnalyser; Hulpprogramma voor kringverwijzingen","RefTreeAnalyser ; Outil de références circulaires"]
["frm.ufStart.Frame1.Caption.INIT","Select Detection Method","Erkennungsmethode auswählen","Detectiemethode selecteren","Sélectionner la méthode de détection"]
["frm.ufStart.frmBackup.Caption.INIT","Important: Save your work first","Wichtig: Speichern Sie zuerst Ihre Arbeit","Belangrijk: Sla uw werk eerst op","Important : Enregistrez d’abord votre travail"]
["frm.ufStart.frmSelectType.Caption.INIT","Select Detection Method","Erkennungsmethode auswählen","Detectiemethode selecteren","Sélectionner la méthode de détection"]
["frm.ufStart.Label1.Caption.INIT","In the process of finding circular references, this utility may temporarily break all circular reference chains._cr__cr_This means the formula of each cell in each chain may be replaced by its value._cr__cr_After all chains have been listed, the formulas will be restored._cr__cr_In some cases however, this may permanently change your spreadsheet model's results._cr__cr_It is therefore advised that you save your file first.","Beim Ermitteln von Zirkelbezügen kann dieses Dienstprogramm vorübergehend alle Zirkelbezugsketten unterbrechen._cr__cr_Das bedeutet, dass die Formel jeder Zelle in jeder Kette durch ihren Wert ersetzt werden kann._cr__cr_Nachdem alle Ketten aufgelistet wurden, werden die Formeln wiederhergestellt._cr__cr_In einigen Fällen kann dies jedoch die Ergebnisse Ihres Tabellenmodells dauerhaft ändern._cr__cr_Speichern Sie daher Ihre Datei zuerst.","Tijdens het zoeken naar kringverwijzingen kan deze tool tijdelijk alle ketens met kringverwijzingen doorbreken._cr__cr_Dit betekent dat de formule van elke cel in elke keten kan worden vervangen door de waarde._cr__cr_Nadat alle ketens zijn opgesomd, worden de formules hersteld._cr__cr_In sommige gevallen kan dit echter de resultaten van uw werkbladmodel permanent wijzigen._cr__cr_Sla daarom eerst uw bestand op.","Lors de la recherche de références circulaires, cet utilitaire peut temporairement rompre toutes les chaînes de références circulaires._cr__cr_Cela signifie que la formule de chaque cellule de chaque chaîne peut être remplacée par sa valeur._cr__cr_Après l’énumération de toutes les chaînes, les formules seront restaurées._cr__cr_Dans certains cas, cela peut toutefois modifier définitivement les résultats de votre modèle._cr__cr_Nous vous conseillons donc d’enregistrer d’abord votre fichier."]
["frm.ufStart.Label2.Caption.INIT","The utility offers two methods to detect circular references. Please select which method to use","Das Tool bietet zwei Methoden zur Erkennung von Zirkelbezügen. Bitte wählen Sie die zu verwendende Methode aus","Het hulpprogramma biedt twee methoden om kringverwijzingen te detecteren. Kies welke methode u wilt gebruiken","L’utilitaire propose deux méthodes pour détecter les références circulaires. Veuillez sélectionner la méthode à utiliser"]
["frm.ufStart.Label4.Caption.INIT","This is the fastest option._cr_It will detect all circular references currently detected by Excel. _cr_Which references are detected may depend on current results of the model. _cr_If the model yields alternating results on each calculation, this option may return varying circles, depending on the structure of your model._cr_In such a case, consider using the option below.","Dies ist die schnellste Option._cr_Sie erkennt alle von Excel derzeit erkannten Zirkelbezüge._cr_Welche Bezüge erkannt werden, kann von den aktuellen Modellergebnissen abhängen._cr_Wenn das Modell bei jeder Berechnung abwechselnde Ergebnisse liefert, kann diese Option unterschiedliche Zirkel zurückgeben, abhängig von der Modellstruktur._cr_In einem solchen Fall erwägen Sie die Option unten.","Dit is de snelste optie._cr_Ze detecteert alle kringverwijzingen die Excel op dit moment detecteert._cr_Welke verwijzingen worden gedetecteerd, kan afhangen van de huidige resultaten van het model._cr_Als het model bij elke berekening wisselende resultaten geeft, kan deze optie verschillende kringen opleveren, afhankelijk van de structuur van uw model._cr_Overweeg in dat geval de optie hieronder.","C’est l’option la plus rapide._cr_Elle détecte toutes les références circulaires actuellement détectées par Excel._cr_Les références détectées peuvent dépendre des résultats actuels du modèle._cr_Si le modèle donne des résultats alternants à chaque calcul, cette option peut renvoyer des cercles différents selon la structure de votre modèle._cr_Dans ce cas, envisagez l’option ci‑dessous."]
["frm.ufStart.Label5.Caption.INIT","This option can be very time comsuming._cr_It will force the tool to analyse all formula cells of your model._cr_This option should return all potential circular references, even those currently not leading to a true circlular reference due to the current values.","Diese Option kann sehr zeitaufwendig sein._cr_Sie zwingt das Tool, alle Formelzellen Ihres Modells zu analysieren._cr_Diese Option sollte alle potenziellen Zirkelbezüge zurückgeben, auch solche, die aufgrund der aktuellen Werte derzeit nicht zu einer echten zirkulären Referenz führen.","Deze optie kan zeer tijdrovend zijn._cr_Dit dwingt het hulpprogramma om alle formulecellen van uw model te analyseren._cr_Deze optie zou alle potentiële kringverwijzingen moeten teruggeven, zelfs diegenen die momenteel niet tot een echte kringverwijzing leiden door de huidige waarden in het model.","Cette option peut être très chronophage._cr_Elle force l’outil à analyser toutes les cellules de formule de votre modèle._cr_Cette option devrait renvoyer toutes les références circulaires potentielles, même celles qui n’entraînent pas actuellement une véritable référence circulaire en raison des valeurs actuelles."]
["frm.ufStart.Label6.Caption.INIT","The utility offers two methods to detect circular references. Please select which method to use","Das Tool bietet zwei Methoden zur Erkennung von Zirkelbezügen. Bitte wählen Sie die zu verwendende Methode aus","Het hulpprogramma biedt twee methoden om kringverwijzingen te detecteren. Kies welke methode u wilt gebruiken","L’utilitaire propose deux méthodes pour détecter les références circulaires. Veuillez sélectionner la méthode à utiliser"]
["frm.ufStart.Label7.Caption.INIT","This is the fastest (and default) option. It uses a relatively simple detection method which may miss circles on very complex models.","Dies ist die schnellste (und standardmäßige) Option. Sie verwendet eine relativ einfache Erkennungsmethode, die bei sehr komplexen Modellen Zirkel übersehen kann.","Dit is de snelste (en standaard) optie. Er wordt een relatief eenvoudige detectiemethode gebruikt die kringen bij zeer complexe modellen kan missen.","C’est l’option la plus rapide (et par défaut). Elle utilise une méthode de détection relativement simple qui peut manquer des cercles sur des modèles très complexes."]
["frm.ufStart.Label8.Caption.INIT","This is a more thorough option. It will iterate through each cell of each circle to try and detect all possible paths.","Dies ist eine gründlichere Option. Sie iteriert durch jede Zelle jedes Zirkels, um alle möglichen Pfade zu erkennen.","Dit is een grondigere optie. Er wordt door elke cel van elke kring geïtereerd om alle mogelijke paden te detecteren.","C’est une option plus approfondie. Elle itère sur chaque cellule de chaque cercle pour tenter de détecter tous les chemins possibles."]
["frm.ufStart.Label9.Caption.INIT","RefTreeAnalyser will try to detect circular references currently detected by Excel. _cr_Which references are detected may depend on current results of the model._cr_If the model yields alternating results on each calculation, this option may return varying circles, depending on the structure of your model._cr_","RefTreeAnalyser versucht, die von Excel derzeit erkannten Zirkelbezüge zu erkennen. Welche Bezüge erkannt werden, kann von den aktuellen Modellergebnissen abhängen._cr_Wenn das Modell bei jeder Berechnung wechselnde Ergebnisse liefert, kann diese Option je nach Struktur Ihres Modells unterschiedliche Zirkel liefern._cr_","RefTreeAnalyser probeert de kringverwijzingen te detecteren die Excel momenteel detecteert. Welke verwijzingen worden gedetecteerd, kan afhangen van de huidige resultaten van het model._cr_Als het model bij elke berekening afwisselende resultaten oplevert, kan deze optie verschillende kringen teruggeven afhankelijk van de structuur van uw model.","RefTreeAnalyser tentera de détecter les références circulaires actuellement détectées par Excel._cr_Quelles références sont détectées peut dépendre des résultats actuels du modèle._cr_Si le modèle produit des résultats alternés à chaque calcul, cette option peut renvoyer des cercles variables selon la structure de votre modèle._cr_"]
["frm.ufStart.optCells.Accelerator.INIT","A","A","A","A"]
["frm.ufStart.optCells.Caption.INIT","Analyse all formula cells","Alle Formelzellen analysieren","Alle formulecellen analyseren","Analyser toutes les cellules de formule"]
["frm.ufStart.optSimple.Accelerator.INIT","E","E","E","S"]
["frm.ufStart.optSimple.Caption.INIT","Simple","Einfach","Eenvoudig","Simple"]
["frm.ufStart.optThorough.Accelerator.INIT","T","G","G","A"]
["frm.ufStart.optThorough.Caption.INIT","Thorough","Gründlich","Grondig","Approfondi"]
["frm.ufStart.optToolbar.Accelerator.INIT","E","E","E","E"]
["frm.ufStart.optToolbar.Caption.INIT","Use Excel's built-in circular reference detection","In Excel integrierte Erkennung von Zirkelbezügen verwenden","De ingebouwde detectie van kringverwijzingen in Excel gebruiken","Utiliser la détection des références circulaires intégrée à Excel"]
["frm.ufStopTiming.cmbNo.Accelerator.INIT","N","N","N","N"]
["frm.ufStopTiming.cmbNo.Caption.INIT","No","Nein","Nee","Non"]
["frm.ufStopTiming.cmbYes.Accelerator.INIT","Y","J","J","O"]
["frm.ufStopTiming.cmbYes.Caption.INIT","Yes","Ja","Ja","Oui"]
["frm.ufStopTiming.CommandButton1.Accelerator.INIT","O","O","O","O"]
["frm.ufStopTiming.CommandButton1.Caption.INIT","OK","OK","OK","OK"]
["frm.ufStopTiming.Form.Caption.INIT","RefTreeAnalyser: Stop timing formulas","RefTreeAnalyser: Formelzeitmessung stoppen","RefTreeAnalyser: Tijdmeting van formules stoppen","RefTreeAnalyser : Arrêter le chronométrage des formules"]
["frm.ufStopTiming.lblCloseMessage.Caption.INIT","(This dialog will close automatically)","(Dieser Dialog wird automatisch geschlossen)","(Dit dialoogvenster wordt automatisch gesloten)","(Cette boîte de dialogue se fermera automatiquement)"]
["frm.ufStopTiming.lblQuestion.Caption.INIT","Timing formula calculation seems to take long, skip for worksheet ' & sh.Name & '?","Die Zeitmessung der Formelberechnung scheint lange zu dauern. Für Arbeitsblatt ' & sh.Name & ' überspringen?","Het timen van de formuleberekening duurt lang, overslaan voor werkblad ' & sh.Name & '?","Le chronométrage du calcul des formules semble long, passer la feuille ' & sh.Name & ' ?"]
["frm.ufStopTiming.NoClickedInSeconds.Label","('No' clicked in _arg1_ seconds)","('Nein' in _arg1_ Sekunden geklickt)","('Nee' wordt aangeklikt in _arg1_ seconden)","('Non' cliqué en _arg1_ secondes)"]
["frm.ufStopTiming.Prompt","Timing formula calculation seems to take long._cr__cr_Do you want to stop timing formulas?","Das Berechnen der Formeln scheint lange zu dauern._cr__cr_Möchten Sie das Timing der Formeln beenden?","Het berekenen van formules lijkt lang te duren._cr__cr_Wilt u het timen van formules stoppen?","Le calcul des formules semble prendre du temps._cr__cr_Voulez‑vous arrêter le chronométrage des formules ?"]
["frm.ufToC.cbxAddHomeLink.Caption.INIT","Add/update Toc links on all sheets_cr_","Links zum Inhaltsverzeichnis auf allen Blättern hinzufügen/aktualisieren_cr_","ToC‑koppelingen op alle bladen toevoegen/bijwerken_cr_","Ajouter/mettre à jour les liens de TdM sur toutes les feuilles_cr_"]
["frm.ufToC.cbxAddHomeLink.ControlTipText.INIT","Warning: The first time, a row will be inserted at the top of each worksheet","Achtung: Beim ersten Mal wird oben auf jedem Arbeitsblatt eine Zeile eingefügt","Waarschuwing: de eerste keer wordt bovenaan elk werkblad een rij ingevoegd","Avertissement : la première fois, une ligne sera insérée en haut de chaque feuille"]
["frm.ufToC.cmbCancel.Accelerator.INIT","C","A","A","A"]
["frm.ufToC.cmbCancel.Caption.INIT","Cancel","Abbrechen","Annuleren","Annuler"]
["frm.ufToC.cmbOK.Accelerator.INIT","O","O","O","O"]
["frm.ufToC.cmbOK.Caption.INIT","OK","OK","OK","OK"]
["frm.ufToC.Form.Caption.INIT","RefTreeAnalyser; ToC","RefTreeAnalyser; Inhaltsverzeichnis","RefTreeAnalyser; Inhoudsopgave","RefTreeAnalyser ; Table des matières"]
["frm.ufToC.lblItems.Caption.INIT","Please choose what to include in your _cr_Table Of Contents","Bitte wählen Sie aus, was in das _cr_Inhaltsverzeichnis aufgenommen werden soll","Kies wat u wilt opnemen in uw _cr_Inhoudsopgave","Choisissez quoi inclure dans votre _cr_Table des matières"]
["frm.ufToC.lblTocName.Caption.INIT","Name of Worksheet to insert ToC to","Name des Arbeitsblatts, in das das Inhaltsverzeichnis eingefügt wird","Naam van het werkblad waarin de inhoudsopgave wordt ingevoegd","Nom de la feuille où insérer la table des matières"]
["frm.ufToC.lblWarning.CbxAddHomeLinkOn.Caption","Warning!_cr_A row will be inserted at the top of every worksheet.","Warnung!_cr_Oben in jedem Arbeitsblatt wird eine Zeile eingefügt.","Waarschuwing!_cr_Bovenaan elk werkblad wordt een rij ingevoegd.","Avertissement !_cr_Une ligne sera insérée en haut de chaque feuille."]
["frm.ufToC.lbxItems.Items.Charts","Charts","Diagramme","Grafieken","Graphiques"]
["frm.ufToC.lbxItems.Items.ConnectionsPowerQueryDatabase","Connections (PowerQuery, Database)","Verbindungen (PowerQuery, Datenbank)","Verbindingen (PowerQuery, Database)","Connexions (Power Query, Base de données)"]
["frm.ufToC.lbxItems.Items.Controls","Controls","Steuerelemente","Besturingselementen","Contrôles"]
["frm.ufToC.lbxItems.Items.ExternalLinks","External Links","Externe Verknüpfungen","Externe koppelingen","Liens externes"]
["frm.ufToC.lbxItems.Items.PivotTables","PivotTables","PivotTables","Draaitabellen","Tableaux croisés dynamiques"]
["frm.ufToC.lbxItems.Items.Sheets","Sheets","Blätter","Bladen","Feuilles"]
["frm.ufToC.lbxItems.Items.Tables","Tables","Tabellen","Tabellen","Tables"]
["frm.ufUpdateAnnounce.AddinLinkCaption.UpDateAvailable","_arg1_ (Update available)","_arg1_ (Es gibt ein Update)","_arg1_ (er is een update)","_arg1_ (Une mise à jour est disponible)"]
["frm.ufUpdateAnnounce.AddinLinkCaption.UpToDate","_arg1_ (Up to date)","_arg1_ (Auf dem neuesten Stand)","_arg1_ (Recentste versie geinstalleerd)","_arg1_ (Est à jour)"]
["frm.ufUpdateAnnounce.Caption.INIT","RefTreeAnalyser: Manual Updates","RefTreeAnalyser: Manuelle Updates","RefTreeAnalyser: Handmatig updates downloaden","RefTreeAnalyser : Mises à jour manuelles"]
["frm.ufUpdateAnnounce.lblExplorer.Caption.INIT","Go to file location","Zum Speicherort der Datei gehen","Ga naar de bestandslocatie","Aller à l’emplacement du fichier"]
["frm.ufUpdateAnnounce.lblExplorer.controltiptext.INIT","Opens Windows Explorer to where the RefTreeAnalyser add-in is located","Öffnet den Windows-Explorer an dem Ort, an dem sich das RefTreeAnalyser-Add-In befindet","Opent Windows verkenner op de locatie van de RefTreeAnalyser invoegtoepassing","Ouvre l’Explorateur Windows à l’emplacement où se trouve le module complémentaire RefTreeAnalyser"]
["frm.ufUpdateAnnounce.lblFFDownloadLink.controltiptext.INIT","Click to download the latest build of FlexFind","Klicken, um den neuesten Build von FlexFind herunterzuladen","Klik om de nieuwste versie van FlexFind te downloaden","Cliquez pour télécharger la dernière version de FlexFind"]
["frm.ufUpdateAnnounce.lblLink.Caption.INIT","https://jkp-ads.com","https://jkp-ads.com","https://jkp-ads.com","https://jkp-ads.com"]
["frm.ufUpdateAnnounce.lblLink.ControlTipText.INIT","Click to go to website","Zur Website wechseln","Ga naar website","Aller sur le site web"]
["frm.ufUpdateAnnounce.lblNMDownloadLink.controltiptext.INIT","Click to download the latest build of Name Manager","Klicken, um den neuesten Build von Name Manager herunterzuladen","Klik om de nieuwste versie van Name Manager te downloaden","Cliquez pour télécharger la dernière version de Name Manager"]
["frm.ufUpdateAnnounce.lblRTADownloadLink.controltiptext.INIT","Click to download the latest build of RefTreeAnalyser","Klicken, um den neuesten Build von RefTreeAnalyser herunterzuladen","Klik om de nieuwste versie van RefTreeAnalyser te downloaden","Cliquez pour télécharger la dernière version de RefTreeAnalyser"]
["frm.ufUpdateAnnounce.lblTitle.Caption","Links to manually download RefTreeAnalyser and its companion add-ins","Links zum manuellen Herunterladen von RefTreeAnalyser und seiner zugehörigen Add-Ins","Snelkoppelingen om RefTreeAnalyser en de bijbehorende invoegtoepassingen te downloaden","Liens pour télécharger manuellement RefTreeAnalyser et ses modules complémentaires associés"]
["frm.ufUpdateMsg.ChangesInclude.Prefix","Changes include:","Änderungen umfassen:","Wijzigingen omvatten:","Les modifications incluent :"]
["frm.ufUpdateMsg.cmbClose.Accelerator.INIT","C","S","S","F"]
["frm.ufUpdateMsg.cmbClose.Caption.INIT","Close","Schließen","Sluiten","Fermer"]
["frm.ufUpdateMsg.Form.Caption.INIT","RefTreeAnalyser: What's new","RefTreeAnalyser: Was ist neu","RefTreeAnalyser: Wat is er nieuw","RefTreeAnalyser : Quoi de neuf"]
["frm.ufUpdateMsg.lblLink.Caption.INIT","https://jkp-ads.com","https://jkp-ads.com","https://jkp-ads.com","https://jkp-ads.com"]
["frm.ufUpdateMsg.lblLink.ControlTipText.INIT","Click to go to website","Zur Website wechseln","Ga naar website","Aller sur le site web"]
["frm.ufUpdateMsg.lblProducedBy.Caption.INIT","RefTreeAnalyser was brought to you by:_cr__cr_JKP Application Development Services","RefTreeAnalyser wurde Ihnen bereitgestellt von:_cr__cr_JKP Application Development Services","RefTreeAnalyser is mogelijk gemaakt door:_cr__cr_JKP Application Development Services","RefTreeAnalyser vous est proposé par :_cr__cr_JKP Application Development Services"]
["frm.ufUpdateMsg.lblTitle.Caption","What's new in build _arg1_","Neu in Build _arg1_","Wat is nieuw in build _arg1_","Nouveautés de la build _arg1_"]
["frm.ufUpdateMsg.lblTitle.Caption.INIT","This text updated by code with what is new and version and build info","Dieser Text wird vom Code mit Neuerungen sowie Versions- und Build‑Informationen aktualisiert","Deze tekst wordt door code bijgewerkt met wat nieuw is en versie‑ en buildinfo","Ce texte est mis à jour par le code avec les nouveautés et les informations de version et de build"]
["frm.ufUpdateMsg.lblWhatsNewMessage.Caption.INIT","_cr__cr_","_cr__cr_","_cr__cr_","_cr__cr_"]
["lang.displaynames","English","Deutsch","Nederlands","Français"]
["mod.clsUpdate.DownloadFile.DownloadProblem.MsgBox","There is a problem downloading the file. Please check your internet connection.","Beim Herunterladen der Datei ist ein Problem aufgetreten. Bitte Internetverbindung prüfen.","Er is een probleem bij het downloaden van het bestand. Controleer uw internetverbinding.","Un problème est survenu lors du téléchargement du fichier. Vérifiez votre connexion Internet."]
["mod.modAddIns.CheckIfAddInIsLoaded.DownloadSuccess.MsgBox","_arg1_ has successfully been downloaded, you can now use it.","_arg1_ wurde erfolgreich heruntergeladen. Sie können es jetzt verwenden.","_arg1_ is succesvol gedownload; u kunt het nu gebruiken.","_arg1_ a été téléchargé avec succès ; vous pouvez l’utiliser maintenant."]
["mod.modAddIns.DownloadAddinPrompt.MsgBox","The _arg1_ add-in is not present, do you want me to download it now?","Das Add‑In _arg1_ ist nicht vorhanden. Soll ich es jetzt herunterladen?","De invoegtoepassing _arg1_ is niet aanwezig. Wilt u die nu downloaden?","Le complément _arg1_ est absent. Voulez‑vous que je le télécharge maintenant ?"]
["mod.modAddIns.UnInstallCompanionAddins.UninstalledMultiple.MsgBox","I have uninstalled these add-ins:_cr__arg1__cr_These add-ins will now be managed by RefTreeAnalyser._cr_You will find their buttons on the RefTreeAnalyser tab.","Ich habe diese Add‑Ins deinstalliert:_cr__arg1__cr_Diese Add‑Ins werden nun vom RefTreeAnalyser verwaltet._cr_Sie finden die Schaltflächen auf der RefTreeAnalyser‑Registerkarte.","Ik heb deze invoegtoepassingen verwijderd:_cr__arg1__cr_Deze invoegtoepassingen worden nu beheerd door RefTreeAnalyser._cr_U vindt hun knoppen op het tabblad RefTreeAnalyser.","J’ai désinstallé ces compléments :_cr__arg1__cr_Ils seront désormais gérés par RefTreeAnalyser._cr_Vous trouverez leurs boutons dans l’onglet RefTreeAnalyser."]
["mod.modAddIns.UnInstallCompanionAddins.UninstalledSingle.MsgBox","I have uninstalled this add-in:_cr__arg1__cr_This add-in will now be managed by RefTreeAnalyser._cr_You will find it's buttons on the RefTreeAnalyser tab.","Ich habe dieses Add‑In deinstalliert:_cr__arg1__cr_Dieses Add‑In wird nun von RefTreeAnalyser verwaltet._cr_Sie finden seine Schaltflächen auf der RefTreeAnalyser‑Registerkarte.","Ik heb deze invoegtoepassing verwijderd:_cr__arg1__cr_Deze invoegtoepassing wordt nu beheerd door RefTreeAnalyser._cr_U vindt de knoppen op het tabblad RefTreeAnalyser.","J’ai désinstallé ce complément :_cr__arg1__cr_Il sera désormais géré par RefTreeAnalyser._cr_Vous trouverez ses boutons dans l’onglet RefTreeAnalyser."]
["mod.modCircles.Backup.Progress","Saving backup copy of your file","Speichere Sicherungskopie Ihrer Datei","Een reservekopie van uw bestand opslaan","Enregistrement d’une copie de sauvegarde de votre fichier"]
["mod.modCircles.CheckingInterrupted.MsgBox","Checking for circular references interrupted.","Überprüfung auf Zirkelbezüge unterbrochen.","Controle op kringverwijzingen onderbroken.","Vérification des références circulaires interrompue."]
["mod.modCircles.CircularReferencesFound.Label","Circular references found:_arg1_","Zirkelbezüge gefunden:_arg1_","Kringverwijzingen gevonden:_arg1_","Références circulaires trouvées :_arg1_"]
["mod.modCircles.FindCircles.Progress","Finding Circular references","Zirkelbezüge suchen","Kringverwijzingen zoeken","Recherche des références circulaires"]
["mod.modCircles.FoundExternalCircularReference.MsgBox","The utility found a circular reference_cr_that does not belong to the active workbook._cr_Close all workbooks except this utility and the workbook you want to check.","Das Dienstprogramm hat einen Zirkelbezug gefunden_cr_der nicht zur aktiven Arbeitsmappe gehört._cr_Schließen Sie alle Arbeitsmappen außer diesem Dienstprogramm und der zu prüfenden Arbeitsmappe.","Het hulpprogramma heeft een kringverwijzing gevonden_cr_die niet tot de actieve werkmap behoort._cr_Sluit alle werkmappen, behalve dit hulpprogramma en de werkmap die u wilt controleren.","L’utilitaire a trouvé une référence circulaire_cr_qui n’appartient pas au classeur actif._cr_Fermez tous les classeurs sauf cet utilitaire et le classeur que vous souhaitez vérifier."]
["mod.modCirclesAll.ProtectedPrompt.MsgBox","It appears your workbook contains protected worksheets._cr_Please unprotect all worksheets for best results.","Ihre Arbeitsmappe enthält offenbar geschützte Arbeitsblätter._cr_Bitte heben Sie den Schutz aller Arbeitsblätter für optimale Ergebnisse auf.","Uw werkmap bevat beveiligde werkbladen._cr_Hef de beveiliging van alle werkbladen op voor het beste resultaat.","Votre classeur contient des feuilles protégées._cr_Déprotégez toutes les feuilles pour de meilleurs résultats."]
["mod.modCirclesAll.StopPrompt.MsgBox","You clicked Stop. Please select what to do:_cr__cr_Yes, to skip the current cell_cr_No, to skip the current worksheet_cr_Cancel, to abort","Sie haben Stopp geklickt. Bitte wählen Sie:_cr__cr_Ja, um die aktuelle Zelle zu überspringen_cr_Nein, um das aktuelle Arbeitsblatt zu überspringen_cr_Abbrechen, um abzubrechen","U klikte op Stop. Kies wat u wilt doen:_cr__cr_Ja, om de huidige cel over te slaan_cr_Nee, om het huidige werkblad over te slaan_cr_Annuleren, om af te breken","Vous avez cliqué sur Arrêter. Choisissez :_cr__cr_Oui, pour ignorer la cellule actuelle_cr_Non, pour ignorer la feuille actuelle_cr_Annuler, pour abandonner"]
["mod.modEquation.NoActiveCell.MsgBox","No active cell found, please select a cell","Keine aktive Zelle gefunden, bitte wählen Sie eine Zelle aus","Geen actieve cel gevonden, selecteer een cel","Aucune cellule active trouvée, veuillez sélectionner une cellule"]
["mod.modEquation.SelectCellWithFormula.MsgBox","Please select a cell containing a formula","Bitte wählen Sie eine Zelle mit einer Formel aus","Selecteer een cel met een formule","Veuillez sélectionner une cellule contenant une formule"]
["mod.modErrorHandler.ErrorDialog.MsgBox","Oops, An error has occurred in _arg1_, build _arg2__cr_Error:_cr__arg3_","Ups, in _arg1_, Build _arg2_ ist ein Fehler aufgetreten_cr_Fehler:_cr__arg3_","Oeps, er is een fout opgetreden in _arg1_, build _arg2__cr_Fout:_cr__arg3_","Oups, une erreur s’est produite dans _arg1_, build _arg2__cr_Erreur :_cr__arg3_"]
["mod.modErrorHandler.ErrorMessage.Format","Error _arg1_: _arg2_ in _arg3_._arg4_","Fehler _arg1_: _arg2_ in _arg3_._arg4_","Fout _arg1_: _arg2_ in _arg3_._arg4_","Erreur _arg1_: _arg2_ dans _arg3_._arg4_"]
["mod.modErrorHandler.EscapeInterrupt.MsgBox","You pressed escape, are you sure you want to interrupt? (subequently shown results may be incomplete!)","Sie haben Esc gedrückt. Möchten Sie wirklich unterbrechen? (Anschließend angezeigte Ergebnisse können unvollständig sein!)","U drukte op Esc. Weet u zeker dat u wilt onderbreken? (Daarna getoonde resultaten kunnen onvolledig zijn!)","Vous avez appuyé sur Échap. Voulez‑vous vraiment interrompre ? (Les résultats affichés ensuite peuvent être incomplets !)"]
["mod.modFeedback.SurveyPrompt.MsgBox","We'd love to improve RefTreeAnalyser._cr__cr_Would it be OK if we open your standard browser and ask you to fill out a small feedback survey (2 minutes)?","Wir möchten RefTreeAnalyser gerne verbessern. Wäre es in Ordnung, wenn wir Ihren Standardbrowser öffnen und Sie bitten, eine kurze Umfrage auszufüllen (2 Minuten)?","We willen RefTreeAnalyser graag verbeteren. Is het goed als we uw standaardbrowser openen en u vragen een korte enquête in te vullen (2 minuten)?","Nous aimerions améliorer RefTreeAnalyser. Serait-il acceptable que nous ouvrions votre navigateur par défaut et vous demandions de remplir un petit sondage (2 minutes) ?"]
["mod.modFormulaChecks.CalcTimeOfCells.MsgBox","Calc time of cell(s) _arg1_ is _cr__arg2_ seconds","Berechnungszeit der Zelle(n) _arg1_ beträgt _cr__arg2_ Sekunden","Berekentijd van cel(len) _arg1_ is _cr__arg2_ seconden","Le temps de calcul de la ou des cellule(s) _arg1_ est de _cr__arg2_ secondes"]
["mod.modFormulaChecks.CouldHaveBeenCopied","could have been copied.","hätte kopiert werden können.","gekopieerd kan zijn.","a pu être copié."]
["mod.modFormulaChecks.DemoLimitFunctions.MsgBox","This is a demo version; please purchase a license to see more than the three most-used functions.","Dies ist eine Demoversion; bitte erwerben Sie eine Lizenz, um mehr als die drei meistverwendeten Funktionen zu sehen.","Dit is een demoversie; koop een licentie om meer dan de drie meest gebruikte functies te zien.","Ceci est une version de démonstration ; achetez une licence pour voir plus que les trois fonctions les plus utilisées."]
["mod.modFormulaChecks.ErrorDuringCalc.MsgBox","An error occurred during calculating your file,_cr_perhaps the file contains User Defined Functions and macros have not been enabled?","Beim Berechnen Ihrer Datei ist ein Fehler aufgetreten._cr_Vielleicht enthält die Datei benutzerdefinierte Funktionen und Makros sind nicht aktiviert?","Er trad een fout op tijdens het berekenen van uw bestand,_cr_mogelijk bevat het bestand UDF’s en zijn macro’s niet ingeschakeld?","Une erreur est survenue lors du calcul de votre fichier,_cr_peut‑être que le fichier contient des fonctions définies par l’utilisateur et que les macros ne sont pas activées ?"]
["mod.modFormulaChecks.FormulaUnique.MsgBox","Formula in cell _arg1_ is unique","Die Formel in Zelle _arg1_ ist einzigartig","De formule in cel _arg1_ is uniek","La formule dans la cellule _arg1_ est unique"]
["mod.modFormulaChecks.FunctionCountDisallowed.MsgBox","Reporting function count of the utility is disallowed.","Das Melden der Funktionsanzahl des Tools ist nicht zulässig.","Het rapporteren van het aantal functies van de hulpprogramma is niet toegestaan.","Le rapport du nombre de fonctions de l’utilitaire n’est pas autorisé."]
["mod.modFormulaChecks.NoCellsSelectedToTime.MsgBox","No cells were selected to time calculation","Es wurden keine Zellen zur Zeitmessung der Berechnung ausgewählt","Er zijn geen cellen geselecteerd om de berekening te timen","Aucune cellule n’a été sélectionnée pour chronométrer le calcul"]
["mod.modFormulaChecks.PleaseOpenWorkbook.MsgBox","Please make sure an Excel workbook is open when using this function","Bitte stellen Sie sicher, dass eine Excel‑Arbeitsmappe geöffnet ist, wenn Sie diese Funktion verwenden","Zorg ervoor dat een Excel‑werkmap is geopend wanneer u deze functie gebruikt","Assurez‑vous qu’un classeur Excel est ouvert lorsque vous utilisez cette fonction"]
["mod.modFormulaChecks.PressTabToMove","Press the TAB key to move between the selected cells.","Drücken Sie die TAB‑Taste, um zwischen den ausgewählten Zellen zu wechseln.","Druk op TAB om tussen de geselecteerde cellen te bewegen.","Appuyez sur TAB pour passer d’une cellule sélectionnée à l’autre."]
["mod.modFormulaChecks.SelectCellWithFormula.MsgBox","Select a cell with a formula","Wählen Sie eine Zelle mit einer Formel aus","Selecteer een cel met een formule","Sélectionnez une cellule contenant une formule"]
["mod.modFormulaChecks.SelectedAllFormulaCellsIntro","Selected all formula cells to which cell _arg1_ with formula","Alle Formelzellen ausgewählt, zu denen die Zelle _arg1_ mit Formel","Alle formulecellen geselecteerd waarnaar cel _arg1_ met formule","Toutes les cellules de formule sélectionnées vers lesquelles la cellule _arg1_ avec formule"]
["mod.modFormulaChecks.SelectionContainsNoFormulas.Address.MsgBox","Selection _arg1_ contains no cells with formulas","Auswahl _arg1_ enthält keine Zellen mit Formeln","Selectie _arg1_ bevat geen cellen met formules","La sélection _arg1_ ne contient aucune cellule avec formule"]
["mod.modFormulaChecks.SelectionContainsNoFormulas.MsgBox","Selection contains no cells with formulas","Auswahl enthält keine Zellen mit Formeln","Selectie bevat geen cellen met formules","La sélection ne contient aucune cellule avec formule"]
["mod.modFormulaChecks.SheetFilteredProceed.MsgBox","Sheet is filtered, possibly not all formulas can be found!_cr_Proceed anyway?","Blatt ist gefiltert, möglicherweise werden nicht alle Formeln gefunden!_cr_Trotzdem fortfahren?","Blad is gefilterd; mogelijk worden niet alle formules gevonden!_cr_Toch doorgaan?","La feuille est filtrée, il se peut que toutes les formules ne soient pas trouvées !_cr_Poursuivre quand même ?"]
["mod.modFormulaChecks.WorksheetContainsNoFormulas.MsgBox","Worksheet contains no formulas","Arbeitsblatt enthält keine Formeln","Werkblad bevat geen formules","La feuille ne contient aucune formule"]
["mod.modFormulaChecks.WorksheetProtected.MsgBox","Worksheet is protected, please unprotect first","Arbeitsblatt ist geschützt, bitte zuerst Schutz aufheben","Werkblad is beveiligd, verwijder eerst de beveiliging","La feuille est protégée, veuillez d’abord la déprotéger"]
["mod.modFormulaHighlighter.ActiveXDisabled.MsgBox","ActiveX controls are disabled in Trust Center!","ActiveX‑Steuerelemente sind im Trust Center deaktiviert!","ActiveX‑besturingselementen zijn uitgeschakeld in het Vertrouwenscentrum!","Les contrôles ActiveX sont désactivés dans le Centre de gestion de la confidentialité !"]
["mod.modFormulaHighlighter.ActiveXEnabled.MsgBox","ActiveX controls are enabled and working!","ActiveX‑Steuerelemente sind aktiviert und funktionieren!","ActiveX‑besturingselementen zijn ingeschakeld en werken!","Les contrôles ActiveX sont activés et fonctionnent !"]
["mod.modFormulaHighlighter.InitFailed.MsgBox","We're very sorry, RefTreeAnalyser failed to initialize the formula highlighter for this worksheet.","Es tut uns sehr leid, RefTreeAnalyser konnte den Formelhervorheber für dieses Arbeitsblatt nicht initialisieren.","Het spijt ons zeer, RefTreeAnalyser kon de formulemarkeerder voor dit werkblad niet initialiseren.","Nous sommes désolés, RefTreeAnalyser n’a pas pu initialiser la surbrillance des formules pour cette feuille."]
["mod.modFormulaHighlighter.MacNotSupported.MsgBox","RefTreeAnalysers' formula highlihgting does not work on a Mac, we apologize for the inconvenience!","Die Formel‑Hervorhebung von RefTreeAnalyser funktioniert auf einem Mac nicht; wir entschuldigen uns für die Unannehmlichkeiten!","De formulemarkeerder van RefTreeAnalyser werkt niet op een Mac; onze excuses voor het ongemak!","La mise en surbrillance des formules de RefTreeAnalyser ne fonctionne pas sur Mac ; nous sommes désolés pour la gêne occasionnée !"]
["mod.modFormulaHighlighter.Tooltip","Move mouse to highlight cells with same formula, press ESC to stop","Maus bewegen, um Zellen mit derselben Formel hervorzuheben; ESC zum Beenden drücken","Beweeg de muis om cellen met dezelfde formule te markeren; druk op ESC om te stoppen","Déplacez la souris pour mettre en surbrillance les cellules ayant la même formule ; appuyez sur Échap pour arrêter"]
["mod.modFormulaHighlighter.UnableToLocateFile.MsgBox","Unable to locate this file:_cr_RTAFormulaHighlighterControls.xlsx_cr__cr_Please locate your reftreeanalyser download and copy 'RTAFormulaHighlighterControls.xlsx' from the zip file to this location:_cr__arg1_","Die folgende Datei konnte nicht gefunden werden:_cr_RTAFormulaHighlighterControls.xlsx_cr__cr_Bitte suchen Sie Ihren RefTreeAnalyser‑Download und kopieren Sie 'RTAFormulaHighlighterControls.xlsx' aus der ZIP‑Datei an diesen Ort:_cr__arg1_","Kan dit bestand niet vinden:_cr_RTAFormulaHighlighterControls.xlsx_cr__cr_Lokaliseer uw RefTreeAnalyser‑download en kopieer 'RTAFormulaHighlighterControls.xlsx' uit het zipbestand naar deze locatie:_cr__arg1_","Impossible de localiser ce fichier :_cr_RTAFormulaHighlighterControls.xlsx_cr__cr_Veuillez localiser votre téléchargement de RefTreeAnalyser et copier 'RTAFormulaHighlighterControls.xlsx' depuis l’archive ZIP vers cet emplacement :_cr__arg1_"]
["mod.modFormulaHighlighter.ZoomPrompt.MsgBox","This feature works best at a zoomlevel of 100%, apply that zoom percentage to the sheet?","Diese Funktion funktioniert am besten bei einer Zoomstufe von 100 %. Diesen Zoomwert auf das Blatt anwenden?","Deze functie werkt het best op een zoomniveau van 100%. Wilt u dit zoompercentage op het blad toepassen?","Cette fonctionnalité fonctionne mieux avec un zoom de 100 %. Appliquer ce pourcentage de zoom à la feuille ?"]
["mod.modFunctions.LargeSelection.MsgBox","You selected _arg1_ cells to analyze,_cr_are you sure you want to continue?_cr_(if you click yes, the analysis may take a long time!)","Sie haben _arg1_ Zellen zur Analyse ausgewählt._cr_Sind Sie sicher, dass Sie fortfahren möchten?_cr_(Wenn Sie Ja klicken, kann die Analyse lange dauern!)","U hebt _arg1_ cellen geselecteerd om te analyseren,_cr_weet u zeker dat u wilt doorgaan?_cr_(Als u op Ja klikt, kan de analyse lang duren!)","Vous avez sélectionné _arg1_ cellules à analyser,_cr_voulez‑vous vraiment continuer ?_cr_(Si vous cliquez sur Oui, l’analyse peut être longue !)"]
["mod.modLiterals.FoundHardcodedValues.MsgBox","Found _arg1_ cells with hard-coded values._cr_Press the TAB key to cycle through the cells.","_arg1_ Zellen mit fest codierten Werten gefunden._cr_Drücken Sie die TAB‑Taste, um durch die Zellen zu wechseln.","_arg1_ cellen met hard‑gecodeerde waarden gevonden._cr_Druk op TAB om door de cellen te bladeren.","_arg1_ cellules avec des valeurs codées en dur trouvées._cr_Appuyez sur TAB pour parcourir les cellules."]
["mod.modLiterals.FoundNoFormulas.MsgBox","Found no cells with formulas.","Keine Zellen mit Formeln gefunden.","Geen cellen met formules gevonden.","Aucune cellule avec des formules trouvée."]
["mod.modLiterals.FoundNoHardcodedValues.Hyperlink.Screentip","Cells with hard-coded values.","Zellen mit fest eingetragenen Werten.","Cellen met hard‑gecodeerde waarden.","Cellule avec des valeurs codées en dur."]
["mod.modLiterals.FoundNoHardcodedValues.MsgBox","Found no cells with hard-coded values.","Keine Zellen mit fest eingetragenen Werten gefunden.","Geen cellen met hard‑gecodeerde waarden gevonden.","Aucune cellule avec des valeurs codées en dur trouvée."]
["mod.modLiterals.SelectCellFirst.MsgBox","Please select a cell first.","Bitte wählen Sie zuerst eine Zelle aus.","Selecteer eerst een cel.","Veuillez d’abord sélectionner une cellule."]
["mod.modMenu.About.Caption","&About RefTreeAnalyser","&Info RefTreeAnalyser","&Info RefTreeAnalyser","À&propos RefTreeAnalyser"]
["mod.modMenu.About.Tooltip","About RefTreeAnalyser","Über RefTreeAnalyser","Over RefTreeAnalyser","À propos de RefTreeAnalyser"]
["mod.modMenu.AllSheetsStats.Caption","&All Sheets Statistics","&Alle Blattstatistiken","&Alle bladstatistieken","Toutes &statistiques de feuille"]
["mod.modMenu.AllSheetsStats.Tooltip","List Worksheet Statistics such as the calculation time and the number of used cells","Liste Arbeitsblattstatistiken wie Berechnungszeit und Anzahl verwendeter Zellen","Toont werkbladstatistieken zoals rekentijd en aantal gebruikte cellen","Liste les statistiques de feuille (temps de calcul, nombre de cellules utilisées)"]
["mod.modMenu.CalcTimeSelection.Caption","Calc ti&me of selection","Berechnungs&zeit der Auswahl","Reken&tijd van selectie","&Chronométrer la sélection"]
["mod.modMenu.CalcTimeSelection.Tooltip","Time the calculation of the selected cells","Berechnungszeit der ausgewählten Zellen messen","Timed de berekening van de geselecteerde cellen","Mesure le temps de calcul des cellules sélectionnées"]
["mod.modMenu.CheckFormulas.Caption","C&heck Formulas","Formeln &prüfen","Formules &controleren","Vérifier les &formules"]
["mod.modMenu.CheckFormulas.Tooltip","Check current selection for inconsistencies in formulas","Aktuelle Auswahl auf Inkonsistenzen prüfen","Controleert de huidige selectie op inconsistenties","Vérifie la sélection actuelle pour des incohérences"]
["mod.modMenu.ClearArrows.Caption","&Clear Arrows","&Pfeile entfernen","&Pijlen wissen","&Effacer les flèches"]
["mod.modMenu.ClearArrows.Tooltip","Clears all arrows and shapes added by RefTreeAnalyser","Entfernt alle von RefTreeAnalyser hinzugefügten Pfeile und Formen","Verwijdert alle pijlen en vormen die door RefTreeAnalyser zijn toegevoegd","Supprime toutes les flèches et formes ajoutées par RefTreeAnalyser"]
["mod.modMenu.DisplayEquation.Caption","Display &Equation","&Gleichung anzeigen","Ver&gelijking weergeven","Afficher l’&équation"]
["mod.modMenu.DisplayEquation.Tooltip","Display formula of activecell as a mathematical equation","Formel der aktiven Zelle als mathematische Gleichung anzeigen","Formule van de actieve cel als wiskundige vergelijking weergeven","Afficher la formule comme équation mathématique"]
["mod.modMenu.Feedback.Caption","Feed&back","&Feedback","&Feedback","&Commentaires"]
["mod.modMenu.Feedback.Tooltip","Send feedback about the tool to the developer","Feedback zum Tool an den Entwickler senden","Feedback over de tool naar de ontwikkelaar sturen","Envoyer des commentaires au développeur"]
["mod.modMenu.FindCircular.Caption","Find C&ircular References","&Zirkelbezüge suchen","&Kringverwijzingen zoeken","Références &circulaires"]
["mod.modMenu.FindCircular.Tooltip","Finds all circular references in your file","Findet alle Zirkelbezüge in der Datei","Vindt alle kringverwijzingen in uw bestand","Trouve toutes les références circulaires du classeur"]
["mod.modMenu.FindDependents.Caption","Find &Dependents","&Nachfolger suchen","&Doelcellen zoeken","&Dépendants"]
["mod.modMenu.FindDependents.Tooltip","Trace the dependent cells of the active cell","Nachfolgerzellen der aktiven Zelle nachverfolgen","Spoort de doelcellen van de actieve cel op","Repérer les dépendants de la cellule active"]
["mod.modMenu.FindPrecedents.Caption","&Find Precedents","&Vorgänger suchen","&Broncellen zoeken","&Antécédents"]
["mod.modMenu.FindPrecedents.Tooltip","Trace the precedent cells of the active cell","Vorgängerzellen der aktiven Zelle nachverfolgen","Spoort de broncellen van de actieve cel op","Repérer les antécédents de la cellule active"]
["mod.modMenu.HardCodedNumbers.Caption","&Hard-coded numbers","&Feste Zahlenwerte","Hard‑gecodeerde &getallen","&Nombres codés en dur"]
["mod.modMenu.HardCodedNumbers.Tooltip","Selects cells with Hard-coded Numbers","Zellen mit festen Zahlenwerten auswählen","Selecteert cellen met hard‑gecodeerde getallen in formules","Sélectionne les cellules avec nombres codés en dur"]
["mod.modMenu.Help.Caption","&Help","&Hilfe","&Help","&Aide"]
["mod.modMenu.Help.Tooltip","Opens the Help pdf","Öffnet die Hilfe (PDF)","Opent de Help (PDF)","Ouvre l’aide (PDF)"]
["mod.modMenu.HighlightCells.Caption","Hi&ghlight Cells","Zellen &hervorheben","Cellen mar&keren","&Surligner les cellules"]
["mod.modMenu.HighlightCells.Tooltip","Highlight cells containing the same formula","Zellen mit gleicher Formel hervorheben","Cellen met dezelfde formule markeren","Surligner les cellules ayant la même formule"]
["mod.modMenu.HotkeyRegisterFailed.Circular.MsgBox","Failed to register hotkey for Circular References","Konfigurieren der Tastenkombination für Zirkelbezüge fehlgeschlagen","Sneltoets registreren voor Kringverwijzingen mislukt","Échec de l’enregistrement du raccourci pour Références circulaires"]
["mod.modMenu.HotkeyRegisterFailed.Dependents.MsgBox","Failed to register hotkey for Dependents","Konfigurieren der Tastenkombination für Nachfolger fehlgeschlagen","Sneltoets registreren voor Doelcellen mislukt","Échec de l’enregistrement du raccourci pour Dépendants"]
["mod.modMenu.HotkeyRegisterFailed.Errors.MsgBox","Failed to register hotkey for Error tracing","Konfigurieren der Tastenkombination für Fehlerverfolgung fehlgeschlagen","Sneltoets registreren voor Fouten traceren mislukt","Échec de l’enregistrement du raccourci pour Traçage des erreurs"]
["mod.modMenu.HotkeyRegisterFailed.FormulaCheck.MsgBox","Failed to register hotkey for Formula checking","Konfigurieren der Tastenkombination für Formelkontrolle fehlgeschlagen","Sneltoets registreren voor Formulecontrole mislukt","Échec de l’enregistrement du raccourci pour Vérification des formules"]
["mod.modMenu.HotkeyRegisterFailed.Objects.MsgBox","Failed to register hotkey for Objects","Konfigurieren der Tastenkombination für Objekte fehlgeschlagen","Sneltoets registreren voor Objecten mislukt","Échec de l’enregistrement du raccourci pour Objets"]
["mod.modMenu.HotkeyRegisterFailed.Precedents.MsgBox","Failed to register hotkey for Precedents","Konfigurieren der Tastenkombination für Vorgänger fehlgeschlagen","Sneltoets registreren voor Broncellen mislukt","Échec de l’enregistrement du raccourci pour Antécédents"]
["mod.modMenu.HotkeyRegisterFailed.Visualize.MsgBox","Failed to register hotkey for Visualize","Konfigurieren der Tastenkombination für Visualisieren fehlgeschlagen","Sneltoets registreren voor Visualiseren mislukt","Échec de l’enregistrement du raccourci pour Visualiser"]
["mod.modMenu.NoLicensePrompt.MsgBox","It looks like you do not have a license to use RefTreeAnalyser.","Es scheint, dass Sie keine Lizenz zur Nutzung von RefTreeAnalyser besitzen.","Het lijkt erop dat u geen licentie hebt om RefTreeAnalyser te gebruiken.","Il semble que vous n’ayez pas de licence pour utiliser RefTreeAnalyser."]
["mod.modMenu.ObjectReferences.Caption","&Object References","&Objektverweise","&Objectverwijzingen","Références d’&objet"]
["mod.modMenu.ObjectReferences.Tooltip","Shows all objects which use cells","Zeigt alle Objekte, die Zellen verwenden","Toont alle objecten die cellen gebruiken","Affiche les objets qui utilisent des cellules"]
["mod.modMenu.OffSheetRefs.Caption","&Off sheet references","Blattübergreifende &Verweise","Bladoverschrijdende &verwijzingen","Références inter‑&feuilles"]
["mod.modMenu.OffSheetRefs.Tooltip","Display formula references between worksheets","Formelverweise zwischen Arbeitsblättern anzeigen","Formuleverwijzingen tussen werkbladen weergeven","Affiche les références de formule entre feuilles"]
["mod.modMenu.ProjectNotSigned.MsgBox","VBA project is not signed!","VBA‑Projekt ist nicht signiert!","VBA‑project is niet ondertekend!","Le projet VBA n’est pas signé !"]
["mod.modMenu.ReportErrors.Caption","Report &Errors","&Fehler zeigen","Fouten&rapport","Lister les &erreurs"]
["mod.modMenu.ReportErrors.Tooltip","Reports all formula cells returning an error result","Listet alle Formelzellen mit Fehler auf","Rapporteert alle formulecellen die een fout geven","Dresse la liste des cellules dont la formule renvoie une erreur"]
["mod.modMenu.ReportFormulas.Caption","Re&port Formulas","Formel&bericht","Formules &rapporteren","&Lister les formules"]
["mod.modMenu.ReportFormulas.Tooltip","Report unique formulas in workbook","Eindeutige Formeln in Arbeitsmappe auflisten","Rapporteert unieke formules in werkboek","Lister les formules uniques du classeur"]
["mod.modMenu.ReportFunctionCount.Caption","Report Fu&nction Count","Funktions&anzahl","Functie‑&aantal","Nb &fonctions"]
["mod.modMenu.ReportFunctionCount.Tooltip","Reports a count of the Excel functions used in your file","Anzahl der verwendeten Excel‑Funktionen berichten","Rapporteert aantal gebruikte Excel‑functies","Donne le nombre de fonctions Excel utilisées"]
["mod.modMenu.ReportUDFCount.Caption","Report &UDF Count","UDF‑&Anzahl","UDF‑&aantal","Nb &UDF"]
["mod.modMenu.ReportUDFCount.Tooltip","Reports a count of all user-defined functions and LAMBDAs in your file","Anzahl benutzerdefinierter Funktionen und LAMBDAs berichten","Rapporteert aantal gebruikersfuncties en LAMBDA’s","Donne le nombre de fonctions personnalisées et LAMBDAs"]
["mod.modMenu.RibbonLoadIssuePrompt.MsgBox","The RefTreeAnalyser ribbon code caused an error._cr__cr_Sometimes a group policy prevents the Ribbon customizations from appearing._cr__cr_The RefTreeAnalyser tab may not be visible, or _cr_the controls are not shown on the Formulas tab._cr__cr_Do you want to have the buttons added to the add-ins tab of the ribbon?_cr__cr_Tip: RefTreeAnalyser will also adds its menu to the cell right-click menu.","Der Ribbon‑Code von RefTreeAnalyser hat einen Fehler verursacht._cr__cr_Manchmal verhindert eine Gruppenrichtlinie das Anzeigen von Anpassungen im Menüband._cr__cr_Der RefTreeAnalyser‑Tab ist möglicherweise nicht sichtbar, oder _cr_die Steuerelemente werden auf dem Tab 'Formeln' nicht angezeigt._cr__cr_Möchten Sie die Schaltflächen dem Add‑Ins‑Tab des Menübands hinzufügen?_cr__cr_Tipp: RefTreeAnalyser fügt sein Menü auch dem Zellen‑Kontextmenü hinzu.","De RefTreeAnalyser‑lintcode veroorzaakte een fout._cr__cr_Soms voorkomt een groepsbeleid dat lintaanpassingen verschijnen._cr__cr_Tab RefTreeAnalyser is mogelijk niet zichtbaar, of _cr_de besturingselementen worden niet getoond op het tabblad Formules._cr__cr_Wilt u de knoppen toevoegen aan het tabblad invoegtoepassingen van het lint?_cr__cr_Tip: RefTreeAnalyser voegt zijn menu ook toe aan het cel‑contextmenu.","Le code du ruban RefTreeAnalyser a provoqué une erreur._cr__cr_Une stratégie de groupe empêche parfois l’affichage des personnalisations du ruban._cr__cr_L’onglet RefTreeAnalyser peut ne pas être visible, ou _cr_les contrôles ne sont pas affichés dans l’onglet Formules._cr__cr_Voulez‑vous ajouter les boutons à l’onglet Compléments du ruban ?_cr__cr_Astuce : RefTreeAnalyser ajoute également son menu au menu contextuel des cellules."]
["mod.modMenu.SameFormula.Caption","&Same Formula","&Gleiche Formel","&Zelfde formule","Même &formule"]
["mod.modMenu.SameFormula.Tooltip","Selects cells which have the same (copied) formula","Zellen mit gleicher (kopierter) Formel auswählen","Selecteert cellen met dezelfde (gekopieerde) formule","Sélectionne les cellules ayant la même (copiée) formule"]
["mod.modMenu.Select.Caption","&Select","&Auswählen","&Selecteren","&Sélectionner"]
["mod.modMenu.Select.Tooltip","Various special cell selections","Verschiedene spezielle Zellauswahlen","Diverse speciale celselecties","Diverses sélections de cellules spéciales"]
["mod.modMenu.SelectCellsWithDependents.Caption","&Select cells with dependents","Zellen mit &Nachfolgern auswählen","&Doelcellen selecteren","Cellules avec &dépendants"]
["mod.modMenu.SelectCellsWithDependents.Tooltip","Selects Cells With Dependents","Zellen mit Nachfolgern auswählen","Selecteert cellen met doelcellen","Sélectionne cellules avec dépendants"]
["mod.modMenu.SelectEmptyCellsWithDependents.Caption","Select &Empty cells with dependents","&Leere Zellen mit Nachfolgern auswählen","&Lege doelcellen selecteren","Cellules &vides avec dépendants"]
["mod.modMenu.SelectEmptyCellsWithDependents.Tooltip","Selects Empty Cells With Dependents","Leere Zellen mit Nachfolgern auswählen","Selecteert lege cellen met doelcellen","Sélectionne des cellules vides avec dépendants"]
["mod.modMenu.Settings.Caption","S&ettings","&Einstellungen","&Instellingen","&Paramètres"]
["mod.modMenu.Settings.Tooltip","Settings and registration","Einstellungen und Registrierung","Instellingen en registratie","Paramètres et enregistrement"]
["mod.modMenu.SourceCells.Caption","S&ource cell(s)","&Quellzellen","B&roncellen","Cellules &sources"]
["mod.modMenu.SourceCells.Tooltip","Selects the cell(s) from which the formula returns the result. for example, for an XLOOKUP formula it takes you to the range that is returned by the function","Wählt die Zelle(n) aus, aus denen die Formel das Ergebnis zurückgibt. Bei einer XLOOKUP-Formel gelangen Sie beispielsweise zu dem Bereich, der von der Funktion zurückgegeben wird.","Selecteert de broncellen waaruit de formule het resultaat retourneert. Bijvoorbeeld bij de X.ZOEKEN functie selecteert dit de cel waaruit deze formule de waarde haalt","Sélectionne les cellules source d’où la formule renvoie le résultat"]
["mod.modMenu.TableOfContents.Caption","T&able Of Contents","&Inhaltsverzeichnis","&Inhoudsopgave","&Table des matières"]
["mod.modMenu.TableOfContents.Tooltip","Insert a Table Of Contents with links to the objects you select to include","Fügt ein Inhaltsverzeichnis mit Links zu ausgewählten Objekten ein","Voegt een inhoudsopgave in van de objecten die u selecteert. Met koppelingen naar die objecten","Insère une table des matières avec des liens vers les objets sélectionnés"]
["mod.modMenu.TraceErrors.Caption","&Trace Errors","&Fehler nachverfolgen","Fouten &traceren","&Repérer les erreurs"]
["mod.modMenu.TraceErrors.Tooltip","Trace what causes the error in the active cell","Ursache des Fehlers in der aktiven Zelle nachverfolgen","Spoort de oorzaak van de fout in de actieve cel op","Repère la cause de l’erreur dans la cellule active"]
["mod.modMenu.UpdateLicenseExpiredInstructions.MsgBox","You seem to have attempted to update RefTreeAnalyser, but your update license has expired!_cr__cr_Please replace this copy of RefTreeAnalyser with the previous one._cr__cr_You may contact info@jkp-ads.com if you have misplaced your copy._cr__cr_In case this message appears after a regular update,_cr_Please open the folder where you saved RefTreeAnalyser_cr_DO NOT RESTART EXCEL!_cr_and make sure you move any file named:_cr_'RefTreeAnalyserXL.xlam(old version)' to a different location._cr_Then close Excel, rename the moved file to reftreeanalyserXL.xlam_cr_and move it back to the original location, replacing the file that is there.","Sie scheinen versucht zu haben, RefTreeAnalyser zu aktualisieren, aber Ihre Update‑Lizenz ist abgelaufen!_cr__cr_Bitte ersetzen Sie diese Kopie von RefTreeAnalyser durch die vorherige._cr__cr_Sie können info@jkp-ads.com kontaktieren, falls Sie Ihre Kopie verlegt haben._cr__cr_Falls diese Meldung nach einem regulären Update erscheint,_cr_öffnen Sie bitte den Ordner, in dem Sie RefTreeAnalyser gespeichert haben._cr_STARTEN SIE EXCEL NICHT NEU_cr_und stellen Sie sicher, dass Sie jede Datei mit dem Namen:_cr_'RefTreeAnalyserXL.xlam(old version)' an einen anderen Ort verschieben._cr_Schließen Sie dann Excel, benennen Sie die verschobene Datei in reftreeanalyserXL.xlam um_cr_und verschieben Sie sie zurück an den ursprünglichen Speicherort und ersetzen die vorhandene Datei.","Het lijkt erop dat u RefTreeAnalyser hebt geprobeerd te updaten, maar uw update‑licentie is verlopen!_cr__cr_Vervang deze kopie van RefTreeAnalyser door de vorige._cr__cr_U kunt contact opnemen met info@jkp-ads.com als u uw kopie kwijt bent._cr__cr_Verschijnt dit bericht na een normale update,_cr_open dan de map waar u RefTreeAnalyser hebt opgeslagen_cr_START EXCEL NIET OPNIEUW!_cr_en verplaats het bestand genaamd:_cr_'RefTreeAnalyserXL.xlam(old version)' naar een andere locatie._cr_Sluit vervolgens Excel, hernoem het verplaatste bestand naar reftreeanalyserXL.xlam_cr_en verplaats het terug naar de oorspronkelijke locatie, waarbij u het bestaande bestand vervangt.","Il semble que vous avez tenté de mettre à jour RefTreeAnalyser, mais votre licence de mise à jour a expiré !_cr__cr_Remplacez cette copie de RefTreeAnalyser par la précédente._cr__cr_Vous pouvez contacter info@jkp-ads.com si vous avez égaré votre copie._cr__cr_Si ce message apparaît après une mise à jour normale,_cr_ouvrez le dossier où vous avez enregistré RefTreeAnalyser_cr_NE REDÉMARREZ PAS EXCEL !_cr_et veillez à déplacer tout fichier nommé:_cr_'RefTreeAnalyserXL.xlam(old version)' vers un autre emplacement._cr_Puis fermez Excel, renommez le fichier déplacé en reftreeanalyserXL.xlam_cr_et remettez‑le à l’emplacement d’origine en remplaçant le fichier existant."]
["mod.modMenu.UpdateLicenseExpiredPrompt.MsgBox","You seem to have attempted to update RefTreeAnalyser, but your update license has expired!_cr_If you purchased a new license, click Yes to enter your new license code.","Sie scheinen versucht zu haben, RefTreeAnalyser zu aktualisieren, aber Ihre Update‑Lizenz ist abgelaufen!_cr_Wenn Sie eine neue Lizenz gekauft haben, klicken Sie auf Ja, um Ihren neuen Lizenzcode einzugeben.","Het lijkt erop dat u RefTreeAnalyser hebt geprobeerd te updaten, maar uw update‑licentie is verlopen!_cr_Als u een nieuwe licentie hebt gekocht, klik dan op Ja om uw nieuwe licentiecode in te voeren.","Il semble que vous avez tenté de mettre à jour RefTreeAnalyser, mais votre licence de mise à jour a expiré !_cr_Si vous avez acheté une nouvelle licence, cliquez sur Oui pour saisir votre nouveau code de licence."]
["mod.modMenu.Visualize.Caption","&Visualize","&Visualisieren","&Visualiseren","&Visualiser"]
["mod.modMenu.Visualize.Tooltip","Displays arrows and boxes to indicate the precedent cells of the active cell","Zeigt Pfeile und Rahmen für Vorgängerzellen","Toont pijlen en kaders voor broncellen","Affiche flèches et encadrés pour les antécédents"]
["mod.modObjects.ChartOnWorksheet","Chart _arg1_; on worksheet: _arg2_","Diagramm _arg1_; auf Arbeitsblatt: _arg2_","Grafiek _arg1_; op werkblad: _arg2_","Graphique _arg1_; sur feuille : _arg2_"]
["mod.modObjects.NoObjectRefsFound.MsgBox","No objects found with references to cells","Keine Objekte mit Verweisen auf Zellen gefunden","Geen objecten gevonden met verwijzingen naar cellen","Aucun objet trouvé avec des références à des cellules"]
["mod.modObjSearch.AxisTitle.PrimaryCategory","Axis Title (Primary Category)","Achsentitel (Primäre Kategorie)","Astitel (Primaire categorie)","Titre daxe (Catégorie primaire)"]
["mod.modObjSearch.AxisTitle.PrimaryY","Axis Title (Primary Y)","Achsentitel (Primäre Y-Achse)","Assentitel (Primaire Y)","Titre d’axe (Y principal)"]
["mod.modObjSearch.AxisTitle.SecondaryCategory","Axis Title (Secondary Category)","Achsentitel (Sekundäre Kategorie)","Astitel (Secundaire categorie)","Titre d’axe (Catégorie secondaire)"]
["mod.modObjSearch.AxisTitle.SecondaryY","Axis Title (Secondary Y)","Achsentitel (Sekundäre Y-Achse)","Assentitel (Secundaire Y)","Titre d’axe (Y secondaire)"]
["mod.modObjSearch.AxisTitleError.PrimaryCategory","Primary category Axis title","Achsentitel (Primäre Kategorie)","Astitel (Primaire categorie)","Titre daxe (Catégorie primaire)"]
["mod.modObjSearch.AxisTitleError.PrimarySeries","Primary series Axis title","Achsentitel (Primäre Werteachse)","Astitel (Primaire waardenas)","Titre d’axe (Valeurs primaires)"]
["mod.modObjSearch.AxisTitleError.SecondaryCategory","Axis Title (Secondary Category)","Achsentitel (Sekundäre Kategorie)","Astitel (Secundaire categorie)","Titre d’axe (Catégorie secondaire)"]
["mod.modObjSearch.AxisTitleError.SecondarySeries","Secondary series Axis title","Achsentitel (Sekundäre Werteachse)","Astitel (Secundaire waardenas)","Titre daxe (Valeurs secondaires)"]
["mod.modObjSearch.CannotAccessAxisTitle","I cannot access the axis title of _arg1_","Ich kann auf den Achsentitel von _arg1_ nicht zugreifen","Ik kan niet bij de astitel van _arg1_","Impossible daccéder au titre de laxe de _arg1_"]
["mod.modObjSearch.CannotAccessChartTitle","I cannot access the chart title of _arg1_","Ich kann auf den Diagrammtitel von _arg1_ nicht zugreifen","Ik kan niet bij de grafiektitel van _arg1_","Impossible d’accéder au titre du graphique de _arg1_"]
["mod.modObjSearch.CannotAccessDatalabel","I cannot access datalabel _arg1_ of series _arg2_ of _arg3_","Ich kann auf die Datenbeschriftung _arg1_ der Datenreihe _arg2_ von _arg3_ nicht zugreifen","Ik kan niet bij gegevenslabel _arg1_ van reeks _arg2_ van _arg3_","Impossible daccéder à létiquette de données _arg1_ de la série _arg2_ de _arg3_"]
["mod.modObjSearch.CannotAccessSeriesFormula","I cannot access the formula of series _arg1_ of _arg2_","Ich kann auf die Formel der Datenreihe _arg1_ von _arg2_ nicht zugreifen","Ik kan niet bij de formule van reeks _arg1_ van _arg2_","Impossible daccéder à la formule de la série _arg1_ de _arg2_"]
["mod.modObjSearch.CannotAccessSeriesPoints","I cannot access the points of series _arg1_ of _arg2_","Ich kann auf die Punkte der Serie _arg1_ von _arg2_ nicht zugreifen","Ik heb geen toegang tot de punten van reeks _arg1_ van _arg2_","Je ne peux pas accéder aux points de la série _arg1_ de _arg2_"]
["mod.modObjSearch.ChartPropertiesMayNotBeCheckable","Some properties of the chart may not be checkable","Einige Eigenschaften des Diagramms sind möglicherweise nicht prüfbar","Sommige eigenschappen van de grafiek zijn mogelijk niet te controleren","Certaines propriétés du graphique ne sont peut‑être pas contrôlables"]
["mod.modObjSearch.ChartTitle","Chart Title","Diagrammtitel","Grafiektitel","Titre du graphique"]
["mod.modObjSearch.CheckObjectYourself","You will need to check this object yourself","Sie müssen dieses Objekt selbst prüfen","U moet dit object zelf controleren","Vous devrez vérifier cet objet vous‑même"]
["mod.modObjSearch.CouldNotActivateChartObject","I couldn't activate ChartObject _arg1_ on sheet _arg2_","Ich konnte ChartObject _arg1_ auf Blatt _arg2_ nicht aktivieren","Ik kon ChartObject _arg1_ op blad _arg2_ niet activeren","Impossible d’activer l’objet graphique _arg1_ sur la feuille _arg2_"]
["mod.modObjSearch.DatalabelOfSeries","Datalabel _arg1_ of series _arg2_","Datenbeschriftung _arg1_ der Datenreihe _arg2_","Gegevenslabel _arg1_ van reeks _arg2_","Étiquette de données _arg1_ de la série _arg2_"]
["mod.modObjSearch.DatalabelOfSeriesPoints","Datalabel of Series (_arg1_) points(_arg2_)","Datenbeschriftung der Datenreihe (_arg1_) Punkt(_arg2_)","Gegevenslabel van reeks (_arg1_) punt(_arg2_)","Étiquette de données de la série (_arg1_) point(_arg2_)"]
["mod.modObjSearch.DatapointsOfSeries","Datapoints of series _arg1_","Datenpunkte der Serie _arg1_","Datapunten van reeks _arg1_","Points de données de la série _arg1_"]
["mod.modObjSearch.ErrorsPrompt.MsgBox","There is/are _arg1_ error(s)._cr_Would you like me to write the error messages into a new worksheet?_cr__cr_Click:_cr_Yes to have the messages written to a worksheet_cr_No to see a messagebox for each error_cr_Cancel to close","Es gibt _arg1_ Fehler._cr_Sollen die Fehlermeldungen in ein neues Arbeitsblatt geschrieben werden?_cr__cr_Klicke:_cr_Ja, um die Meldungen zu schreiben_cr_Nein, um für jeden Fehler ein Meldungsfenster zu sehen_cr_Abbrechen, um zu schließen","Er is/zijn _arg1_ fout(en)._cr_Wilt u de foutmeldingen naar een nieuw werkblad schrijven?_cr__cr_Klik:_cr_Ja om de meldingen te schrijven_cr_Nee om voor elke fout een melding te zien_cr_Annuleren om te sluiten","Il y a _arg1_ erreur(s)._cr_Voulez‑vous écrire les messages d’erreur dans une nouvelle feuille ?_cr__cr_Cliquez :_cr_Oui pour écrire les messages_cr_Non pour voir une boîte de message par erreur_cr_Annuler pour fermer"]
["mod.modObjSearch.FormatCond.ColorScaleIn","Formatcond_arg1_ Colorscale _arg2_ in _arg3_","Formatbed._arg1_ Farbskala _arg2_ in _arg3_","Voorw. Opm._arg1_ Kleurschaal _arg2_ in _arg3_","Cond. format _arg1_ Échelle de couleurs _arg2_ dans _arg3_"]
["mod.modObjSearch.FormatCond.DataBarsMaxPointIn","Formatcond_arg1_ Databars MaxPoint in _arg2_","Formatbed._arg1_ Datenbalken MaxPunkt in _arg2_","Voorw. Opm._arg1_ Gegevensbalken MaxPunt in _arg2_","Cond. format _arg1_ Barres de données Point max dans _arg2_"]
["mod.modObjSearch.FormatCond.DataBarsMinPointIn","Formatcond_arg1_ Databars MinPoint in _arg2_","Formatbed._arg1_ Datenbalken MinPunkt in _arg2_","Voorw. Opm._arg1_ Gegevensbalken MinPunt in _arg2_","Cond. format _arg1_ Barres de données Point min dans _arg2_"]
["mod.modObjSearch.FormatCond.Formula1In","Formatcond_arg1_ formula1 in _arg2_","Formatbed._arg1_ Formel1 in _arg2_","Voorw. Opm._arg1_ formule1 in _arg2_","Cond. format _arg1_ formule1 dans _arg2_"]
["mod.modObjSearch.FormatCond.Formula2In","Formatcond_arg1_ formula2 in _arg2_","Formatbed._arg1_ Formel2 in _arg2_","Voorw. Opm._arg1_ formule2 in _arg2_","Cond. format _arg1_ formule2 dans _arg2_"]
["mod.modObjSearch.FormatCond.IconsIn","Formatcond_arg1_ Icons _arg2_ in _arg3_","Formatbed._arg1_ Symbole _arg2_ in _arg3_","Voorw. Opm._arg1_ Pictogrammen _arg2_ in _arg3_","Cond. format _arg1_ Icônes _arg2_ dans _arg3_"]
["mod.modObjSearch.FormatConditionsNotChecked","Format conditions of sheet '_arg1_' not checked!","Bedingte Formatierungen des Blatts '_arg1_' nicht geprüft!","Voorwaardelijke opmaak van blad '_arg1_' niet gecontroleerd!","Conditions de mise en forme de la feuille '_arg1_' non vérifiées !"]
["mod.modObjSearch.Hyperlink.InRange","Hyperlink in _arg1_","Hyperlink in _arg1_","Hyperlink in _arg1_","Hyperlien dans _arg1_"]
["mod.modObjSearch.Hyperlink.InShape","Hyperlink in shape _arg1_","Hyperlink in Form _arg1_","Hyperlink in vorm _arg1_","Hyperlien dans la forme _arg1_"]
["mod.modObjSearch.ManyFormatConditions.MsgBox","Worksheet '_arg1_' contains over 1000 format conditions._cr_Analysing them may take a long time. Stop analysing format conditions on this worksheet?","Arbeitsblatt '_arg1_' enthält über 1000 bedingte Formatierungen._cr_Deren Analyse kann lange dauern. Analyse für dieses Blatt beenden?","Werkblad '_arg1_' bevat meer dan 1000 voorwaardeijke opmaak regels._cr_Analyseren kan lang duren. Analyse van voorwaardeijke opmaak regels op dit blad stoppen?","La feuille '_arg1_' contient plus de 1000 conditions de mise en forme._cr_L’analyse peut être longue. Arrêter l’analyse sur cette feuille ?"]
["mod.modObjSearch.ManyValidations.MsgBox","Worksheet '_arg1_' contains over 1000 Validations._cr_Analysing them may take a long time. Stop analysing Data validations on this worksheet?","Arbeitsblatt '_arg1_' enthält über 1000 Datenüberprüfungen._cr_Deren Analyse kann lange dauern. Analyse auf diesem Blatt beenden?","Werkblad '_arg1_' bevat meer dan 1000 gegevensvalidatie regels._cr_Analyseren kan lang duren. Analyse van gegevensvalidatie regels op dit blad stoppen?","La feuille '_arg1_' contient plus de 1000 validations de données._cr_L’analyse peut être longue. Arrêter l’analyse sur cette feuille ?"]
["mod.modObjSearch.PivotTableOf","PivotTable of _arg1_","PivotTable von _arg1_","Draaitabel van _arg1_","Tableau croisé dynamique de _arg1_"]
["mod.modObjSearch.PowerQuery.Label","PowerQuery;_arg1_","PowerQuery;_arg1_","PowerQuery;_arg1_","PowerQuery;_arg1_"]
["mod.modObjSearch.Prefix.ConnectOf","Connect $ of: ","Verbindung $ von: ","Verbinding $ van: ","Connexion $ de : "]
["mod.modObjSearch.Prefix.PivotTable","PivotTable: ","PivotTable: ","Draaitabel: ","Tableau croisé dynamique : "]
["mod.modObjSearch.Prefix.PivotTableDNS","PivotTable DNS: ","PivotTable DNS: ","Draaitabel DNS: ","TCD DNS : "]
["mod.modObjSearch.Prefix.PivotTableSQL","PivotTable SQL: ","PivotTable SQL: ","Draaitabel SQL: ","TCD SQL : "]
["mod.modObjSearch.Prefix.SQLOf","SQL of: ","SQL von: ","SQL van: ","SQL de : "]
["mod.modObjSearch.SeriesFormula.Title","Formula of chart series _arg1_","Formel der Datenreihe _arg1_","Formule van gegevensreeks _arg1_","Formule de la série de données _arg1_"]
["mod.modObjSearch.SeriesLabel","Series(_arg1_)","Serie(_arg1_)","Reeks(_arg1_)","Série(_arg1_)"]
["mod.modObjSearch.SeriesStage","Series _arg1_","Serie _arg1_","Reeks _arg1_","Série _arg1_"]
["mod.modObjSearch.SparklineGroup.InRange","Sparkline group in _arg1_","Sparkline‑Gruppe in _arg1_","Sparkline‑groep in _arg1_","Groupe de sparkline dans _arg1_"]
["mod.modObjSearch.Validation.Formula1In","Validation formula1 in _arg1_","Validierung Formel1 in _arg1_","Validatie formule1 in _arg1_","Validation formule1 dans _arg1_"]
["mod.modObjSearch.Validation.Formula2In","Validation formula2 in _arg1_","Validierung Formel2 in _arg1_","Validatie formule2 in _arg1_","Validation formule2 dans _arg1_"]
["mod.modObjSearch.ValidationCellsNotChecked","Validation cells of sheet '_arg1_' not checked!","Validierungszellen des Blatts '_arg1_' nicht geprüft!","Validatiecellen van blad '_arg1_' niet gecontroleerd!","Cellules de validation de la feuille '_arg1_' non vérifiées !"]
["mod.modObjSearch.ViewMessage.MsgBox","Message _arg1_ of _arg2__cr__cr__arg3__cr__cr_Click cancel to stop viewing messages.","Nachricht _arg1_ von _arg2__cr__cr__arg3__cr__cr_Klicken Sie auf Abbrechen, um die Anzeige zu beenden.","Bericht _arg1_ van _arg2__cr__cr__arg3__cr__cr_Klik op Annuleren om te stoppen met weergeven.","Message _arg1_ sur _arg2__cr__cr__arg3__cr__cr_Cliquez sur Annuler pour arrêter l’affichage."]
["mod.modReferences.CurrentCellNoError.MsgBox","Current cell does not have an error value!","Die aktuelle Zelle hat keinen Fehlerwert!","De huidige cel heeft geen foutwaarde!","La cellule actuelle n’a pas de valeur d’erreur !"]
["mod.modReferences.SelectCellFirst.MsgBox","Please select a cell first!","Bitte wählen Sie zuerst eine Zelle aus!","Selecteer eerst een cel!","Veuillez d’abord sélectionner une cellule !"]
["mod.modRegister.DemoModePurchasePrompt.MsgBox","This feature is unavailable in demo mode._cr_You need a license to be able to use it._cr__cr_Would you like to purchase a license now?","Diese Funktion ist im Demo‑Modus nicht verfügbar._cr_Sie benötigen eine Lizenz, um sie verwenden zu können._cr__cr_Möchten Sie jetzt eine Lizenz erwerben?","Deze functie is niet beschikbaar in demomodus._cr_U hebt een licentie nodig om deze te gebruiken._cr__cr_Wilt u nu een licentie aanschaffen?","Cette fonctionnalité n’est pas disponible en mode démo._cr_Vous avez besoin d’une licence pour pouvoir l’utiliser._cr__cr_Souhaitez‑vous acheter une licence maintenant ?"]
["mod.modRegister.UpdateRegistrationPrompt.MsgBox","Your product is currently registered with this information:_cr__cr_User name: _arg1__cr_Code: _arg2__cr__cr_which is different from what was entered :_cr__cr_User name: _arg3__cr_Code: _arg4__cr__cr_Do you want to update the current registration information?","Ihr Produkt ist derzeit mit folgenden Angaben registriert:_cr__cr_Benutzername: _arg1__cr_Code: _arg2__cr__cr_die von den eingegebenen abweichen:_cr__cr_Benutzername: _arg3__cr_Code: _arg4__cr__cr_Möchten Sie die aktuellen Registrierungsdaten aktualisieren?","Uw product is momenteel geregistreerd met deze gegevens:_cr__cr_Gebruikersnaam: _arg1__cr_Code: _arg2__cr__cr_die afwijken van wat is ingevoerd:_cr__cr_Gebruikersnaam: _arg3__cr_Code: _arg4__cr__cr_Wilt u de huidige registratiegegevens bijwerken?","Votre produit est actuellement enregistré avec ces informations :_cr__cr_Nom d’utilisateur : _arg1__cr_Code : _arg2__cr__cr_qui diffèrent de celles saisies :_cr__cr_Nom d’utilisateur : _arg3__cr_Code : _arg4__cr__cr_Voulez‑vous mettre à jour les informations d’enregistrement actuelles ?"]
["mod.modRibbonX.RibbonLostState.MsgBox","The RefTreeAnalyser ribbon has lost state, please reload the add-in to make it work again. We're sorry for the inconvenience","Die RefTreeAnalyser‑Registerkarte hat ihren Zustand verloren. Bitte laden Sie das Add‑In neu, damit es wieder funktioniert. Wir entschuldigen uns für die Unannehmlichkeiten","Het lint van RefTreeAnalyser is zijn status kwijtgeraakt; laad de invoegtoepassing opnieuw om het weer te laten werken. Onze excuses voor het ongemak","Le ruban RefTreeAnalyser a perdu son état ; veuillez recharger le complément pour qu’il fonctionne à nouveau. Désolé pour le désagrément."]
["mod.modRibbonX.UseFXLNMDocs.MsgBox","You have Fast Excel Name Manager Pro, please use that add-ins documentation","Sie haben Fast Excel Name Manager Pro. Bitte verwenden Sie die Dokumentation dieses Add‑Ins.","U hebt Fast Excel Name Manager Pro; gebruik de documentatie van die invoegtoepassing.","Vous avez Fast Excel Name Manager Pro ; veuillez utiliser la documentation de ce complément."]
["mod.modSetup.InstallAddinPrompt.MsgBox","Do you wish to install '_arg1_' as an addin?","Möchten Sie '_arg1_' als Add‑In installieren?","Wilt u '_arg1_' als invoegtoepassing installeren?","Souhaitez‑vous installer « _arg1_ » comme module complémentaire ?"]
["mod.modSetup.OpenedFromZip.MsgBox","It appears you have opened the add-in from a compressed folder (zip file) or from a temporary folder._cr__cr_You are advised to save the add-in file to a dedicated folder in your Documents folder and then open the add-in from that location._cr__cr_The add-in will now close.","Es scheint, dass Sie das Add‑In aus einem komprimierten Ordner (ZIP‑Datei) oder aus einem temporären Ordner geöffnet haben._cr__cr_Speichern Sie die Add‑In‑Datei in einem eigenen Ordner in Ihrem Dokumente‑Ordner und öffnen Sie sie anschließend von dort._cr__cr_Das Add‑In wird nun geschlossen.","Het lijkt erop dat u de invoegtoepassing hebt geopend vanuit een gecomprimeerde map (zipbestand) of een tijdelijke map._cr__cr_U wordt geadviseerd het invoegtoepassing‑bestand op te slaan in een aparte map in uw map Documenten en de invoegtoepassing daarna vanaf die locatie te openen._cr__cr_De invoegtoepassing wordt nu gesloten.","Il semble que vous ayez ouvert le module complémentaire depuis un dossier compressé (fichier zip) ou un dossier temporaire._cr__cr_Enregistrez le fichier du module complémentaire dans un dossier dédié sous Documents, puis ouvrez‑le depuis cet emplacement._cr__cr_Le module complémentaire va maintenant se fermer."]
["mod.modSetup.StopAskingPrompt.MsgBox","Do you want me to stop asking this question?","Soll diese Frage nicht mehr gestellt werden?","Wilt u dat ik deze vraag niet meer stel?","Voulez‑vous que j’arrête de poser cette question ?"]
["mod.modSheets.DrawBoxes.Sheets2SheetsLink","_arg1__cr_ Links To: _arg2__cr_ links From: _arg3_","_arg1__cr_Verknüpfungen zu: _arg2__cr_Verknüpfungen von: _arg3_","_arg1__cr_ Koppelingen naar: _arg2__cr_ Koppelingen van: _arg3_","_arg1__cr_Liaisons vers: _arg2__cr_Liaisons depuis: _arg3_"]
["mod.modSheets.SearchedRange.FoundDependents.MsgBox","Searched range _arg1__cr__cr_Found _arg2_ cells which have depedents. Use the tab key to cycle through those cells","Bereich _arg1_analysiert._cr__cr__arg2_ Zellen mit Nachfolgern gefunden. Mit der TAB-taste durch diese Zellen wechseln","Bereik _arg1_ doorzocht._cr__cr__arg2_ cellen met doelcellen gevonden. Gebruik de Tab-toets om door deze cellen te bladeren","Plage recherchée _arg1__cr__cr_Trouvé _arg2_ cellules ayant des dépendants. Utilisez la touche Tab pour parcourir ces cellules"]
["mod.modSheets.SearchedRange.FoundEmptyDependents.MsgBox","Searched range _arg1__cr__cr_Found _arg2_ empty cells which have depedents. Use the tab key to cycle through those cells","Bereich _arg1_analysiert._cr__cr__arg2_ leere Zellen mit Nachfolgern gefunden. Mit der TAB-Taste durch diese Zellen wechseln","Bereik _arg1_ doorzocht._cr__cr__arg2_ lege cellen met doelcellen gevonden. Gebruik de Tab-toets om door deze cellen te bladeren","Plage recherchée _arg1__cr__cr_Trouvé _arg2_ cellules vides ayant des dépendants. Utilisez la touche Tab pour parcourir ces cellules"]
["mod.modSheets.SearchedRange.NoDependents.MsgBox","Searched range _arg1__cr__cr_No cells with dependents were found","Bereich _arg1_analysiert._cr__cr_Keine Zellen mit Nachfolgern gefunden","Bereik _arg1_ doorzocht._cr__cr_Geen cellen met doelcellen gevonden","Plage recherchée _arg1__cr__cr_Aucune cellule avec des dépendants trouvée"]
["mod.modSheets.SearchedRange.NoEmptyDependents.MsgBox","Searched range _arg1__cr__cr_No empty cells with dependents were found","Bereich _arg1_analysiert._cr__cr_Keine leeren Zellen mit Nachfolgern gefunden","Bereik _arg1_ doorzocht._cr__cr_Geen lege cellen met doelcellen gevonden","Plage recherchée _arg1__cr__cr_Aucune cellule vide avec des dépendants trouvée"]
["mod.modTOC.SheetNameExists.MsgBox","The sheet name you entered already exists, using '_arg1_'","Der von Ihnen eingegebene Blattname existiert bereits, es wird '_arg1_' verwendet","De ingevoerde bladnaam bestaat al, '_arg1_' wordt gebruikt","Le nom de feuille saisi existe déjà, utilisation de '_arg1_'"]
["mod.modUpdate.AutoUpdatesTurnedOff.MsgBox","_arg1__cr__cr_Automatic updates has been turned off.","_arg1__cr__cr_Automatische Updates wurden deaktiviert.","_arg1__cr__cr_Automatische updates zijn uitgeschakeld.","_arg1__cr__cr_Les mises à jour automatiques ont été désactivées."]
["mod.modUpdate.PurchaseNewLicensePrompt.MsgBox","Would you like to purchase a new license?","Möchten Sie eine neue Lizenz erwerben?","Wilt u een nieuwe licentie kopen?","Souhaitez‑vous acheter une nouvelle licence ?"]
["mod.modUpdate.Unregistered.UpdatesDisabled","This is an unregistered version, updates are disabled.","Dies ist eine nicht registrierte Version, Updates sind deaktiviert.","Dit is een niet geregistreerde versie, updaten is uitgeschakeld.","Il s’agit d’une version non enregistrée, les mises à jour sont désactivées."]
["mod.modUpdate.UpdateLicenseExpired","Your license to obtain updates has expired.","Ihre Lizenz zum Erhalt von Updates ist abgelaufen.","Uw licentie om updates te ontvangen is verlopen.","Votre licence pour obtenir des mises à jour a expiré."]
["mod.modVisualizeTree.FrozenPanesWarning.MsgBox","Your sheet appears to have frozen panes and there is not much room to show the visualisation._cr_Consider removing frozen panes for a better visualisation","Ihr Blatt scheint fixierte Fensterbereiche zu haben und es ist wenig Platz für die Visualisierung._cr_Entfernen Sie ggf. die fixierten Fensterbereiche für eine bessere Visualisierung","Uw blad lijkt geblokkeerde vensters te hebben en er is weinig ruimte voor de visualisatie._cr_Overweeg vensters blokkeren te verwijderen voor een betere visualisatie","Votre feuille semble avoir des volets figés et il y a peu d’espace pour la visualisation._cr_Envisagez de supprimer les volets figés pour une meilleure visualisation"]
["pb.modFunctions.SortingAndGroupingDependents","Sorting and grouping dependents","Nachfolger sortieren und gruppieren","Afhankelijken sorteren en groeperen","Trier et regrouper les dépendants"]
["pb.modFunctions.SortingProgress","Sorting, _arg1_ of _arg2_","Sortieren, _arg1_ von _arg2_","Sorteren, _arg1_ van _arg2_","Tri, _arg1_ sur _arg2_"]
["ribbon.rxjkpRNMGroup.label","Name Manager+","Name Manager+","Name Manager+","Name Manager+"]
["ribbon.rxjkpRT.label","RefTreeAnalyser","RefTreeAnalyser","RefTreeAnalyser","RefTreeAnalyser"]
["ribbon.rxjkpRT1.label","References","Verweise","Verwijzingen","Références"]
["ribbon.rxjkpRT2.label","Analyze","Analysieren","Analyseren","Analyser"]
["ribbon.rxjkpRT3.label","Tools","Extras","Hulpmiddelen","Outils"]
["ribbon.rxjkpRT4.label","Help and Settings","Hilfe und Einstellungen","Help en instellingen","Aide et paramètres"]
["ribbon.rxjkpRTbtnAbout.label","About","Info","Info","À propos"]
["ribbon.rxjkpRTbtnAbout.screentip","About","Info","Info","À propos"]
["ribbon.rxjkpRTbtnAbout.supertip","About RefTreeAnalyser","Über RefTreeAnalyser","Over RefTreeAnalyser","À propos de RefTreeAnalyser"]
["ribbon.rxjkpRTbtnAbout1.label","About","Info","Info","À propos"]
["ribbon.rxjkpRTbtnAbout1.screentip","About","Info","Info","À propos"]
["ribbon.rxjkpRTbtnAbout1.supertip","About RefTreeAnalyser","Über RefTreeAnalyser","Over RefTreeAnalyser","À propos de RefTreeAnalyser"]
["ribbon.rxjkpRTbtnBuyNow.label","Buy Now!","Jetzt kaufen!","Nu kopen!","Acheter maintenant !"]
["ribbon.rxjkpRTbtnBuyNow.screentip","License","Lizenz","Licentie","Licence"]
["ribbon.rxjkpRTbtnBuyNow.supertip","Buy license for RefTreeAnalyser","Lizenz für RefTreeAnalyser kaufen","Licentie voor RefTreeAnalyser kopen","Acheter une licence pour RefTreeAnalyser"]
["ribbon.rxjkpRTbtnBuyNow1.label","Buy Now!","Jetzt kaufen!","Nu kopen!","Acheter maintenant !"]
["ribbon.rxjkpRTbtnBuyNow1.screentip","License","Lizenz","Licentie","Licence"]
["ribbon.rxjkpRTbtnBuyNow1.supertip","Buy license for RefTreeAnalyser","Lizenz für RefTreeAnalyser kaufen","Licentie voor RefTreeAnalyser kopen","Acheter une licence pour RefTreeAnalyser"]
["ribbon.rxjkpRTbtnCirc.label","Circles","Zirkelbezüge","Kringverwijzingen","Références circulaires"]
["ribbon.rxjkpRTbtnCirc.screentip","Trace Circular References","Zirkelbezüge nachverfolgen","Kringverwijzingen opsporen","Repérer les références circulaires"]
["ribbon.rxjkpRTbtnCirc.supertip","Finds all circular references in your file","Findet alle Zirkelbezüge in der Datei","Vindt alle kringverwijzingen in uw bestand","Trouve toutes les références circulaires du classeur"]
["ribbon.rxjkpRTbtnCirc1.label","Circular Refs","Zirkelbezüge","Kringverwijzingen","Références circulaires"]
["ribbon.rxjkpRTbtnCirc1.screentip","Trace Circular References","Zirkelbezüge nachverfolgen","Kringverwijzingen opsporen","Repérer les références circulaires"]
["ribbon.rxjkpRTbtnCirc1.supertip","Finds all circular references in your file","Findet alle Zirkelbezüge in der Datei","Vindt alle kringverwijzingen in uw bestand","Trouve toutes les références circulaires du classeur"]
["ribbon.rxjkpRTbtnClearArrows.label","Clear","Löschen","Wissen","Effacer"]
["ribbon.rxjkpRTbtnClearArrows.screentip","Clear all","Alles löschen","Alles wissen","Tout effacer"]
["ribbon.rxjkpRTbtnClearArrows.supertip","Clears all arrows and shapes added by RefTreeAnalyser","Entfernt alle von RefTreeAnalyser hinzugefügten Pfeile und Formen","Verwijdert alle pijlen en vormen die door RefTreeAnalyser zijn toegevoegd","Supprime toutes les flèches et formes ajoutées par RefTreeAnalyser"]
["ribbon.rxjkpRTbtnClearArrows1.label","Clear Arrows","Pfeile löschen","Pijlen wissen","Effacer les flèches"]
["ribbon.rxjkpRTbtnClearArrows1.screentip","Clear all","Alles löschen","Alles wissen","Tout effacer"]
["ribbon.rxjkpRTbtnClearArrows1.supertip","Clears all arrows and shapes added by RefTreeAnalyser","Entfernt alle von RefTreeAnalyser hinzugefügten Pfeile und Formen","Verwijdert alle pijlen en vormen die door RefTreeAnalyser zijn toegevoegd","Supprime toutes les flèches et formes ajoutées par RefTreeAnalyser"]
["ribbon.rxjkpRTbtnDeps.label","Dependents","Nachfolger","Doelcellen","Dépendants"]
["ribbon.rxjkpRTbtnDeps.screentip","Trace Dependents","Nachfolger nachverfolgen","Doelcellen traceren","Repérer les dépendants"]
["ribbon.rxjkpRTbtnDeps.supertip","Trace the dependent cells of the active cell","Verfolgt die Nachfolgerzellen der aktiven Zelle","Spoort de doelcellen van de actieve cel op","Repère les cellules dépendantes de la cellule active"]
["ribbon.rxjkpRTbtnDeps1.label","Dependents","Nachfolger","Doelcellen","Dépendants"]
["ribbon.rxjkpRTbtnDeps1.screentip","Trace Dependents","Nachfolger nachverfolgen","Doelcellen traceren","Repérer les dépendants"]
["ribbon.rxjkpRTbtnDeps1.supertip","Trace the dependent cells of the active cell","Verfolgt die Nachfolgerzellen der aktiven Zelle","Spoort de doelcellen van de actieve cel op","Repère les cellules dépendantes de la cellule active"]
["ribbon.rxjkpRTbtnEquation.label","Displ. Equation","Gl. anzeigen","Vergelijking weergeven","Aff. équation"]
["ribbon.rxjkpRTbtnEquation.screentip","Display formula of activecell","Formel der aktiven Zelle anzeigen","Formule van de actieve cel weergeven","Afficher la formule de la cellule active"]
["ribbon.rxjkpRTbtnEquation.supertip","Display formula of activecell as a mathematical equation","Formel der aktiven Zelle als mathematische Gleichung anzeigen","Formule van de actieve cel als wiskundige vergelijking weergeven","Afficher la formule de la cellule active comme équation mathématique"]
["ribbon.rxjkpRTbtnEquation1.label","Display Equation","Gleichung anzeigen","Vergelijking weergeven","Afficher l’équation"]
["ribbon.rxjkpRTbtnEquation1.screentip","Display formula of activecell","Formel der aktiven Zelle anzeigen","Formule van de actieve cel weergeven","Afficher la formule de la cellule active"]
["ribbon.rxjkpRTbtnEquation1.supertip","Display formula of activecell as a mathematical equation","Formel der aktiven Zelle als mathematische Gleichung anzeigen","Formule van de actieve cel als wiskundige vergelijking weergeven","Afficher la formule de la cellule active comme équation mathématique"]
["ribbon.rxjkpRTbtnErrors.label","Errors","Fehler","Fouten","Erreurs"]
["ribbon.rxjkpRTbtnErrors.screentip","Trace Errors","Fehler nachverfolgen","Fouten traceren","Repérer les erreurs"]
["ribbon.rxjkpRTbtnErrors.supertip","Trace what causes the error in the active cell","Verfolgt die Ursache des Fehlers in der aktiven Zelle","Spoort de oorzaak van de fout in de actieve cel op","Repère la cause de l’erreur dans la cellule active"]
["ribbon.rxjkpRTbtnErrors1.label","Trace Errors","Fehler nachverfolgen","Fouten traceren","Repérer les erreurs"]
["ribbon.rxjkpRTbtnErrors1.screentip","Trace Errors","Fehler nachverfolgen","Fouten traceren","Repérer les erreurs"]
["ribbon.rxjkpRTbtnErrors1.supertip","Trace what causes the error in the active cell","Verfolgt die Ursache des Fehlers in der aktiven Zelle","Spoort de oorzaak van de fout in de actieve cel op","Repère la cause de l’erreur dans la cellule active"]
["ribbon.rxjkpRTbtnHelp.label","RefTreeAnalyser","RefTreeAnalyser","RefTreeAnalyser","RefTreeAnalyser"]
["ribbon.rxjkpRTbtnHelp.screentip","Help","Hilfe","Help","Aide"]
["ribbon.rxjkpRTbtnHelp.supertip","Opens the RefTreeAnalyser Help pdf","Öffnet das RefTreeAnalyser‑Hilfedokument (PDF)","Opent de RefTreeAnalyser‑help (PDF)","Ouvre l’aide RefTreeAnalyser (PDF)"]
["ribbon.rxjkpRTbtnHelp1.label","RefTreeAnalyser","RefTreeAnalyser","RefTreeAnalyser","RefTreeAnalyser"]
["ribbon.rxjkpRTbtnHelp1.screentip","Help","Hilfe","Help","Aide"]
["ribbon.rxjkpRTbtnHelp1.supertip","Opens the RefTreeAnalyser Help pdf","Öffnet das RefTreeAnalyser‑Hilfedokument (PDF)","Opent de RefTreeAnalyser‑help (PDF)","Ouvre l’aide RefTreeAnalyser (PDF)"]
["ribbon.rxjkpRTbtnHelpFF.label","FlexFind","FlexFind","FlexFind","FlexFind"]
["ribbon.rxjkpRTbtnHelpFF.screentip","Help","Hilfe","Help","Aide"]
["ribbon.rxjkpRTbtnHelpFF.supertip","Opens the FlexFind Help pdf","Öffnet die FlexFind‑Hilfe (PDF)","Opent de FlexFind‑help (PDF)","Ouvre l’aide FlexFind (PDF)"]
["ribbon.rxjkpRTbtnHelpFF1.label","FlexFind","FlexFind","FlexFind","FlexFind"]
["ribbon.rxjkpRTbtnHelpFF1.screentip","Help","Hilfe","Help","Aide"]
["ribbon.rxjkpRTbtnHelpFF1.supertip","Opens the FlexFind Help pdf","Öffnet die FlexFind‑Hilfe (PDF)","Opent de FlexFind‑help (PDF)","Ouvre l’aide FlexFind (PDF)"]
["ribbon.rxjkpRTbtnHelpNM.label","Name Manager","Name Manager","Name Manager","Name Manager"]
["ribbon.rxjkpRTbtnHelpNM.screentip","Help","Hilfe","Help","Aide"]
["ribbon.rxjkpRTbtnHelpNM.supertip","Opens the Name Manager Help pdf","Öffnet die Hilfe für den Name Manager (PDF)","Opent de help voor Name Manager (PDF)","Ouvre l’aide du Name Manager (PDF)"]
["ribbon.rxjkpRTbtnHelpNM1.label","Name Manager","Name Manager","Name Manager","Name Manager"]
["ribbon.rxjkpRTbtnHelpNM1.screentip","Help","Hilfe","Help","Aide"]
["ribbon.rxjkpRTbtnHelpNM1.supertip","Opens the Name Manager Help pdf","Öffnet die Hilfe für den Name Manager (PDF)","Opent de help voor Name Manager (PDF)","Ouvre l’aide du Name Manager (PDF)"]
["ribbon.rxjkpRTbtnObjectPrecs.label","Objects","Objekte","Objecten","Objets"]
["ribbon.rxjkpRTbtnObjectPrecs.screentip","Analyse Object precedents","Objektvorgänger analysieren","Object broncellen analyseren","Analyser les antécédents d’objet"]
["ribbon.rxjkpRTbtnObjectPrecs.supertip","Shows all objects which use cells","Zeigt alle Objekte, die Zellen verwenden","Toont alle objecten die cellen gebruiken","Affiche tous les objets qui utilisent des cellules"]
["ribbon.rxjkpRTbtnObjectPrecs1.label","Object Refs","Objekt‑Bez.","Objectverwijz.","Réf. objets"]
["ribbon.rxjkpRTbtnObjectPrecs1.screentip","Analyse Object precedents","Objektvorgänger analysieren","Object broncellen analyseren","Analyser les antécédents d’objet"]
["ribbon.rxjkpRTbtnObjectPrecs1.supertip","Shows all objects which use cells","Zeigt alle Objekte, die Zellen verwenden","Toont alle objecten die cellen gebruiken","Affiche tous les objets qui utilisent des cellules"]
["ribbon.rxjkpRTbtnPrecs.label","Precedents","Vorgänger","Broncellen","Antécédents"]
["ribbon.rxjkpRTbtnPrecs.screentip","Trace Precedents","Vorgänger nachverfolgen","Broncellen traceren","Repérer les antécédents"]
["ribbon.rxjkpRTbtnPrecs.supertip","Trace the precedent cells of the active cell","Verfolgt die Vorgängerzellen der aktiven Zelle","Spoort de broncellen van de actieve cel op","Repère les cellules antécédentes de la cellule active"]
["ribbon.rxjkpRTbtnPrecs1.label","Precedents","Vorgänger","Broncellen","Antécédents"]
["ribbon.rxjkpRTbtnPrecs1.screentip","Trace Precedents","Vorgänger nachverfolgen","Broncellen traceren","Repérer les antécédents"]
["ribbon.rxjkpRTbtnPrecs1.supertip","Trace the precedent cells of the active cell","Verfolgt die Vorgängerzellen der aktiven Zelle","Spoort de broncellen van de actieve cel op","Repère les cellules antécédentes de la cellule active"]
["ribbon.rxjkpRTbtnPrecsVisualize.label","Visualize","Visualisieren","Visualiseren","Visualiser"]
["ribbon.rxjkpRTbtnPrecsVisualize.screentip","Visualize","Visualisieren","Visualiseren","Visualiser"]
["ribbon.rxjkpRTbtnPrecsVisualize.supertip","Displays arrows and boxes to indicate the precedent cells of the active cell","Zeigt Pfeile und Rahmen für die Vorgängerzellen der aktiven Zelle","Toont pijlen en kaders voor de broncellen van de actieve cel","Affiche des flèches et des encadrés indiquant les cellules antécédentes de la cellule active"]
["ribbon.rxjkpRTbtnPrecsVisualize1.label","Visualize","Visualisieren","Visualiseren","Visualiser"]
["ribbon.rxjkpRTbtnPrecsVisualize1.screentip","Visualize","Visualisieren","Visualiseren","Visualiser"]
["ribbon.rxjkpRTbtnPrecsVisualize1.supertip","Displays arrows and boxes to indicate the precedent cells of the active cell","Zeigt Pfeile und Rahmen für die Vorgängerzellen der aktiven Zelle","Toont pijlen en kaders voor de broncellen van de actieve cel","Affiche des flèches et des encadrés indiquant les cellules antécédentes de la cellule active"]
["ribbon.rxjkpRTbtnRegister.label","Settings","Einstellungen","Instellingen","Paramètres"]
["ribbon.rxjkpRTbtnRegister.screentip","Settings","Einstellungen","Instellingen","Paramètres"]
["ribbon.rxjkpRTbtnRegister.supertip","Settings and registration","Einstellungen und Registrierung","Instellingen en registratie","Paramètres et enregistrement"]
["ribbon.rxjkpRTbtnRegister1.label","Settings","Einstellungen","Instellingen","Paramètres"]
["ribbon.rxjkpRTbtnRegister1.screentip","Settings","Einstellungen","Instellingen","Paramètres"]
["ribbon.rxjkpRTbtnRegister1.supertip","Settings and registration","Einstellungen und Registrierung","Instellingen en registratie","Paramètres et enregistrement"]
["ribbon.rxjkpRTbtnShowUpdateInfo.label","What is New","Neuigkeiten","Wat is er nieuw","Nouveautés"]
["ribbon.rxjkpRTbtnShowUpdateInfo.screentip","New","Neu","Nieuw","Nouveau"]
["ribbon.rxjkpRTbtnShowUpdateInfo.supertip","Displays what is new","Zeigt Neuerungen an","Toont wat er nieuw is","Affiche les nouveautés"]
["ribbon.rxjkpRTbtnShowUpdateInfo1.label","What is New","Neuigkeiten","Wat is er nieuw","Nouveautés"]
["ribbon.rxjkpRTbtnShowUpdateInfo1.screentip","New","Neu","Nieuw","Nouveau"]
["ribbon.rxjkpRTbtnShowUpdateInfo1.supertip","Displays what is new","Zeigt Neuerungen an","Toont wat er nieuw is","Affiche les nouveautés"]
["ribbon.rxjkpRTCellHighlighter.label","Highlight","Hervorheben","Markeren","Surligner"]
["ribbon.rxjkpRTCellHighlighter.screentip","Highlight cells","Zellen hervorheben","Cellen markeren","Surligner les cellules"]
["ribbon.rxjkpRTCellHighlighter.supertip","Highlight cells containing the same formula","Zellen mit gleicher Formel hervorheben","Cellen met dezelfde formule markeren","Surligner les cellules ayant la même formule"]
["ribbon.rxjkpRTCellHighlighter1.label","Highlight cells","Zellen hervorheben","Cellen markeren","Surligner les cellules"]
["ribbon.rxjkpRTCellHighlighter1.screentip","Highlight cells","Zellen hervorheben","Cellen markeren","Surligner les cellules"]
["ribbon.rxjkpRTCellHighlighter1.supertip","Highlight cells containing the same formula","Zellen mit gleicher Formel hervorheben","Cellen met dezelfde formule markeren","Surligner les cellules ayant la même formule"]
["ribbon.rxjkpRTFeedBack.label","Feedback","Feedback","Feedback","Commentaires"]
["ribbon.rxjkpRTFeedBack.screentip","Feedback","Feedback","Feedback","Commentaires"]
["ribbon.rxjkpRTFeedBack.supertip","Send feedback about the tool to the developer","Feedback zum Tool an den Entwickler senden","Feedback over de tool naar de ontwikkelaar sturen","Envoyer des commentaires au développeur"]
["ribbon.rxjkpRTFeedBack1.label","Feedback","Feedback","Feedback","Commentaires"]
["ribbon.rxjkpRTFeedBack1.screentip","Feedback","Feedback","Feedback","Commentaires"]
["ribbon.rxjkpRTFeedBack1.supertip","Send feedback about the tool to the developer","Feedback zum Tool an den Entwickler senden","Feedback over de tool naar de ontwikkelaar sturen","Envoyer des commentaires au développeur"]
["ribbon.rxjkpRTFindASheet.label","Find a Sheet","Blatt suchen","Werkblad zoeken","Rechercher une feuille"]
["ribbon.rxjkpRTFindASheet.screentip","Find a Sheet","Blatt suchen","Werkblad zoeken","Rechercher une feuille"]
["ribbon.rxjkpRTFindASheet.supertip","Find a sheet by filtering the list of sheets by their names (Control+Alt+PgDown)","Sucht ein Blatt durch Filtern der Liste nach Namen (Strg+Alt+Bild↓)","Zoekt een werkblad door de lijst op naam te filteren (Ctrl+Alt+PgDown)","Recherche une feuille en filtrant la liste par nom (Ctrl+Alt+PgBas)"]
["ribbon.rxjkpRTFindASheet1.label","Find a Sheet","Blatt suchen","Werkblad zoeken","Rechercher une feuille"]
["ribbon.rxjkpRTFindASheet1.screentip","Find a Sheet","Blatt suchen","Werkblad zoeken","Rechercher une feuille"]
["ribbon.rxjkpRTFindASheet1.supertip","Find a sheet by filtering the list of sheets by their names (Control+Alt+PgDown)","Sucht ein Blatt durch Filtern der Liste nach Namen (Strg+Alt+Bild↓)","Zoekt een werkblad door de lijst op naam te filteren (Ctrl+Alt+PgDown)","Recherche une feuille en filtrant la liste par nom (Ctrl+Alt+PgBas)"]
["ribbon.rxjkpRTFormulaCheck.label","Check formulas","Formeln prüfen","Formules controleren","Vérifier les formules"]
["ribbon.rxjkpRTFormulaCheck.screentip","Inconsistent formulas","Inkonsistente Formeln","Inconsistente formules","Formules incohérentes"]
["ribbon.rxjkpRTFormulaCheck.supertip","Check current selection for inconsistencies","Prüft die aktuelle Auswahl auf Inkonsistenzen","Controleert de huidige selectie op inconsistenties","Vérifie la sélection actuelle pour des incohérences"]
["ribbon.rxjkpRTFormulaCheck1.label","Check formulas","Formeln prüfen","Formules controleren","Vérifier les formules"]
["ribbon.rxjkpRTFormulaCheck1.screentip","Inconsistent formulas","Inkonsistente Formeln","Inconsistente formules","Formules incohérentes"]
["ribbon.rxjkpRTFormulaCheck1.supertip","Check current selection for inconsistencies","Prüft die aktuelle Auswahl auf Inkonsistenzen","Controleert de huidige selectie op inconsistenties","Vérifie la sélection actuelle pour des incohérences"]
["ribbon.rxjkpRTFormulaCheckAllSheets.label","Report form.","Formelbericht","Formulerapport","Lister form."]
["ribbon.rxjkpRTFormulaCheckAllSheets.screentip","Unique formulas","Eindeutige Formeln","Unieke formules","Formules uniques"]
["ribbon.rxjkpRTFormulaCheckAllSheets.supertip","Report unique formulas in workbook","Eindeutige Formeln in Arbeitsmappe auflisten","Unieke formules in werkboek rapporteren","Lister les formules uniques du classeur"]
["ribbon.rxjkpRTFormulaCheckAllSheets1.label","Report formulas","Formeln berichten","Formules rapporteren","Lister formules"]
["ribbon.rxjkpRTFormulaCheckAllSheets1.screentip","Unique formulas","Eindeutige Formeln","Unieke formules","Formules uniques"]
["ribbon.rxjkpRTFormulaCheckAllSheets1.supertip","Report unique formulas in workbook","Eindeutige Formeln in Arbeitsmappe auflisten","Unieke formules in werkboek rapporteren","Lister les formules uniques du classeur"]
["ribbon.rxjkpRTFormulaCheckSheetsRefs.label","Off-sheet refs","Blattübergr. Verw.","Bladoverschr. verw.","Réf. inter‑feuilles"]
["ribbon.rxjkpRTFormulaCheckSheetsRefs.screentip","Off-sheet references","Blattübergreifende Verweise","Bladoverschrijdende verwijzingen","Références entre feuilles"]
["ribbon.rxjkpRTFormulaCheckSheetsRefs.supertip","Display formula references between worksheets","Zeigt Formelverweise zwischen Arbeitsblättern","Toont formuleverwijzingen tussen werkbladen","Affiche les références de formule entre feuilles"]
["ribbon.rxjkpRTFormulaCheckSheetsRefs1.label","Off-sheet refs","Blattübergr. Verw.","Bladoverschr. verw.","Réf. inter‑feuilles"]
["ribbon.rxjkpRTFormulaCheckSheetsRefs1.screentip","Off-sheet references","Blattübergreifende Verweise","Bladoverschrijdende verwijzingen","Références entre feuilles"]
["ribbon.rxjkpRTFormulaCheckSheetsRefs1.supertip","Display formula references between worksheets","Zeigt Formelverweise zwischen Arbeitsblättern","Toont formuleverwijzingen tussen werkbladen","Affiche les références de formule entre feuilles"]
["ribbon.rxjkpRTHelpMenu.label","Help","Hilfe","Help","Aide"]
["ribbon.rxjkpRTHelpMenu.screentip","Help","Hilfe","Help","Aide"]
["ribbon.rxjkpRTHelpMenu.supertip","Opens Help on RefTReeAnalyser, Name Manager or FlexFind","Öffnet Hilfe zu RefTreeAnalyser, Name Manager oder FlexFind","Opent Help voor RefTreeAnalyser, Name Manager of FlexFind","Ouvre l’aide pour RefTreeAnalyser, Name Manager ou FlexFind"]
["ribbon.rxjkpRTHelpMenu1.label","Help","Hilfe","Help","Aide"]
["ribbon.rxjkpRTHelpMenu1.screentip","Help","Hilfe","Help","Aide"]
["ribbon.rxjkpRTHelpMenu1.supertip","Opens Help on RefTReeAnalyser, Name Manager or FlexFind","Öffnet Hilfe zu RefTreeAnalyser, Name Manager oder FlexFind","Opent Help voor RefTreeAnalyser, Name Manager of FlexFind","Ouvre l’aide pour RefTreeAnalyser, Name Manager ou FlexFind"]
["ribbon.rxjkpRTLicense1.label","License","Lizenz","Licentie","Licence"]
["ribbon.rxjkpRTListAllSheetStats.label","Sheet Stats","Blattstatistik","Bladstatistiek","Statistiques de feuille"]
["ribbon.rxjkpRTListAllSheetStats.screentip","Worksheet Statistics","Arbeitsblattstatistik","Werkbladstatistiek","Statistiques de feuille"]
["ribbon.rxjkpRTListAllSheetStats.supertip","List Worksheet Statistics such as the calculation time and the number of used cells","Listet Arbeitsblattstatistiken wie Berechnungszeit und Anzahl verwendeter Zellen auf","Toont werkbladstatistieken zoals rekentijd en aantal gebruikte cellen","Liste des statistiques de feuille comme le temps de calcul et le nombre de cellules utilisées"]
["ribbon.rxjkpRTListAllSheetStats1.label","All Sheet Stats","Alle Blattstatistiken","Alle bladstatistieken","Toutes les stats de feuille"]
["ribbon.rxjkpRTListAllSheetStats1.screentip","Worksheet Statistics","Arbeitsblattstatistik","Werkbladstatistiek","Statistiques de feuille"]
["ribbon.rxjkpRTListAllSheetStats1.supertip","List Worksheet Statistics such as the calculation time and the number of used cells","Listet Arbeitsblattstatistiken wie Berechnungszeit und Anzahl verwendeter Zellen auf","Toont werkbladstatistieken zoals rekentijd en aantal gebruikte cellen","Liste des statistiques de feuille comme le temps de calcul et le nombre de cellules utilisées"]
["ribbon.rxJKPRTMain.label","RefTreeAnalyser","RefTreeAnalyser","RefTreeAnalyser","RefTreeAnalyser"]
["ribbon.rxjkpRTNameManager1.label","Name Manager","Name Manager","Name Manager","Name Manager"]
["ribbon.rxjkpRTNameManager1.screentip","Name Manager","Name Manager","Name Manager","Name Manager"]
["ribbon.rxjkpRTNameManager1.supertip","Show all Named Ranges in the workbook","Alle definierten Namen in Arbeitsmappen anzeigen","Alle bereiknamen in het werkboek tonen","Afficher tous les noms définis du classeur"]
["ribbon.rxjkpRTNameManagerResetForm1.label","Reset","Zurücksetzen","Resetten","Réinitialiser"]
["ribbon.rxjkpRTNameManagerResetForm1.screentip","Reset NM Form position","Position des NM‑Dialogs zurücksetzen","Positie van NM‑formulier herstellen","Réinitialiser la position du formulaire NM"]
["ribbon.rxjkpRTNMVBECheckbox1.description","VBE Interface","VBE‑Schnittstelle","VBE‑interface","Interface VBE"]
["ribbon.rxjkpRTNMVBECheckbox1.label","VBE","VBE","VBE","VBE"]
["ribbon.rxjkpRTReportErrorCells.label","Report Errors","Fehlerbericht","Foutenrapport","Lister les erreurs"]
["ribbon.rxjkpRTReportErrorCells.screentip","Error cells","Fehlerzellen","Foutcellen","Cellules en erreur"]
["ribbon.rxjkpRTReportErrorCells.supertip","Reports all formula cells returning an error","Listet alle Formelzellen mit Fehler auf","Rapporteert alle formulecellen die een fout geven","Dresse la liste des cellules dont la formule renvoie une erreur"]
["ribbon.rxjkpRTReportErrorCells1.label","Report Errors","Fehlerbericht","Foutenrapport","Lister les erreurs"]
["ribbon.rxjkpRTReportErrorCells1.screentip","Error cells","Fehlerzellen","Foutcellen","Cellules en erreur"]
["ribbon.rxjkpRTReportErrorCells1.supertip","Reports all formula cells returning an error","Listet alle Formelzellen mit Fehler auf","Rapporteert alle formulecellen die een fout geven","Dresse la liste des cellules dont la formule renvoie une erreur"]
["ribbon.rxjkpRTReportFunctionCounts.label","Function Cts","Funktionenanz.","Functie‑aant.","Nb fonctions"]
["ribbon.rxjkpRTReportFunctionCounts.screentip","Function count","Anzahl Funktionen","Aantal functies","Nombre de fonctions"]
["ribbon.rxjkpRTReportFunctionCounts.supertip","Reports a count of the Excel functions used in your file","Listet die Anzahl der in der Datei verwendeten Excel-Funktionen.","Rapporteert het aantal gebruikte Excel‑functies","Donne le nombre de fonctions Excel utilisées dans le classeur"]
["ribbon.rxjkpRTReportFunctionCounts1.label","Report Function Cts","Funktionenanz. berichten","Functie‑aant. rapport","Nb fonctions (rapport)"]
["ribbon.rxjkpRTReportFunctionCounts1.screentip","Function count","Anzahl Funktionen","Aantal functies","Nombre de fonctions"]
["ribbon.rxjkpRTReportFunctionCounts1.supertip","Reports a count of the Excel functions used in your file","Listet die Anzahl der in der Datei verwendeten Excel-Funktionen.","Rapporteert het aantal gebruikte Excel‑functies","Donne le nombre de fonctions Excel utilisées dans le classeur"]
["ribbon.rxjkpRTReportUDFCounts.label","Rpt UDF Cts","UDF‑Anz. ber.","UDF‑aant.","Nb UDF"]
["ribbon.rxjkpRTReportUDFCounts.screentip","UDF count","Anzahl UDFs","Aantal UDF’s","Nombre d’UDF"]
["ribbon.rxjkpRTReportUDFCounts.supertip","Reports a count of all user-defined functions and LAMBDAs in your file","Listet die Anzahl aller benutzerdefinierten Funktionen und LAMBDAs in der Datei auf","Rapporteert aantal gebruikersfuncties en LAMBDA’s","Donne le nombre de fonctions personnalisées et LAMBDAs"]
["ribbon.rxjkpRTReportUDFCounts1.label","Report UDF Cts","UDF‑Anz. berichten","UDF‑aant. rapport","Nb UDF (rapport)"]
["ribbon.rxjkpRTReportUDFCounts1.screentip","UDF count","Anzahl UDFs","Aantal UDF’s","Nombre d’UDF"]
["ribbon.rxjkpRTReportUDFCounts1.supertip","Reports a count of all user-defined functions and LAMBDAs in your file","Listet die Anzahl aller benutzerdefinierten Funktionen und LAMBDAs in der Datei auf","Rapporteert aantal gebruikersfuncties en LAMBDA’s","Donne le nombre de fonctions personnalisées et LAMBDAs"]
["ribbon.rxjkpRTSelect.label","Select","Auswählen","Selecteren","Sélectionner"]
["ribbon.rxjkpRTSelect.screentip","Select special cells","Spezielle Zellen auswählen","Speciale cellen selecteren","Sélectionner des cellules spéciales"]
["ribbon.rxjkpRTSelect.supertip","Various special cell selections","Verschiedene spezielle Zellauswahlen","Diverse speciale celselecties","Diverses sélections de cellules spéciales"]
["ribbon.rxjkpRTSelect1.label","Select","Auswählen","Selecteren","Sélectionner"]
["ribbon.rxjkpRTSelect1.screentip","Select special cells","Spezielle Zellen auswählen","Speciale cellen selecteren","Sélectionner des cellules spéciales"]
["ribbon.rxjkpRTSelect1.supertip","Various special cell selections","Verschiedene spezielle Zellauswahlen","Diverse speciale celselecties","Diverses sélections de cellules spéciales"]
["ribbon.rxjkpRTSelectCellsFormulaPointsTo.label","Source cell(s)","Quellzelle(n)","Broncel(len)","Cellule(s) source"]
["ribbon.rxjkpRTSelectCellsFormulaPointsTo.screentip","Select Cells this formula points to","Zellen auswählen, auf die diese Formel verweist","Cellen selecteren waarnaar deze formule verwijst","Sélectionner les cellules vers lesquelles pointe cette formule"]
["ribbon.rxjkpRTSelectCellsFormulaPointsTo.supertip","Selects the cell(s) from which the formula returns the result. For example, for an XLOOKUP formula it takes you to the range that is returned by the function","Wählt die Zelle(n) aus, aus der/denen die Formel das Ergebnis zurückgibt","Selecteert de cel(len) waaruit de formule het resultaat retourneert","Sélectionne la/les cellule(s) d’où la formule renvoie le résultat"]
["ribbon.rxjkpRTSelectCellsFormulaPointsTo1.label","Source cell(s)","Quellzelle(n)","Broncel(len)","Cellule(s) source"]
["ribbon.rxjkpRTSelectCellsFormulaPointsTo1.screentip","Select Cells this formula points to","Zellen auswählen, auf die diese Formel verweist","Cellen selecteren waarnaar deze formule verwijst","Sélectionner les cellules vers lesquelles pointe cette formule"]
["ribbon.rxjkpRTSelectCellsFormulaPointsTo1.supertip","Selects the cell(s) from which the formula returns the result. For example, for an XLOOKUP formula it takes you to the range that is returned by the function","Wählt die Zelle(n) aus, aus der/denen die Formel das Ergebnis zurückgibt","Selecteert de cel(len) waaruit de formule het resultaat retourneert","Sélectionne la/les cellule(s) d’où la formule renvoie le résultat"]
["ribbon.rxjkpRTSelectCellsWithLiterals.label","Hard-coded Numbers","Feste Zahlenwerte","Hard‑gecodeerde getallen","Nombres codés en dur"]
["ribbon.rxjkpRTSelectCellsWithLiterals.screentip","Hard-coded Numbers","Feste Zahlenwerte","Hard‑gecodeerde getallen","Nombres codés en dur"]
["ribbon.rxjkpRTSelectCellsWithLiterals.supertip","Selects cells with Hard-coded Numbers","Wählt Zellen mit festen Zahlenwerten aus","Selecteert cellen met hard‑gecodeerde getallen in formules","Sélectionne les cellules avec nombres codés en dur"]
["ribbon.rxjkpRTSelectCellsWithLiterals1.label","Hard-coded Numbers","Feste Zahlenwerte","Hard‑gecodeerde getallen","Nombres codés en dur"]
["ribbon.rxjkpRTSelectCellsWithLiterals1.screentip","Hard-coded Numbers","Feste Zahlenwerte","Hard‑gecodeerde getallen","Nombres codés en dur"]
["ribbon.rxjkpRTSelectCellsWithLiterals1.supertip","Selects cells with Hard-coded Numbers","Wählt Zellen mit festen Zahlenwerten aus","Selecteert cellen met hard‑gecodeerde getallen in formules","Sélectionne les cellules avec nombres codés en dur"]
["ribbon.rxjkpRTSelectCellsWithSameFormula.label","Same Formula","Gleiche Formel","Zelfde formule","Même formule"]
["ribbon.rxjkpRTSelectCellsWithSameFormula.screentip","Select Cells With Same Formula","Zellen mit gleicher Formel auswählen","Cellen met dezelfde formule selecteren","Sélectionner les cellules avec la même formule"]
["ribbon.rxjkpRTSelectCellsWithSameFormula.supertip","Selects Cells which have the same formula as the current cell (as if you copied the cell and pasted elsewhere)","Wählt Zellen mit derselben Formel wie die aktuelle Zelle aus","Selecteert cellen met dezelfde formule als de huidige cel","Sélectionne les cellules ayant la même formule que la cellule actuelle"]
["ribbon.rxjkpRTSelectCellsWithSameFormula1.label","Same Formula","Gleiche Formel","Zelfde formule","Même formule"]
["ribbon.rxjkpRTSelectCellsWithSameFormula1.screentip","Select Cells With Same Formula","Zellen mit gleicher Formel auswählen","Cellen met dezelfde formule selecteren","Sélectionner les cellules avec la même formule"]
["ribbon.rxjkpRTSelectCellsWithSameFormula1.supertip","Selects Cells which have the same formula as the current cell (as if you copied the cell and pasted elsewhere)","Wählt Zellen mit derselben Formel wie die aktuelle Zelle aus","Selecteert cellen met dezelfde formule als de huidige cel","Sélectionne les cellules ayant la même formule que la cellule actuelle"]
["ribbon.rxjkpRTSelectEmptyWithDependent.label","Empty Cells With Dependents","Leere Zellen mit Nachfolgern","Lege cellen met afhankelijken","Cellules vides avec dépendants"]
["ribbon.rxjkpRTSelectEmptyWithDependent.screentip","Empty Cells With Dependents","Leere Zellen mit Nachfolgern","Lege cellen met afhankelijken","Cellules vides avec dépendants"]
["ribbon.rxjkpRTSelectEmptyWithDependent.supertip","Selects Empty Cells With Dependents","Wählt leere Zellen mit Nachfolgern aus","Selecteert lege cellen met afhankelijken","Sélectionne des cellules vides avec dépendants"]
["ribbon.rxjkpRTSelectEmptyWithDependent1.label","Empty Cells With Dependents","Leere Zellen mit Nachfolgern","Lege cellen met afhankelijken","Cellules vides avec dépendants"]
["ribbon.rxjkpRTSelectEmptyWithDependent1.screentip","Empty Cells With Dependents","Leere Zellen mit Nachfolgern","Lege cellen met afhankelijken","Cellules vides avec dépendants"]
["ribbon.rxjkpRTSelectEmptyWithDependent1.supertip","Selects Empty Cells With Dependents","Wählt leere Zellen mit Nachfolgern aus","Selecteert lege cellen met afhankelijken","Sélectionne des cellules vides avec dépendants"]
["ribbon.rxjkpRTSelectWithDependent.label","Cells With Dependents","Zellen mit Nachfolgern","Cellen met afhankelijken","Cellules avec dépendants"]
["ribbon.rxjkpRTSelectWithDependent.screentip","Cells With Dependents","Zellen mit Nachfolgern","Cellen met afhankelijken","Cellules avec dépendants"]
["ribbon.rxjkpRTSelectWithDependent.supertip","Selects Cells With Dependents","Wählt Zellen mit Nachfolgern aus","Selecteert cellen met afhankelijken","Sélectionne les cellules avec dépendants"]
["ribbon.rxjkpRTSelectWithDependent1.label","Cells With Dependents","Zellen mit Nachfolgern","Cellen met afhankelijken","Cellules avec dépendants"]
["ribbon.rxjkpRTSelectWithDependent1.screentip","Cells With Dependents","Zellen mit Nachfolgern","Cellen met afhankelijken","Cellules avec dépendants"]
["ribbon.rxjkpRTSelectWithDependent1.supertip","Selects Cells With Dependents","Wählt Zellen mit Nachfolgern aus","Selecteert cellen met afhankelijken","Sélectionne les cellules avec dépendants"]
["ribbon.rxjkpRTShtDropDownbtnSheets.label","Sheets","Blätter","Bladen","Feuilles"]
["ribbon.rxjkpRTShtDropDownbtnSheets1.label","Sheets","Blätter","Bladen","Feuilles"]
["ribbon.rxjkpRTShtDropDownbtnTables.label","Tables","Tabellen","Tabellen","Tableaux"]
["ribbon.rxjkpRTShtDropDownbtnTables1.label","Tables","Tabellen","Tabellen","Tableaux"]
["ribbon.rxjkpRTTimecalc.label","Time cells","Zeit messen","Tijd meten","Chronométrer"]
["ribbon.rxjkpRTTimecalc.screentip","Time cells","Zeit messen","Tijd meten","Chronométrer"]
["ribbon.rxjkpRTTimecalc.supertip","Time the calculation of the selected cells","Berechnungszeit der ausgewählten Zellen messen","Rekentijd van de geselecteerde cellen meten","Mesure le temps de calcul des cellules sélectionnées"]
["ribbon.rxjkpRTTimecalc1.label","Time Selected cells","Auswahl timen","Geselecteerde cellen timen","Chronométrer la sélection"]
["ribbon.rxjkpRTTimecalc1.screentip","Time cells","Zeit messen","Tijd meten","Chronométrer"]
["ribbon.rxjkpRTTimecalc1.supertip","Time the calculation of the selected cells","Berechnungszeit der ausgewählten Zellen messen","Rekentijd van de geselecteerde cellen meten","Mesure le temps de calcul des cellules sélectionnées"]
["ribbon.rxjkpRTToC.label","Tbl Of Cont","Inh.-Verz.","Inhoudsopgave","Sommaire"]
["ribbon.rxjkpRTToC.screentip","Table Of Contents","Inhaltsverzeichnis","Inhoudsopgave","Table des matières"]
["ribbon.rxjkpRTToC.supertip","Insert a Table Of Contents with links to the objects you select to include","Fügt ein Inhaltsverzeichnis mit Links zu ausgewählten Objekten ein","Voegt een inhoudsopgave in van de objecten die u selecteert. Met koppelingen naar die objecten","Insère une table des matières avec des liens vers les objets sélectionnés"]
["ribbon.rxjkpRTToC1.label","Table Of Contents","Inhaltsverzeichnis","Inhoudsopgave","Table des matières"]
["ribbon.rxjkpRTToC1.screentip","Table Of Contents","Inhaltsverzeichnis","Inhoudsopgave","Table des matières"]
["ribbon.rxjkpRTToC1.supertip","Insert a Table Of Contents with links to the objects you select to include","Fügt ein Inhaltsverzeichnis mit Links zu ausgewählten Objekten ein","Voegt een inhoudsopgave in van de objecten die u selecteert. Met koppelingen naar die objecten","Insère une table des matières avec des liens vers les objets sélectionnés"]
["ribbon.rxjkpRTTrackSheets.description","Track sheets","Blätter nachverfolgen","Bladen bijhouden","Suivre feuilles"]
["ribbon.rxjkpRTTrackSheets.label","Track Sheets and Tables","Blätter und Tabellen nachverfolgen","Bladen en tabellen bijhouden","Suivre feuilles et tableaux"]
["ribbon.rxjkpRTTrackSheets.screentip","Turn updating Sheets and Tables drop-downs on or off","Aktualisierung der Dropdowns für Blätter und Tabellen ein-/ausschalten","Bijwerken van Bladen- en Tabellenlijsten aan/uit","Activer/désactiver la mise à jour des listes Feuilles/Tableaux"]
["ribbon.rxjkpRTTrackSheets.supertip","Keeping the sheets and tables dropdowns updated. This may slow down your work, uncheck if it does so for you.","Hält die Dropdowns für Blätter und Tabellen aktuell. Kann verlangsamen – ggf. deaktivieren.","Houdt de lijsten voor Bladen en Tabellen actueel. Dit kan vertragen – schakel desnoods uit.","Maintient à jour les listes Feuilles/Tableaux. Peut ralentir – désactiver si nécessaire."]
["ribbon.rxjkpRTTrackSheets1.description","Track sheets","Blätter nachverfolgen","Bladen bijhouden","Suivre feuilles"]
["ribbon.rxjkpRTTrackSheets1.label","Track sheets and tables","Blätter und Tabellen nachverfolgen","Bladen en tabellen bijhouden","Suivre feuilles et tableaux"]
["ribbon.rxjkpRTTrackSheets1.screentip","Turn updating Sheets and Tables drop-downs on or off","Aktualisierung der Dropdowns für Blätter und Tabellen ein-/ausschalten","Bijwerken van Bladen- en Tabellenlijsten aan/uit","Activer/désactiver la mise à jour des listes Feuilles/Tableaux"]
["ribbon.rxjkpRTTrackSheets1.supertip","Keeping the sheets and tables dropdowns updated. This may slow down your work, uncheck if it does so for you.","Hält die Dropdowns für Blätter und Tabellen aktuell. Kann verlangsamen – ggf. deaktivieren.","Houdt de lijsten voor Bladen en Tabellen actueel. Dit kan vertragen – schakel desnoods uit.","Maintient à jour les listes Feuilles/Tableaux. Peut ralentir – désactiver si nécessaire."]
["ribbon.rxRTFFGroup.label","Flexfind","FlexFind","FlexFind","FlexFind"]
["ribbon.rxRTFFMain1.label","FlexFind","FlexFind","FlexFind","FlexFind"]
["ribbon.rxRTFFMain1.screentip","FlexFind","FlexFind","FlexFind","FlexFind"]
["ribbon.rxRTFFMain1.supertip","Open FlexFind to search through all of Excel's objects","FlexFind öffnen, um in allen Excel‑Objekten zu suchen","FlexFind openen om in alle Excel‑objecten te zoeken","Ouvrir FlexFind pour rechercher dans tous les objets Excel"]
["sb.clsUpdate.CheckingForUpdates","_arg1_ is checking for updates","_arg1_ sucht nach Updates","_arg1_ controleert op updates","_arg1_ recherche des mises à jour"]
["sb.clsUpdate.CheckingForUpdatesWithCountdown","_arg1_ is checking for updates _arg2_","_arg1_ sucht nach Updates _arg2_","_arg1_ controleert op updates _arg2_","_arg1_ recherche des mises à jour _arg2_"]
["sb.clsUpdate.InfoAboutUpdate","Information about the update:","Informationen zum Update:","Informatie over de update","Informations sur la mise à jour:"]
["sb.modCellErrorReport.AnalysingSheet","Analysing sheet '_arg1_' for errors, found _arg2_","Analyse von Blatt '_arg1_' auf Fehler; gefunden: _arg2_","Analyse van blad '_arg1_' op fouten, gevonden: _arg2_","Analyse de la feuille '_arg1_' pour les erreurs, trouvé : _arg2_"]
["sb.modFormulaChecks.AnalysingFormulas","Analysing formulas _arg1_ of _arg2_","Formeln werden analysiert _arg1_ von _arg2_","Formules worden geanalyseerd _arg1_ van _arg2_","Analyse des formules _arg1_ sur _arg2_"]
["sb.modFormulaChecks.CheckingSheet","Checking sheet _arg1_ of _arg2_","Blatt _arg1_ von _arg2_ wird geprüft","Blad _arg1_ van _arg2_ wordt gecontroleerd","Vérification de la feuille _arg1_ sur _arg2_"]
["sb.modFormulaChecks.CountingFunctions","Counting functions : _arg1_/_arg2_","Funktionen zählen: _arg1_/_arg2_","Functies tellen : _arg1_/_arg2_","Comptage des fonctions : _arg1_/_arg2_"]
["sb.modFormulaChecks.CountingFunctionsSheet","Counting functions, Sheet: _arg1_/_arg2_","Funktionen zählen, Blatt: _arg1_/_arg2_","Functies tellen, blad: _arg1_/_arg2_","Comptage des fonctions, feuille: _arg1_/_arg2_"]
["sb.modFormulaChecks.FindingUniqueFormulasRow","finding unique formulas, row _arg1_ of _arg2_","eindeutige Formeln finden, Zeile _arg1_ von _arg2_","unieke formules zoeken, rij _arg1_ van _arg2_","recherche des formules uniques, ligne _arg1_ sur _arg2_"]
["sb.modFormulaChecks.SheetCellProgress","Sheet _arg1_ of _arg2_, cell _arg3_ of _arg4_","Blatt _arg1_ von _arg2_, Zelle _arg3_ von _arg4_","Blad _arg1_ van _arg2_, cel _arg3_ van _arg4_","Feuille _arg1_ sur _arg2_, cellule _arg3_ sur _arg4_"]
["sb.modFunctions.CheckedCellsForDependents","Checked _arg1_ cells for dependents","_arg1_ Zellen auf Nachfolger geprüft","_arg1_ cellen gecontroleerd op doelcellen","_arg1_ cellules vérifiées pour les dépendants"]
["tv.ufCircular.CircleNode.Caption","Circular reference _arg1_","Zirkelbezug _arg1_","Kringverwijzing _arg1_","Référence circulaire _arg1_"]
["tv.ufCircular.DemoItem.Caption","Demo version; please purchase a license to view this item","Demoversion; bitte erwerben Sie eine Lizenz, um dieses Element anzuzeigen","Demoversie; koop een licentie om dit item te bekijken","Version de démonstration ; achetez une licence pour afficher cet élément"]
["tv.ufCircular.NoRefs.Caption","No circular References found","Keine Zirkelbezüge gefunden","Geen kringverwijzingen gevonden","Aucune référence circulaire trouvée"]
["tv.ufCircular.Root.Caption","Circular references in _arg1_","Zirkelbezüge in _arg1_","Kringverwijzingen in _arg1_","Références circulaires dans _arg1_"]
["tv.ufReferences.Charts.Caption","Charts","Diagramme","Grafieken","Graphiques"]
["tv.ufReferences.CondFormat.Caption","Cond. Format","Bedingte Format.","Voorw. opmaak","Mise en forme cond."]
["tv.ufReferences.Controls.Caption","Controls","Steuerelemente","Besturingselementen","Contrôles"]
["tv.ufReferences.DataValidation.Caption","Data Validation","Datenüberprüfung","Gegevensvalidatie","Validation des données"]
["tv.ufReferences.FormulaPointsTo.Prefix","Formula points to: ","Formel verweist auf: ","Formule verwijst naar: ","La formule pointe vers : "]
["tv.ufReferences.Hyperlinks.Caption","Hyperlinks","Hyperlinks","Hyperlinks","Liens hypertexte"]
["tv.ufReferences.OtherObjects.Caption","Other objects","Andere Objekte","Andere objecten","Autres objets"]
["tv.ufReferences.PivotTables.Caption","Pivot Tables","PivotTables","Draaitabellen","Tableaux croisés dynamiques"]
["tv.ufReferences.PQQueries.Caption","PQ Queries","PQ-Abfragen","PQ-query’s","Requêtes PQ"]
["ui.modFunctions.ObjectType.Workbook","Workbook","Arbeitsmappe","Werkmap","Classeur"]
["ui.modFunctions.ObjectType.Worksheet","Worksheet","Arbeitsblatt","Werkblad","Feuille"]
["ws.modCellErrorReport.Caption","Error cells","Fehlerzellen","Foutcellen","Cellules en erreur"]
["ws.modCellErrorReport.NoErrorsFound","No error cells found in workbook","Keine Fehlerzellen in der Arbeitsmappe gefunden","Geen foutcellen gevonden in werkmap","Aucune cellule en erreur trouvée dans le classeur"]
["ws.modCellErrorReport.TableHeaders.Address","Address","Adresse","Adres","Adresse"]
["ws.modCellErrorReport.TableHeaders.CellFormula","Cell Formula","Zellformel","Celformule","Formule de cellule"]
["ws.modCellErrorReport.TableHeaders.ErrorType","Error type","Fehlertyp","Fouttype","Type d’erreur"]
["ws.modCellErrorReport.TableHeaders.LinkToCell","Link to cell","Link zur Zelle","Koppeling naar cel","Lien vers la cellule"]
["ws.modCellErrorReport.TableHeaders.Worksheet","Worksheet","Arbeitsblatt","Werkblad","Feuille"]
["ws.modCellErrorReport.UnregisteredLimitNotice","Unregistered version, report limited to _arg1_ error cells","Nicht registrierte Version, Bericht auf _arg1_ Fehlerzellen begrenzt","Niet geregistreerde versie, rapport beperkt tot _arg1_ foutcellen","Version non enregistrée, rapport limité à _arg1_ cellules en erreur"]
["ws.modFormulaChecks.Header.CalcTime","Calc time","Berechnungszeit","Berekentijd","Temps de calcul"]
["ws.modFormulaChecks.Header.ConditionalFormatting","Conditional formatting","Bedingte Formatierung","Voorwaardelijke opmaak","Mise en forme conditionnelle"]
["ws.modFormulaChecks.Header.Constants","Constants","Konstanten","Constanten","Constantes"]
["ws.modFormulaChecks.Header.Count","Count","Anzahl","Aantal","Nombre"]
["ws.modFormulaChecks.Header.CountCopiedOnce","Count (copied formulas are counted only once)","Anzahl (kopierte Formeln werden nur einmal gezählt)","Aantal (gekopieerde formules worden slechts één keer geteld)","Nombre (les formules copiées ne sont comptées qu’une fois)"]
["ws.modFormulaChecks.Header.DataValidation","Data validation","Datenüberprüfung","Gegevensvalidatie","Validation des données"]
["ws.modFormulaChecks.Header.Date","Date:","Datum:","Datum:","Date :"]
["ws.modFormulaChecks.Header.Date","Date:","Datum:","Datum:","Date :"]
["ws.modFormulaChecks.Header.DirtyCalcTime","Dirty calc time","Teilberechnungszeit","Gedeeltelijke berekentijd","Temps de calcul partiel"]
["ws.modFormulaChecks.Header.EmptyCells","Empty cells","Leere Zellen","Lege cellen","Cellules vides"]
["ws.modFormulaChecks.Header.FormulaCells","Formula cells","Zellen mit Formeln","Cellen met formules","Cellules avec formules"]
["ws.modFormulaChecks.Header.FunctionName","Function name","Funktionsname","Functienaam","Nom de la fonction"]
["ws.modFormulaChecks.Header.UserDefinedFunctionName","User-defined Function name","Benutzerdefinierter Funktionsname","Door gebruiker gedefinieerde functienaam","Nom de la fonction définie par l’utilisateur"]
["ws.modFormulaChecks.Header.Workbook","Workbook:","Arbeitsmappe:","Werkmap:","Classeur :"]
["ws.modFormulaChecks.Header.Workbook","Workbook:","Arbeitsmappe:","Werkmap:","Classeur :"]
["ws.modFormulaChecks.Header.Worksheet","Worksheet","Arbeitsblatt","Werkblad","Feuille"]
["ws.modFormulaChecks.Header.WorksheetLabel","Worksheet","Arbeitsblatt","Werkblad","Feuille"]
["ws.modFormulaChecks.Label.DirtyCalcTime","Dirty calc time","Teilberechnungszeit","Gedeeltelijke berekentijd","Temps de calcul partiel"]
["ws.modFormulaChecks.Label.FullCalcTime","Full calc time","Zeit für vollständige Berechnung","Tijd voor volledige berekening","Temps de calcul complet"]
["ws.modFormulaChecks.Label.FullCalcTime","Full calc time","Zeit für vollständige Berechnung","Tijd voor volledige berekening","Temps de calcul complet"]
["ws.modFormulaChecks.Label.NotMeasured","Not measured","Nicht gemessen","Niet gemeten","Non mesuré"]
["ws.modFormulaChecks.NoFormulasOnSheet","No formulas on sheet","Keine Formeln auf dem Blatt","Geen formules op het blad","Aucune formule sur la feuille"]
["ws.modFormulaChecks.NoLambdasOrUDFs","No Lambdas or UDFs found","Keine Lambdas oder UDFs gefunden","Geen Lambda's of UDF's gevonden","Aucune Lambda ni UDF trouvée"]
["ws.modFormulaChecks.Report.AllSheetStatistics","All Sheet Statistics","Alle Blattstatistiken","Alle bladstatistieken","Toutes les statistiques des feuilles"]
["ws.modFormulaChecks.Report.BuiltInFunctionReport","RefTreeAnalyser built-in Function report","RefTreeAnalyser – Bericht: integrierte Funktionen","RefTreeAnalyser – Rapport: ingebouwde functies","RefTreeAnalyser – Rapport : fonctions intégrées"]
["ws.modFormulaChecks.Report.LambdaUDFReport","RefTreeAnalyser Lambda/UDF Function report","RefTreeAnalyser – Bericht: Lambda/UDF‑Funktionen","RefTreeAnalyser – Rapport: Lambda/UDF‑functies","RefTreeAnalyser – Rapport : fonctions Lambda/UDF"]
["ws.modFormulaChecks.Report.UsedFormulasInModel","Used formulas in model","Verwendete Formeln im Modell","In model gebruikte formules","Formules utilisées dans le modèle"]
["ws.modFunctions.Columns.CalcTimeSeconds","Calc time (s)","Berechnungszeit (s)","Berekentijd (s)","Temps de calcul (s)"]
["ws.modFunctions.Columns.CellsWithFormula","Cells with formula","Zellen mit Formel","Cellen met formule","Cellules avec formule"]
["ws.modFunctions.Columns.Formula","Formula","Formel","Formule","Formule"]
["ws.modFunctions.Columns.FormulaTopLeft","Formula top-left cell","Formel oben links","Formule linksboven","Formule en haut à gauche"]
["ws.modFunctions.Columns.Link","Link","Verknüpfung","Koppeling","Lien"]
["ws.modFunctions.Columns.SearchedArea","Searched area","Durchsuchter Bereich","Gezocht gebied","Zone recherchée"]
["ws.modFunctions.Columns.SkippedIn","Skipped in","Übersprungen in","Overgeslagen in","Ignoré dans"]
["ws.modFunctions.Columns.UsedIn","Used in","Verwendet in","Gebruikt in","Utilisé dans"]
["ws.modObjSearch.ErrorsSheet.Col.ErrorMessage","Error message","Fehlermeldung","Foutmelding","Message d’erreur"]
["ws.modObjSearch.ErrorsSheet.Col.ErrorMessage","Error message","Fehlermeldung","Foutmelding","Message d’erreur"]
["ws.modObjSearch.ErrorsSheet.Col.ObjectOrRange","Object or range","Objekt oder Bereich","Object of bereik","Objet ou plage"]
["ws.modObjSearch.ErrorsSheet.Col.ObjectOrRange","Object or range","Objekt oder Bereich","Object of bereik","Objet ou plage"]
["ws.modObjSearch.ErrorsSheet.Col.ObjectType","Object type","Objekttyp","Objecttype","Type d’objet"]
["ws.modObjSearch.ErrorsSheet.Col.ObjectType","Object type","Objekttyp","Objecttype","Type d’objet"]
["ws.modObjSearch.ErrorsSheet.Col.Sheet","Sheet","Blatt","Blad","Feuille"]
["ws.modObjSearch.ErrorsSheet.Col.Sheet","Sheet","Blatt","Blad","Feuille"]
["ws.modObjSearch.ErrorsSheet.Title","Errors encountered while searching for references in objects","Fehler beim Suchen nach Verweisen in Objekten","Fouten tijdens zoeken naar verwijzingen in objecten","Erreurs rencontrées lors de la recherche de références dans les objets"]
["ws.modObjSearch.ErrorsSheet.Title","Errors encountered while searching for references in objects","Fehler beim Suchen nach Verweisen in Objekten","Fouten tijdens zoeken naar verwijzingen in objecten","Erreurs rencontrées lors de la recherche de références dans les objets"]
["ws.modQueriesConnections.Header.RangeOrTable","Range Or Table","Bereich oder Tabelle","Bereik of tabel","Plage ou table"]
["ws.modQueriesConnections.Status.NotConnected","Not connected to range or table","Nicht mit Bereich oder Tabelle verbunden","Niet verbonden met bereik of tabel","Non connecté à une plage ou à une table"]
["ws.modQueriesConnections.Status.PivotTableOn","Pivot table on _arg1_","PivotTable auf _arg1_","Draaitabel op _arg1_","Tableau croisé dynamique sur _arg1_"]
["ws.modQueriesConnections.Status.Unconnected","Unconnected","Nicht verbunden","Niet verbonden","Non connecté"]
["ws.modQueriesConnections.Type.PivotTable","Pivot table","PivotTable","Draaitabel","Tableau croisé dynamique"]
["ws.modSheets.InterSheetReport.Caption","Sheet Interaction Report for sheet '_arg1_'","Blattinteraktionsbericht für Blatt '_arg1_'","Bladinteractierapport voor blad '_arg1_'","Rapport d’interaction des feuilles. Feuille '_arg1_'"]
["ws.modSheets.InterSheetReport.ClickHint","Click a sheet box to highlight dataflow","Auf ein Blattfeld klicken, um den Datenfluss hervorzuheben","Klik op een rechthoek om de verwijzingen te markeren","Cliquez sur une case de feuille pour mettre en évidence le flux de données"]
["ws.modSheets.InterSheetReport.Footer1","This table shows the count of all inter-sheet references.","Diese Tabelle zeigt die Anzahl aller blattübergreifenden Verweise.","Deze tabel toont het aantal van alle bladoverschrijdende verwijzingen.","Ce tableau indique le nombre de toutes les références inter-feuilles."]
["ws.modSheets.InterSheetReport.Footer2","The top row of this table contains the names of worksheets with cells linking to other worksheets","Die oberste Zeile dieser Tabelle enthält die Namen der Arbeitsblätter mit Zellen, die auf andere Arbeitsblätter verweisen","De bovenste rij van deze tabel bevat de namen van werkbladen met cellen die naar andere werkbladen verwijzen","La première ligne de ce tableau contient les noms des feuilles ayant des cellules qui renvoient vers d’autres feuilles"]
["ws.modSheets.InterSheetReport.Footer3","The left-hand column contains the names of the worksheets other worksheets link to","Die linke Spalte enthält die Namen der Arbeitsblätter, auf die andere Arbeitsblätter verweisen","De linkerkolom bevat de namen van de werkbladen waarnaar andere werkbladen verwijzen","La colonne de gauche contient les noms des feuilles vers lesquelles d’autres feuilles renvoient"]
["ws.modSheets.InterSheetReport.From","Dataflow FROM current sheet","Datenfluss VON aktuellem Blatt","Verwijzingen VAN huidig blad","Flux de données DEPUIS la feuille active"]
["ws.modSheets.InterSheetReport.Hyperlink.Anchor","Click here to view the link table","Hier klicken, um die Verknüpfungstabelle anzuzeigen","Klik hier om de koppelingstabel te bekijken","Cliquez ici pour afficher la table des liens"]
["ws.modSheets.InterSheetReport.Legend","Legend","Legende","Legenda","Légende"]
["ws.modSheets.InterSheetReport.NoDataflow","No dataflow","Kein Datenfluss","Geen verwijzingen","Aucun flux de données"]
["ws.modSheets.InterSheetReport.TableHeading.TopLeft","These sheets -->_cr__cr__cr_Link to:","Diese Blätter --> _cr__cr__cr_sind verknüpft mit:","Deze bladen --> _cr__cr__cr_zijn gekoppeld aan:","Ces feuilles --> _cr__cr__cr_Lien vers :"]
["ws.modSheets.InterSheetReport.Title","RefTreeAnalyser Sheet Interaction Report","RefTreeAnalyser Blatt‑Interaktionsbericht","RefTreeAnalyser bladinteractierapport","Rapport d’interaction des feuilles RefTreeAnalyser"]
["ws.modSheets.InterSheetReport.To","Data flow TO current sheet","Datenfluss ZUM aktuellen Blatt","Verwijzingen NAAR huidig blad","Flux de données VERS la feuille active"]
["ws.modSheets.InterSheetReport.WithDataflow","Sheet with dataflow","Blatt mit Datenfluss","Blad met verwijzingen","Feuille avec flux de données"]
["ws.modTOC.Charts.Header.ChartName","Chart name","Diagrammname","Grafieknaam","Nom du graphique"]
["ws.modTOC.Charts.Header.LocationOfChart","Location of Chart","Diagrammposition","Locatie van grafiek","Emplacement du graphique"]
["ws.modTOC.Charts.Header.Remarks","Remarks","Anmerkungen","Opmerkingen","Remarques"]
["ws.modTOC.Charts.Header.SourceData","Source data","Quelldaten","Brongegevens","Données source"]
["ws.modTOC.Charts.Header.Worksheet","Worksheet","Arbeitsblatt","Werkblad","Feuille"]
["ws.modTOC.Connections.Header.ConnectionType","Connection Type","Verbindungstyp","Verbindingstype","Type de connexion"]
["ws.modTOC.Connections.Header.Name","Name","Name","Naam","Nom"]
["ws.modTOC.Connections.Header.Range","Range","Bereich","Bereik","Plage"]
["ws.modTOC.Connections.Header.Remarks","Remarks","Anmerkungen","Opmerkingen","Remarques"]
["ws.modTOC.Connections.Header.TargetType","Target type","Zieltyp","Doeltype","Type de cible"]
["ws.modTOC.Connections.Header.Worksheet","Worksheet","Arbeitsblatt","Werkblad","Feuille"]
["ws.modTOC.Controls.Header.LinkedCell","LinkedCell","Verknüpfte Zelle","Gekoppelde cel","Cellule liée"]
["ws.modTOC.Controls.Header.LinkToControl","Link to control","Link zum Steuerelement","Koppeling naar besturingselement","Lien vers le contrôle"]
["ws.modTOC.Controls.Header.Name","Name","Name","Naam","Nom"]
["ws.modTOC.Controls.Header.Remarks","Remarks","Anmerkungen","Opmerkingen","Remarques"]
["ws.modTOC.Controls.Header.Source","Source","Quelle","Bron","Source"]
["ws.modTOC.Controls.Header.Type","Type","Typ","Type","Type"]
["ws.modTOC.Controls.Header.Worksheet","Worksheet","Arbeitsblatt","Werkblad","Feuille"]
["ws.modTOC.ExternalLinks.Header.FileName","File name","Dateiname","Bestandsnaam","Nom de fichier"]
["ws.modTOC.ExternalLinks.Header.Hyperlink","Hyperlink","Hyperlink","Hyperlink","Lien hypertexte"]
["ws.modTOC.ExternalLinks.Header.Path","Path","Pfad","Pad","Chemin"]
["ws.modTOC.ExternalLinks.Header.Remarks","Remarks","Anmerkungen","Opmerkingen","Remarques"]
["ws.modTOC.ExternalLinks.Header.Status","Status","Status","Status","État"]
["ws.modTOC.ExternalLinks.Status.FileFound","File found","Datei gefunden","Bestand gevonden","Fichier trouvé"]
["ws.modTOC.ExternalLinks.Status.FileNotFound","File not found","Datei nicht gefunden","Bestand niet gevonden","Fichier introuvable"]
["ws.modTOC.Hyperlink.Label.ToC","ToC","Inhaltsverzeichnis","Inhoudsopgave","Sommaire"]
["ws.modTOC.PivotTables.Header.LocationOfTable","Location of table","Position der Tabelle","Locatie van tabel","Emplacement de la table"]
["ws.modTOC.PivotTables.Header.PivotTableName","Pivot table name","PivotTable-Name","Draaitabelnaam","Nom du tableau croisé dynamique"]
["ws.modTOC.PivotTables.Header.Remarks","Remarks","Anmerkungen","Opmerkingen","Remarques"]
["ws.modTOC.PivotTables.Header.SourceData","Source data","Quelldaten","Brongegevens","Données source"]
["ws.modTOC.PivotTables.Header.Worksheet","Worksheet","Arbeitsblatt","Werkblad","Feuille"]
["ws.modTOC.PivotTables.InDataModel.Tag","Datamodel","Datenmodell","Gegevensmodel","Modèle de données"]
["ws.modTOC.Section.Charts","Charts","Diagramme","Grafieken","Graphiques"]
["ws.modTOC.Section.Connections","Connections","Verbindungen","Verbindingen","Connexions"]
["ws.modTOC.Section.Controls","Controls","Steuerelemente","Besturingselementen","Contrôles"]
["ws.modTOC.Section.ExternalLinks","External Links","Externe Verknüpfungen","Externe koppelingen","Liens externes"]
["ws.modTOC.Section.PivotTables","Pivot tables","PivotTables","Draaitabellen","Tableaux croisés dynamiques"]
["ws.modTOC.Section.Sheets","Sheets","Blätter","Bladen","Feuilles"]
["ws.modTOC.Section.Tables","Tables","Tabellen","Tabellen","Tables"]
["ws.modTOC.Sheets.Header.Link","Link","Verknüpfung","Koppeling","Lien"]
["ws.modTOC.Sheets.Header.Link","Link","Verknüpfung","Koppeling","Lien"]
["ws.modTOC.Sheets.Header.Remarks","Remarks","Anmerkungen","Opmerkingen","Remarques"]
["ws.modTOC.Sheets.Header.Worksheet","Worksheet","Arbeitsblatt","Werkblad","Feuille"]
["ws.modTOC.Tables.Header.InDataModel","In Data model","Im Datenmodell","In gegevensmodel","Dans le modèle de données"]
["ws.modTOC.Tables.Header.LocationOfTable","Location of table","Position der Tabelle","Locatie van tabel","Emplacement de la table"]
["ws.modTOC.Tables.Header.Remarks","Remarks","Anmerkungen","Opmerkingen","Remarques"]
["ws.modTOC.Tables.Header.TableName","Table name","Tabellenname","Tabelnaam","Nom de la table"]
["ws.modTOC.Tables.Header.Worksheet","Worksheet","Arbeitsblatt","Werkblad","Feuille"]
["ws.modTOC.Tables.InDataModel.No","No","Nein","Nee","Non"]
["ws.modTOC.Tables.InDataModel.Yes","Yes","Ja","Ja","Oui"]
["ws.modTOC.Title","Table Of Contents","Inhaltsverzeichnis","Inhoudsopgave","Table des matières"]
["ws.ufObjectRefs.Report.Header.Link","Link to cells","Mit Zellen verknüpfen","Koppeling naar cellen","Lien vers les cellules"]
["ws.ufObjectRefs.Report.Header.ObjectType","Object type","Objekttyp","Objecttype","Type d’objet"]
["ws.ufObjectRefs.Report.Header.Property","Property","Eigenschaft","Eigenschap","Propriété"]
["ws.ufObjectRefs.Report.Header.WorksheetOrObject","Worksheet or Object","Arbeitsblatt oder Objekt","Werkblad of Object","Feuille ou Objet"]
["ws.ufReferences.Report.Header.FormulaInAnalysedCell","Formula in analysed cell:","Formel in analysierter Zelle:","Formule in geanalyseerde cel:","Formule de la cellule analysée :"]
["ws.ufReferences.Report.Header.FormulaInAnalysedCell","Formula in analysed cell:","Formel in analysierter Zelle:","Formule in geanalyseerde cel:","Formule de la cellule analysée :"]
["ws.ufReferences.Report.Header.Origin","Origin","Ursprung","Oorsprong","Origine"]
["ws.ufReferences.Report.Header.Origin","Origin","Ursprung","Oorsprong","Origine"]
["ws.ufReferences.Report.Header.ReferredFrom","Referred to from","Verwiesen von","Verwezen vanuit","Référencé depuis"]
["ws.ufReferences.Report.Header.ReferredFrom","Referred to from","Verwiesen von","Verwezen vanuit","Référencé depuis"]
["ws.ufReferences.Report.Header.RefersTo","Refers to","Verweist auf","Verwijst naar","Fait référence à"]
["ws.ufReferences.Report.Header.Values","Value(s)","Wert(e)","Waarde(n)","Valeur(s)"]
["ws.ufReferences.SheetName.Dependents","RefTreeAnalyser Dependents Report","RefTreeAnalyser Abhängigkeitsbericht","RefTreeAnalyser Afhankelijkheidsrapport","RefTreeAnalyser Rapport des dépendances"]
["ws.ufReferences.SheetName.ErrorTrace","RefTreeAnalyser Error trace Report","RefTreeAnalyser Fehlerverfolgungsbericht","RefTreeAnalyser Foutspoorrapport","RefTreeAnalyser Rapport de suivi des erreurs"]
["ws.ufReferences.SheetName.Precedents","RefTreeAnalyser Precedents Report","RefTreeAnalyser Vorgängerbericht","RefTreeAnalyser Voorgangersrapport","RefTreeAnalyser Rapport des précédents"]
[null,null,"RefTreeAnalyser Vorgängerbericht"]

{"sheet":"Language codes","index":5,"n_rows":165,"n_cols":3,"rows_kept":165,"cut":false,"hidden":false,"merged":[]}
["LCID","Excel language","Display language"]
[1078,"Afrikaans","af"]
[1052,"Albanian","sq"]
[1118,"Amharic","am"]
[5121,"Arabic - Algeria","ar-dz"]
[15361,"Arabic - Bahrain","ar-bh"]
[3073,"Arabic - Egypt","ar-eg"]
[2049,"Arabic - Iraq","ar-iq"]
[11265,"Arabic - Jordan","ar-jo"]
[13313,"Arabic - Kuwait","ar-kw"]
[12289,"Arabic - Lebanon","ar-lb"]
[4097,"Arabic - Libya","ar-ly"]
[6145,"Arabic - Morocco","ar-ma"]
[8193,"Arabic - Oman","ar-om"]
[16385,"Arabic - Qatar","ar-qa"]
[1025,"Arabic - Saudi Arabia","ar-sa"]
[10241,"Arabic - Syria","ar-sy"]
[7169,"Arabic - Tunisia","ar-tn"]
[14337,"Arabic - United Arab Emirates","ar-ae"]
[9217,"Arabic - Yemen","ar-ye"]
[1067,"Armenian","hy"]
[1101,"Assamese","as"]
[2092,"Azeri - Cyrillic","az-az"]
[1068,"Azeri - Latin","az-az"]
[1069,"Basque","eu"]
[1059,"Belarusian","be"]
[2117,"Bengali - Bangladesh","bn"]
[1093,"Bengali - India","bn"]
[5146,"Bosnian","bs"]
[1026,"Bulgarian","bg"]
[1109,"Burmese","my"]
[1027,"Catalan","ca"]
[2052,"Chinese - China","zh-cn"]
[3076,"Chinese - Hong Kong SAR","zh-hk"]
[5124,"Chinese - Macau SAR","zh-mo"]
[4100,"Chinese - Singapore","zh-sg"]
[1028,"Chinese - Taiwan","zh-tw"]
[1050,"Croatian","hr"]
[1029,"Czech","cs"]
[1030,"Danish","da"]
[2067,"Dutch - Belgium","nl-nl"]
[1043,"Dutch - Netherlands","nl-nl"]
[3081,"English - Australia","en-en"]
[10249,"English - Belize","en-en"]
[4105,"English - Canada","en-en"]
[9225,"English - Caribbean","en-en"]
[2057,"English - Great Britain","en-en"]
[16393,"English - India","en-en"]
[6153,"English - Ireland","en-en"]
[8201,"English - Jamaica","en-en"]
[5129,"English - New Zealand","en-en"]
[13321,"English - Philippines","en-en"]
[7177,"English - Southern Africa","en-en"]
[11273,"English - Trinidad","en-en"]
[1033,"English - United States","en-en"]
[12297,"English - Zimbabwe","en-en"]
[1061,"Estonian","et"]
[1071,"FYRO Macedonia","mk"]
[1080,"Faroese","fo"]
[1065,"Farsi - Persian","fa"]
[1035,"Finnish","fi"]
[2060,"French - Belgium","fr-be"]
[3084,"French - Canada","fr-ca"]
[1036,"French - France","fr-fr"]
[5132,"French - Luxembourg","fr-lu"]
[4108,"French - Switzerland","fr-ch"]
[2108,"Gaelic - Ireland","gd-ie"]
[1084,"Gaelic - Scotland","gd"]
[3079,"German - Austria","de-de"]
[1031,"German - Germany","de-de"]
[5127,"German - Liechtenstein","de-de"]
[4103,"German - Luxembourg","de-de"]
[2055,"German - Switzerland","de-de"]
[1032,"Greek","el"]
[1140,"Guarani - Paraguay","gn"]
[1095,"Gujarati","gu"]
[1037,"Hebrew","he"]
[1081,"Hindi","hi"]
[1038,"Hungarian","hu"]
[1039,"Icelandic","is"]
[1057,"Indonesian","id"]
[1040,"Italian - Italy","it-it"]
[2064,"Italian - Switzerland","it-ch"]
[1041,"Japanese","ja"]
[1099,"Kannada","kn"]
[1120,"Kashmiri","ks"]
[1087,"Kazakh","kk"]
[1107,"Khmer","km"]
[1042,"Korean","ko"]
[1108,"Lao","lo"]
[1142,"Latin","la"]
[1062,"Latvian","lv"]
[1063,"Lithuanian","lt"]
[2110,"Malay - Brunei","ms-bn"]
[1086,"Malay - Malaysia","ms-my"]
[1100,"Malayalam","ml"]
[1082,"Maltese","mt"]
[1153,"Maori","mi"]
[1102,"Marathi","mr"]
[2128,"Mongolian","mn"]
[1104,"Mongolian","mn"]
[1121,"Nepali","ne"]
[1044,"Norwegian - Bokml","no-no"]
[2068,"Norwegian - Nynorsk","no-no"]
[1096,"Oriya","or"]
[1045,"Polish","pl"]
[1046,"Portuguese - Brazil","pt-br"]
[2070,"Portuguese - Portugal","pt-pt"]
[1094,"Punjabi","pa"]
[1047,"Raeto-Romance","rm"]
[2072,"Romanian - Moldova","ro-mo"]
[1048,"Romanian - Romania","ro"]
[1049,"Russian","ru"]
[2073,"Russian - Moldova","ru-mo"]
[1103,"Sanskrit","sa"]
[3098,"Serbian - Cyrillic","sr-sp"]
[2074,"Serbian - Latin","sr-sp"]
[1074,"Setsuana","tn"]
[1113,"Sindhi","sd"]
[1115,"Sinhala - Sinhalese","si"]
[1051,"Slovak","sk"]
[1060,"Slovenian","sl"]
[1143,"Somali","so"]
[1070,"Sorbian","sb"]
[11274,"Spanish - Argentina","es-es"]
[16394,"Spanish - Bolivia","es-es"]
[13322,"Spanish - Chile","es-es"]
[9226,"Spanish - Colombia","es-es"]
[5130,"Spanish - Costa Rica","es-es"]
[7178,"Spanish - Dominican Republic","es-es"]
[12298,"Spanish - Ecuador","es-es"]
[17418,"Spanish - El Salvador","es-es"]
[4106,"Spanish - Guatemala","es-es"]
[18442,"Spanish - Honduras","es-es"]
[2058,"Spanish - Mexico","es-es"]
[19466,"Spanish - Nicaragua","es-es"]
[6154,"Spanish - Panama","es-es"]
[15370,"Spanish - Paraguay","es-es"]
[10250,"Spanish - Peru","es-es"]
[20490,"Spanish - Puerto Rico","es-es"]
[1034,"Spanish - Spain (Traditional)","es-es"]
[14346,"Spanish - Uruguay","es-es"]
[8202,"Spanish - Venezuela","es-es"]
[1089,"Swahili","sw"]
[2077,"Swedish - Finland","sv-fi"]
[1053,"Swedish - Sweden","sv-se"]
[1064,"Tajik","tg"]
[1097,"Tamil","ta"]
[1092,"Tatar","tt"]
[1098,"Telugu","te"]
[1054,"Thai","th"]
[1105,"Tibetan","bo"]
[1073,"Tsonga","ts"]
[1055,"Turkish","tr"]
[1090,"Turkmen","tk"]
[1058,"Ukrainian","uk"]
[0,"Unicode","UTF-8"]
[1056,"Urdu","ur"]
[2115,"Uzbek - Cyrillic","uz-uz"]
[1091,"Uzbek - Latin","uz-uz"]
[1066,"Vietnamese","vi"]
[1106,"Welsh","cy"]
[1076,"Xhosa","xh"]
[1085,"Yiddish","yi"]
[1077,"Zulu","zu"]